Workbook

Sheet Main
B10: 2018-12-03
B12: Sheet No. | C12: Template Name | D12: Summary
B13: 1 | C13: Future Intra | D13: For Intraday trading in F&O segment
B14: 2 | C14: Cash Intra | D14: For Intraday trading in cash market segment
B15: 3 | C15: Mid-cap Intra | D15: For Intraday trading in Mid-cap stocks
B16: 4 | C16: Bulk Deals | D16: Reveals Bulk Deals carried on NSE & BSE
B17: 5 | C17: Call Tracker

Sheet Future Intra
M5: Back to Main Page
A6: FOR INTRA DAY TRADING | L6: =Main!B10 -> 2018-12-03
A9: Sr.no | B9: Sector | C9: Scrip | D9: CLOSE RATE | E9: Pivot Point | F9: Supports | I9: Resistances
B10: Sector | D10: Point | E10: Point | F10: S1 | G10: S2 | H10: S3 | I10: R1 | J10: R2 | K10: R3 | L10: HIGH | M10: LOW | N10: OI | O10: % Change in OI
A11: 1 | B11: Index | C11: BANKNIFTY | D11: 26918.45 | E11: 26931.18 | F11: 26828.27 | G11: 26738.08 | H11: 26635.17 | I11: 27021.37 | J11: 27124.28 | K11: 27214.47 | L11: 27034.1 | M11: 26841 | N11: 1766100 | O11: -9.53%
A12: 2 | B12: Index | C12: NIFTY | D12: 10900.65 | E12: 10901.80 | F12: 10853.85 | G12: 10807.05 | H12: 10759.10 | I12: 10948.60 | J12: 10996.55 | K12: 11043.35 | L12: 10949.75 | M12: 10855 | N12: 19830900 | O12: 0.93%
A13: 3 | B13: Index | C13: NIFTYIT | D13: 14689.00 | E13: 14662.33 | F13: 14581.67 | G13: 14474.33 | H13: 14393.67 | I13: 14769.67 | J13: 14850.33 | K13: 14957.67 | L13: 14743 | M13: 14555 | N13: 11500 | O13: -3.77%
A14: 4 | B14: Index | C14: NIFTYMID50 | D14: 4803.00 | E14: 4803.00 | F14: 4803.00 | G14: 4803.00 | H14: 4803.00 | I14: 4803.00 | J14: 4803.00 | K14: 4803.00 | L14: 4803 | M14: 4803 | N14: 591470 | O14: -14.88%
A15: 5 | B15: Cement | C15: ACC | D15: 1489.45 | E15: 1487.07 | F15: 1472.83 | G15: 1456.22 | H15: 1441.98 | I15: 1503.68 | J15: 1517.92 | K15: 1534.53 | L15: 1501.3 | M15: 1470.45 | N15: 1433200 | O15: -1.27%
A16: 6 | B16: Others | C16: ADANIENT | D16: 165.65 | E16: 168.47 | F16: 161.53 | G16: 157.42 | H16: 150.48 | I16: 172.58 | J16: 179.52 | K16: 183.63 | L16: 175.4 | M16: 164.35 | N16: 39384000 | O16: 4.29%
A17: 7 | B17: Others | C17: ADANIPORTS | D17: 367.35 | E17: 369.52 | F17: 363.18 | G17: 359.02 | H17: 352.68 | I17: 373.68 | J17: 380.02 | K17: 384.18 | L17: 375.85 | M17: 365.35 | N17: 17360000 | O17: 3.70%
A18: 8 | B18: Power | C18: ADANIPOWER | D18: 55.70 | E18: 55.58 | F18: 54.72 | G18: 53.73 | H18: 52.87 | I18: 56.57 | J18: 57.43 | K18: 58.42 | L18: 56.45 | M18: 54.6 | N18: 154700000 | O18: 5.57%
A19: 9 | B19: Pharma | C19: AJANTPHARM | D19: 1167.45 | E19: 1149.78 | F19: 1121.77 | G19: 1076.08 | H19: 1048.07 | I19: 1195.47 | J19: 1223.48 | K19: 1269.17 | L19: 1177.8 | M19: 1104.1 | N19: 645000 | O19: -1.68%
A20: 10 | B20: Banking | C20: ALBK | D20: 48.55 | E20: 48.35 | F20: 47.20 | G20: 45.85 | H20: 44.70 | I20: 49.70 | J20: 50.85 | K20: 52.20 | L20: 49.5 | M20: 47 | N20: 16060000 | O20: 2.96%
A21: 11 | B21: Automobile | C21: AMARAJABAT | D21: 712.85 | E21: 717.42 | F21: 706.33 | G21: 699.82 | H21: 688.73 | I21: 723.93 | J21: 735.02 | K21: 741.53 | L21: 728.5 | M21: 710.9 | N21: 1624000 | O21: 20.64%
A22: 12 | B22: Cement | C22: AMBUJACEM | D22: 218.00 | E22: 218.28 | F22: 215.72 | G22: 213.43 | H22: 210.87 | I22: 220.57 | J22: 223.13 | K22: 225.42 | L22: 220.85 | M22: 216 | N22: 15295000 | O22: 4.60%
A23: 13 | B23: Others | C23: APOLLOHOSP | D23: 1266.00 | E23: 1272.87 | F23: 1251.78 | G23: 1237.57 | H23: 1216.48 | I23: 1287.08 | J23: 1308.17 | K23: 1322.38 | L23: 1293.95 | M23: 1258.65 | N23: 1161000 | O23: -5.95%
A24: 14 | B24: Automobile | C24: APOLLOTYRE | D24: 238.85 | E24: 238.27 | F24: 235.53 | G24: 232.22 | H24: 229.48 | I24: 241.58 | J24: 244.32 | K24: 247.63 | L24: 241 | M24: 234.95 | N24: 9573000 | O24: 1.72%
A25: 15 | B25: Textile | C25: ARVIND | D25: 103.25 | E25: 103.00 | F25: 101.00 | G25: 98.75 | H25: 96.75 | I25: 105.25 | J25: 107.25 | K25: 109.50 | L25: 105 | M25: 100.75 | N25: 5114000 | O25: 3.56%
A26: 16 | B26: Automobile | C26: ASHOKLEY | D26: 112.30 | E26: 111.98 | F26: 110.82 | G26: 109.33 | H26: 108.17 | I26: 113.47 | J26: 114.63 | K26: 116.12 | L26: 113.15 | M26: 110.5 | N26: 56500000 | O26: 1.12%
A27: 17 | B27: FMCG | C27: ASIANPAINT | D27: 1351.45 | E27: 1354.32 | F27: 1343.93 | G27: 1336.42 | H27: 1326.03 | I27: 1361.83 | J27: 1372.22 | K27: 1379.73 | L27: 1364.7 | M27: 1346.8 | N27: 4134600 | O27: -0.17%
A28: 18 | B28: Pharma | C28: AUROPHARMA | D28: 814.25 | E28: 807.97 | F28: 798.43 | G28: 782.62 | H28: 773.08 | I28: 823.78 | J28: 833.32 | K28: 849.13 | L28: 817.5 | M28: 792.15 | N28: 17358000 | O28: 5.08%
A29: 19 | B29: Banking | C29: AXISBANK | D29: 628.30 | E29: 630.13 | F29: 623.67 | G29: 619.03 | H29: 612.57 | I29: 634.77 | J29: 641.23 | K29: 645.87 | L29: 636.6 | M29: 625.5 | N29: 36369600 | O29: 1.98%
A30: 20 | B30: Automobile | C30: BAJAJ-AUTO | D30: 2746.40 | E30: 2741.18 | F30: 2709.42 | G30: 2672.43 | H30: 2640.67 | I30: 2778.17 | J30: 2809.93 | K30: 2846.92 | L30: 2772.95 | M30: 2704.2 | N30: 2238250 | O30: 0.16%
A31: 21 | B31: Others | C31: BAJAJFINSV | D31: 6014.05 | E31: 6063.02 | F31: 5926.03 | G31: 5838.02 | H31: 5701.03 | I31: 6151.03 | J31: 6288.02 | K31: 6376.03 | L31: 6200 | M31: 5975 | N31: 606500 | O31: 2.28%
A32: 22 | B32: Finance | C32: BAJFINANCE | D32: 2542.30 | E32: 2541.65 | F32: 2513.65 | G32: 2485.00 | H32: 2457.00 | I32: 2570.30 | J32: 2598.30 | K32: 2626.95 | L32: 2569.65 | M32: 2513 | N32: 6091250 | O32: 0.35%
A33: 23 | B33: Others | C33: BALKRISIND | D33: 963.80 | E33: 966.68 | F33: 953.92 | G33: 944.03 | H33: 931.27 | I33: 976.57 | J33: 989.33 | K33: 999.22 | L33: 979.45 | M33: 956.8 | N33: 2604800 | O33: 8.42%
A34: 24 | B34: Banking | C34: BANKBARODA | D34: 105.05 | E34: 105.25 | F34: 103.55 | G34: 102.05 | H34: 100.35 | I34: 106.75 | J34: 108.45 | K34: 109.95 | L34: 106.95 | M34: 103.75 | N34: 71432000 | O34: 1.67%
A35: 25 | B35: Banking | C35: BANKINDIA | D35: 85.20 | E35: 85.30 | F35: 84.20 | G35: 83.20 | H35: 82.10 | I35: 86.30 | J35: 87.40 | K35: 88.40 | L35: 86.4 | M35: 84.3 | N35: 22596000 | O35: 0.97%
A36: 26 | B36: FMCG | C36: BATAINDIA | D36: 1039.05 | E36: 1028.77 | F36: 1013.13 | G36: 987.22 | H36: 971.58 | I36: 1054.68 | J36: 1070.32 | K36: 1096.23 | L36: 1044.4 | M36: 1002.85 | N36: 1829300 | O36: 25.75%
A37: 27 | B37: Capital_Goods | C37: BEL | D37: 82.45 | E37: 83.17 | F37: 81.18 | G37: 79.92 | H37: 77.93 | I37: 84.43 | J37: 86.42 | K37: 87.68 | L37: 85.15 | M37: 81.9 | N37: 39283050 | O37: 37.81%
A38: 28 | B38: Infrastructure | C38: BEML | D38: 754.00 | E38: 757.42 | F38: 740.38 | G38: 726.77 | H38: 709.73 | I38: 771.03 | J38: 788.07 | K38: 801.68 | L38: 774.45 | M38: 743.8 | N38: 1021700 | O38: 0.87%
A39: 29 | B39: Others | C39: BERGEPAINT | D39: 320.05 | E39: 320.53 | F39: 317.07 | G39: 314.08 | H39: 310.62 | I39: 323.52 | J39: 326.98 | K39: 329.97 | L39: 324 | M39: 317.55 | N39: 1922800 | O39: 0.00%
A40: 30 | B40: Finance | C40: BHARATFIN | D40: 1024.25 | E40: 1032.63 | F40: 1007.77 | G40: 991.28 | H40: 966.42 | I40: 1049.12 | J40: 1073.98 | K40: 1090.47 | L40: 1057.5 | M40: 1016.15 | N40: 6240000 | O40: 1.34%
A41: 31 | B41: Automobile | C41: BHARATFORG | D41: 566.40 | E41: 568.98 | F41: 561.32 | G41: 556.23 | H41: 548.57 | I41: 574.07 | J41: 581.73 | K41: 586.82 | L41: 576.65 | M41: 563.9 | N41: 8611200 | O41: 9.01%
A42: 32 | B42: Telecom | C42: BHARTIARTL | D42: 314.95 | E42: 316.90 | F42: 309.15 | G42: 303.35 | H42: 295.60 | I42: 322.70 | J42: 330.45 | K42: 336.25 | L42: 324.65 | M42: 311.1 | N42: 38289100 | O42: 0.63%
A43: 33 | B43: Capital_Goods | C43: BHEL | D43: 68.55 | E43: 68.30 | F43: 66.15 | G43: 63.75 | H43: 61.60 | I43: 70.70 | J43: 72.85 | K43: 75.25 | L43: 70.45 | M43: 65.9 | N43: 54052500 | O43: -1.60%
A44: 34 | B44: Pharma | C44: BIOCON | D44: 624.00 | E44: 617.82 | F44: 610.63 | G44: 597.27 | H44: 590.08 | I44: 631.18 | J44: 638.37 | K44: 651.73 | L44: 625 | M44: 604.45 | N44: 5976900 | O44: -2.60%
A45: 35 | B45: Automobile | C45: BOSCHLTD | D45: 18954.95 | E45: 18881.65 | F45: 18733.30 | G45: 18511.65 | H45: 18363.30 | I45: 19103.30 | J45: 19251.65 | K45: 19473.30 | L45: 19030 | M45: 18660 | N45: 145740 | O45: -1.34%
A46: 36 | B46: Oil_Gas | C46: BPCL | D46: 323.15 | E46: 324.15 | F46: 316.50 | G46: 309.85 | H46: 302.20 | I46: 330.80 | J46: 338.45 | K46: 345.10 | L46: 331.8 | M46: 317.5 | N46: 11716200 | O46: 14.01%
A47: 37 | B47: FMCG | C47: BRITANNIA | D47: 3164.90 | E47: 3120.95 | F47: 3051.45 | G47: 2938.00 | H47: 2868.50 | I47: 3234.40 | J47: 3303.90 | K47: 3417.35 | L47: 3190.45 | M47: 3007.5 | N47: 2773400 | O47: 0.13%
A48: 38 | B48: Pharma | C48: CADILAHC | D48: 365.50 | E48: 363.17 | F48: 359.33 | G48: 353.17 | H48: 349.33 | I48: 369.33 | J48: 373.17 | K48: 379.33 | L48: 367 | M48: 357 | N48: 8432000 | O48: -0.72%
A49: 39 | B49: Banking | C49: CANBK | D49: 256.55 | E49: 258.92 | F49: 252.88 | G49: 249.22 | H49: 243.18 | I49: 262.58 | J49: 268.62 | K49: 272.28 | L49: 264.95 | M49: 255.25 | N49: 11474000 | O49: 1.20%
A50: 40 | B50: Others | C50: CANFINHOME | D50: 270.60 | E50: 272.58 | F50: 264.47 | G50: 258.33 | H50: 250.22 | I50: 278.72 | J50: 286.83 | K50: 292.97 | L50: 280.7 | M50: 266.45 | N50: 4126800 | O50: 6.24%
A51: 41 | B51: Finance | C51: CAPF | D51: 526.15 | E51: 525.98 | F51: 520.32 | G51: 514.48 | H51: 508.82 | I51: 531.82 | J51: 537.48 | K51: 543.32 | L51: 531.65 | M51: 520.15 | N51: 6440800 | O51: 1.77%
A52: 42 | B52: Oil_Gas | C52: CASTROLIND | D52: 151.75 | E52: 152.73 | F52: 150.02 | G52: 148.28 | H52: 145.57 | I52: 154.47 | J52: 157.18 | K52: 158.92 | L52: 155.45 | M52: 151 | N52: 6713800 | O52: -0.27%
A53: 43 | B53: Automobile | C53: CEATLTD | D53: 1269.75 | E53: 1273.20 | F53: 1256.55 | G53: 1243.35 | H53: 1226.70 | I53: 1286.40 | J53: 1303.05 | K53: 1316.25 | L53: 1289.85 | M53: 1260 | N53: 860750 | O53: 1.80%
A54: 44 | B54: Textile | C54: CENTURYTEX | D54: 921.50 | E54: 916.05 | F54: 906.45 | G54: 891.40 | H54: 881.80 | I54: 931.10 | J54: 940.70 | K54: 955.75 | L54: 925.65 | M54: 901 | N54: 4482400 | O54: -0.03%
A55: 45 | B55: Power | C55: CESC | D55: 700.60 | E55: 696.37 | F55: 690.03 | G55: 679.47 | H55: 673.13 | I55: 706.93 | J55: 713.27 | K55: 723.83 | L55: 702.7 | M55: 685.8 | N55: 1304050 | O55: 3.40%
A56: 46 | B56: Power | C56: CGPOWER | D56: 39.00 | E56: 39.10 | F56: 38.25 | G56: 37.50 | H56: 36.65 | I56: 39.85 | J56: 40.70 | K56: 41.45 | L56: 39.95 | M56: 38.35 | N56: 45432000 | O56: -0.05%
A57: 47 | B57: Others | C57: CHENNPETRO | D57: 274.80 | E57: 276.47 | F57: 270.43 | G57: 266.07 | H57: 260.03 | I57: 280.83 | J57: 286.87 | K57: 291.23 | L57: 282.5 | M57: 272.1 | N57: 1038300 | O57: 3.90%
A58: 48 | B58: Others | C58: CHOLAFIN | D58: 1316.55 | E58: 1320.88 | F58: 1302.27 | G58: 1287.98 | H58: 1269.37 | I58: 1335.17 | J58: 1353.78 | K58: 1368.07 | L58: 1339.5 | M58: 1306.6 | N58: 477500 | O58: 6.94%
A59: 49 | B59: Pharma | C59: CIPLA | D59: 540.80 | E59: 537.50 | F59: 532.20 | G59: 523.60 | H59: 518.30 | I59: 546.10 | J59: 551.40 | K59: 560.00 | L59: 542.8 | M59: 528.9 | N59: 8515000 | O59: 0.53%
A60: 50 | B60: Others | C60: COALINDIA | D60: 243.75 | E60: 243.42 | F60: 238.38 | G60: 233.02 | H60: 227.98 | I60: 248.78 | J60: 253.82 | K60: 259.18 | L60: 248.45 | M60: 238.05 | N60: 43065000 | O60: 40.54%
A61: 51 | B61: FMCG | C61: COLPAL | D61: 1221.80 | E61: 1220.92 | F61: 1205.33 | G61: 1188.87 | H61: 1173.28 | I61: 1237.38 | J61: 1252.97 | K61: 1269.43 | L61: 1236.5 | M61: 1204.45 | N61: 1190000 | O61: -1.90%
A62: 52 | B62: Others | C62: CONCOR | D62: 676.75 | E62: 672.23 | F62: 663.37 | G62: 649.98 | H62: 641.12 | I62: 685.62 | J62: 694.48 | K62: 707.87 | L62: 681.1 | M62: 658.85 | N62: 2962500 | O62: 1.11%
A63: 53 | B63: Capital_Goods | C63: CUMMINSIND | D63: 810.35 | E63: 813.28 | F63: 804.87 | G63: 799.38 | H63: 790.97 | I63: 818.77 | J63: 827.18 | K63: 832.67 | L63: 821.7 | M63: 807.8 | N63: 1330700 | O63: 1.06%
A64: 54 | B64: FMCG | C64: DABUR | D64: 411.15 | E64: 412.98 | F64: 406.17 | G64: 401.18 | H64: 394.37 | I64: 417.97 | J64: 424.78 | K64: 429.77 | L64: 419.8 | M64: 408 | N64: 11552500 | O64: 5.18%
A65: 55 | B65: Banking | C65: DCBBANK | D65: 157.55 | E65: 156.80 | F65: 155.20 | G65: 152.85 | H65: 151.25 | I65: 159.15 | J65: 160.75 | K65: 163.10 | L65: 158.4 | M65: 154.45 | N65: 4477500 | O65: 4.30%
A66: 56 | B66: Finance | C66: DHFL | D66: 212.10 | E66: 211.42 | F66: 206.68 | G66: 201.27 | H66: 196.53 | I66: 216.83 | J66: 221.57 | K66: 226.98 | L66: 216.15 | M66: 206 | N66: 22534500 | O66: 0.91%
A67: 57 | B67: Media | C67: DISHTV | D67: 38.35 | E67: 38.53 | F67: 37.87 | G67: 37.38 | H67: 36.72 | I67: 39.02 | J67: 39.68 | K67: 40.17 | L67: 39.2 | M67: 38.05 | N67: 41696000 | O67: 13.43%
A68: 58 | B68: Pharma | C68: DIVISLAB | D68: 1438.15 | E68: 1446.47 | F68: 1413.78 | G68: 1389.42 | H68: 1356.73 | I68: 1470.83 | J68: 1503.52 | K68: 1527.88 | L68: 1479.15 | M68: 1422.1 | N68: 4099600 | O68: 39.54%
A69: 59 | B69: Realty | C69: DLF | D69: 178.55 | E69: 178.50 | F69: 176.60 | G69: 174.65 | H69: 172.75 | I69: 180.45 | J69: 182.35 | K69: 184.30 | L69: 180.4 | M69: 176.55 | N69: 25459100 | O69: -1.79%
A70: 60 | B70: Pharma | C70: DRREDDY | D70: 2722.60 | E70: 2704.87 | F70: 2677.73 | G70: 2632.87 | H70: 2605.73 | I70: 2749.73 | J70: 2776.87 | K70: 2821.73 | L70: 2732 | M70: 2660 | N70: 3265250 | O70: -3.54%
A71: 61 | B71: Automobile | C71: EICHERMOT | D71: 23465.95 | E71: 23534.90 | F71: 23241.05 | G71: 23016.15 | H71: 22722.30 | I71: 23759.80 | J71: 24053.65 | K71: 24278.55 | L71: 23828.75 | M71: 23310 | N71: 262375 | O71: 3.99%
A72: 62 | B72: Infrastructure | C72: ENGINERSIN | D72: 117.90 | E72: 117.97 | F72: 116.68 | G72: 115.47 | H72: 114.18 | I72: 119.18 | J72: 120.47 | K72: 121.68 | L72: 119.25 | M72: 116.75 | N72: 5617600 | O72: 1.36%
A73: 63 | B73: Finance | C73: EQUITAS | D73: 107.55 | E73: 106.40 | F73: 103.45 | G73: 99.35 | H73: 96.40 | I73: 110.50 | J73: 113.45 | K73: 117.55 | L73: 109.35 | M73: 102.3 | N73: 10616000 | O73: -2.86%
A74: 64 | B74: Automobile | C74: ESCORTS | D74: 708.00 | E74: 706.20 | F74: 699.90 | G74: 691.80 | H74: 685.50 | I74: 714.30 | J74: 720.60 | K74: 728.70 | L74: 712.5 | M74: 698.1 | N74: 5408700 | O74: 6.36%
A75: 65 | B75: Automobile | C75: EXIDEIND | D75: 263.25 | E75: 262.12 | F75: 259.43 | G75: 255.62 | H75: 252.93 | I75: 265.93 | J75: 268.62 | K75: 272.43 | L75: 264.8 | M75: 258.3 | N75: 6028000 | O75: -1.76%
A76: 66 | B76: Banking | C76: FEDERALBNK | D76: 85.65 | E76: 85.55 | F76: 84.55 | G76: 83.45 | H76: 82.45 | I76: 86.65 | J76: 87.65 | K76: 88.75 | L76: 86.55 | M76: 84.45 | N76: 50536000 | O76: 0.45%
A77: 67 | B77: Oil_Gas | C77: GAIL | D77: 342.90 | E77: 343.20 | F77: 337.35 | G77: 331.80 | H77: 325.95 | I77: 348.75 | J77: 354.60 | K77: 360.15 | L77: 349.05 | M77: 337.65 | N77: 19389090 | O77: -1.41%
A78: 68 | B78: Pharma | C78: GLENMARK | D78: 654.25 | E78: 650.48 | F78: 644.97 | G78: 635.68 | H78: 630.17 | I78: 659.77 | J78: 665.28 | K78: 674.57 | L78: 656 | M78: 641.2 | N78: 4171000 | O78: 2.48%
A79: 69 | B79: Infrastructure | C79: GMRINFRA | D79: 16.15 | E79: 16.12 | F79: 15.98 | G79: 15.82 | H79: 15.68 | I79: 16.28 | J79: 16.42 | K79: 16.58 | L79: 16.25 | M79: 15.95 | N79: 170370000 | O79: 0.75%
A80: 70 | B80: Others | C80: GODFRYPHLP | D80: 932.15 | E80: 935.82 | F80: 921.78 | G80: 911.42 | H80: 897.38 | I80: 946.18 | J80: 960.22 | K80: 970.58 | L80: 949.85 | M80: 925.45 | N80: 529900 | O80: -3.93%
A81: 71 | B81: FMCG | C81: GODREJCP | D81: 754.20 | E81: 752.73 | F81: 748.37 | G81: 742.53 | H81: 738.17 | I81: 758.57 | J81: 762.93 | K81: 768.77 | L81: 757.1 | M81: 746.9 | N81: 5547600 | O81: 0.40%
A82: 72 | B82: FMCG | C82: GODREJIND | D82: 547.80 | E82: 544.87 | F82: 540.78 | G82: 533.77 | H82: 529.68 | I82: 551.88 | J82: 555.97 | K82: 562.98 | L82: 548.95 | M82: 537.85 | N82: 1534500 | O82: -13.23%
A83: 73 | B83: Cement | C83: GRASIM | D83: 866.75 | E83: 862.77 | F83: 855.03 | G83: 843.32 | H83: 835.58 | I83: 874.48 | J83: 882.22 | K83: 893.93 | L83: 870.5 | M83: 851.05 | N83: 7581000 | O83: 0.82%
A84: 74 | B84: Others | C84: GSFC | D84: 106.30 | E84: 106.05 | F84: 103.70 | G84: 101.10 | H84: 98.75 | I84: 108.65 | J84: 111.00 | K84: 113.60 | L84: 108.4 | M84: 103.45 | N84: 16439200 | O84: 3.02%
A85: 75 | B85: Others | C85: HAVELLS | D85: 687.10 | E85: 691.43 | F85: 674.57 | G85: 662.03 | H85: 645.17 | I85: 703.97 | J85: 720.83 | K85: 733.37 | L85: 708.3 | M85: 678.9 | N85: 4972000 | O85: 7.85%
A86: 76 | B86: Technology | C86: HCLTECH | D86: 1019.50 | E86: 1019.33 | F86: 1008.37 | G86: 997.23 | H86: 986.27 | I86: 1030.47 | J86: 1041.43 | K86: 1052.57 | L86: 1030.3 | M86: 1008.2 | N86: 8146600 | O86: 1.78%
A87: 77 | B87: Finance | C87: HDFC | D87: 1990.25 | E87: 1985.03 | F87: 1971.12 | G87: 1951.98 | H87: 1938.07 | I87: 2004.17 | J87: 2018.08 | K87: 2037.22 | L87: 1998.95 | M87: 1965.9 | N87: 24833000 | O87: 2.03%
A88: 78 | B88: Banking | C88: HDFCBANK | D88: 2132.80 | E88: 2129.92 | F88: 2116.93 | G88: 2101.07 | H88: 2088.08 | I88: 2145.78 | J88: 2158.77 | K88: 2174.63 | L88: 2142.9 | M88: 2114.05 | N88: 12963750 | O88: -2.48%
A89: 79 | B89: Automobile | C89: HEROMOTOCO | D89: 3061.05 | E89: 3051.75 | F89: 3029.50 | G89: 2997.95 | H89: 2975.70 | I89: 3083.30 | J89: 3105.55 | K89: 3137.10 | L89: 3074 | M89: 3020.2 | N89: 1265800 | O89: 13.67%
A90: 80 | B90: Technology | C90: HEXAWARE | D90: 323.70 | E90: 322.53 | F90: 315.67 | G90: 307.63 | H90: 300.77 | I90: 330.57 | J90: 337.43 | K90: 345.47 | L90: 329.4 | M90: 314.5 | N90: 4695000 | O90: 2.12%
A91: 81 | B91: Metals | C91: HINDALCO | D91: 226.15 | E91: 224.78 | F91: 222.67 | G91: 219.18 | H91: 217.07 | I91: 228.27 | J91: 230.38 | K91: 233.87 | L91: 226.9 | M91: 221.3 | N91: 32347000 | O91: 1.91%
A92: 82 | B92: Oil_Gas | C92: HINDPETRO | D92: 232.80 | E92: 236.78 | F92: 226.32 | G92: 219.83 | H92: 209.37 | I92: 243.27 | J92: 253.73 | K92: 260.22 | L92: 247.25 | M92: 230.3 | N92: 19503225 | O92: 3.27%
A93: 83 | B93: FMCG | C93: HINDUNILVR | D93: 1765.40 | E93: 1771.88 | F93: 1741.97 | G93: 1718.53 | H93: 1688.62 | I93: 1795.32 | J93: 1825.23 | K93: 1848.67 | L93: 1801.8 | M93: 1748.45 | N93: 8264400 | O93: 5.78%
A94: 84 | B94: Metals | C94: HINDZINC | D94: 266.90 | E94: 266.02 | F94: 263.03 | G94: 259.17 | H94: 256.18 | I94: 269.88 | J94: 272.87 | K94: 276.73 | L94: 269 | M94: 262.15 | N94: 5852800 | O94: -1.30%
A95: 85 | B95: Finance | C95: IBULHSGFIN | D95: 717.55 | E95: 719.32 | F95: 708.63 | G95: 699.72 | H95: 689.03 | I95: 728.23 | J95: 738.92 | K95: 747.83 | L95: 730 | M95: 710.4 | N95: 24054000 | O95: 7.47%
A96: 86 | B96: Banking | C96: ICICIBANK | D96: 356.45 | E96: 358.85 | F96: 352.80 | G96: 349.15 | H96: 343.10 | I96: 362.50 | J96: 368.55 | K96: 372.20 | L96: 364.9 | M96: 355.2 | N96: 90370500 | O96: -1.82%
A97: 87 | B97: Others | C97: ICICIPRULI | D97: 326.05 | E97: 324.45 | F97: 319.10 | G97: 312.15 | H97: 306.80 | I97: 331.40 | J97: 336.75 | K97: 343.70 | L97: 329.8 | M97: 317.5 | N97: 3980000 | O97: 3.61%
A98: 88 | B98: Banking | C98: IDBI | D98: 59.75 | E98: 59.93 | F98: 59.37 | G98: 58.98 | H98: 58.42 | I98: 60.32 | J98: 60.88 | K98: 61.27 | L98: 60.5 | M98: 59.55 | N98: 33510000 | O98: 1.98%
A99: 89 | B99: Telecom | C99: IDEA | D99: 35.50 | E99: 36.18 | F99: 34.62 | G99: 33.73 | H99: 32.17 | I99: 37.07 | J99: 38.63 | K99: 39.52 | L99: 37.75 | M99: 35.3 | N99: 139753000 | O99: 4.35%
A100: 90 | B100: Finance | C100: IDFC | D100: 40.95 | E100: 40.58 | F100: 40.12 | G100: 39.28 | H100: 38.82 | I100: 41.42 | J100: 41.88 | K100: 42.72 | L100: 41.05 | M100: 39.75 | N100: 105362400 | O100: -0.84%
A101: 91 | B101: Banking | C101: IDFCBANK | D101: 38.45 | E101: 38.42 | F101: 38.03 | G101: 37.62 | H101: 37.23 | I101: 38.83 | J101: 39.22 | K101: 39.63 | L101: 38.8 | M101: 38 | N101: 129501000 | O101: 1.12%
A102: 92 | B102: Finance | C102: IFCI | D102: 13.75 | E102: 13.77 | F102: 13.53 | G102: 13.32 | H102: 13.08 | I102: 13.98 | J102: 14.22 | K102: 14.43 | L102: 14 | M102: 13.55 | N102: 47385000 | O102: 1.27%
A103: 93 | B103: Oil_Gas | C103: IGL | D103: 263.50 | E103: 263.10 | F103: 260.65 | G103: 257.80 | H103: 255.35 | I103: 265.95 | J103: 268.40 | K103: 271.25 | L103: 265.55 | M103: 260.25 | N103: 4023250 | O103: 0.90%
A104: 94 | B104: Cement | C104: INDIACEM | D104: 94.10 | E104: 93.40 | F104: 91.70 | G104: 89.30 | H104: 87.60 | I104: 95.80 | J104: 97.50 | K104: 99.90 | L104: 95.1 | M104: 91 | N104: 16544000 | O104: 0.38%
A105: 95 | B105: Banking | C105: INDIANB | D105: 229.70 | E105: 229.28 | F105: 225.22 | G105: 220.73 | H105: 216.67 | I105: 233.77 | J105: 237.83 | K105: 242.32 | L105: 233.35 | M105: 224.8 | N105: 4816000 | O105: -1.55%
A106: 96 | B106: Others | C106: INDIGO | D106: 1042.55 | E106: 1043.93 | F106: 1030.72 | G106: 1018.88 | H106: 1005.67 | I106: 1055.77 | J106: 1068.98 | K106: 1080.82 | L106: 1057.15 | M106: 1032.1 | N106: 2778600 | O106: 3.51%
A107: 97 | B107: Banking | C107: INDUSINDBK | D107: 1638.00 | E107: 1649.30 | F107: 1619.05 | G107: 1600.10 | H107: 1569.85 | I107: 1668.25 | J107: 1698.50 | K107: 1717.45 | L107: 1679.55 | M107: 1630.35 | N107: 5018400 | O107: -2.06%
A108: 98 | B108: Technology | C108: INFIBEAM | D108: 44.45 | E108: 44.90 | F108: 43.35 | G108: 42.25 | H108: 40.70 | I108: 46.00 | J108: 47.55 | K108: 48.65 | L108: 46.45 | M108: 43.8 | N108: 14556000 | O108: -2.44%
A109: 99 | B109: Telecom | C109: INFRATEL | D109: 257.70 | E109: 260.42 | F109: 253.68 | G109: 249.67 | H109: 242.93 | I109: 264.43 | J109: 271.17 | K109: 275.18 | L109: 267.15 | M109: 256.4 | N109: 8153100 | O109: 5.76%
A110: 100 | B110: Technology | C110: INFY | D110: 670.40 | E110: 669.55 | F110: 665.70 | G110: 661.00 | H110: 657.15 | I110: 674.25 | J110: 678.10 | K110: 682.80 | L110: 673.4 | M110: 664.85 | N110: 41245200 | O110: 1.91%
A111: 101 | B111: Oil_Gas | C111: IOC | D111: 133.15 | E111: 133.22 | F111: 131.23 | G111: 129.32 | H111: 127.33 | I111: 135.13 | J111: 137.12 | K111: 139.03 | L111: 135.2 | M111: 131.3 | N111: 82479500 | O111: 33.00%
A112: 102 | B112: Infrastructure | C112: IRB | D112: 149.05 | E112: 149.23 | F112: 147.32 | G112: 145.58 | H112: 143.67 | I112: 150.97 | J112: 152.88 | K112: 154.62 | L112: 151.15 | M112: 147.5 | N112: 9363100 | O112: -7.85%
A113: 103 | B113: FMCG | C113: ITC | D113: 287.05 | E113: 288.08 | F113: 284.87 | G113: 282.68 | H113: 279.47 | I113: 290.27 | J113: 293.48 | K113: 295.67 | L113: 291.3 | M113: 285.9 | N113: 69835200 | O113: 1.65%
A114: 104 | B114: Others | C114: JETAIRWAYS | D114: 302.40 | E114: 305.00 | F114: 297.10 | G114: 291.80 | H114: 283.90 | I114: 310.30 | J114: 318.20 | K114: 323.50 | L114: 312.9 | M114: 299.7 | N114: 4335600 | O114: 4.83%
A115: 105 | B115: Metals | C115: JINDALSTEL | D115: 154.35 | E115: 154.58 | F115: 151.37 | G115: 148.38 | H115: 145.17 | I115: 157.57 | J115: 160.78 | K115: 163.77 | L115: 157.8 | M115: 151.6 | N115: 27571500 | O115: 3.40%
A116: 106 | B116: Others | C116: JISLJALEQS | D116: 66.60 | E116: 66.63 | F116: 65.62 | G116: 64.63 | H116: 63.62 | I116: 67.62 | J116: 68.63 | K116: 69.62 | L116: 67.65 | M116: 65.65 | N116: 32733000 | O116: -0.76%
A117: 107 | B117: Realty | C117: JPASSOCIAT | D117: 6.95 | E117: 6.90 | F117: 6.80 | G117: 6.65 | H117: 6.55 | I117: 7.05 | J117: 7.15 | K117: 7.30 | L117: 7 | M117: 6.75 | N117: 109593000 | O117: 1.76%
A118: 108 | B118: Metals | C118: JSWSTEEL | D118: 315.70 | E118: 318.03 | F118: 312.22 | G118: 308.73 | H118: 302.92 | I118: 321.52 | J118: 327.33 | K118: 330.82 | L118: 323.85 | M118: 314.55 | N118: 47800500 | O118: 1.60%
A119: 109 | B119: Others | C119: JUBLFOOD | D119: 1256.70 | E119: 1247.45 | F119: 1233.05 | G119: 1209.40 | H119: 1195.00 | I119: 1271.10 | J119: 1285.50 | K119: 1309.15 | L119: 1261.85 | M119: 1223.8 | N119: 2295000 | O119: 5.37%
A120: 110 | B120: Others | C120: JUSTDIAL | D120: 499.80 | E120: 500.27 | F120: 494.53 | G120: 489.27 | H120: 483.53 | I120: 505.53 | J120: 511.27 | K120: 516.53 | L120: 506 | M120: 495 | N120: 1895600 | O120: 7.29%
A121: 111 | B121: Others | C121: KAJARIACER | D121: 441.50 | E121: 442.75 | F121: 437.05 | G121: 432.60 | H121: 426.90 | I121: 447.20 | J121: 452.90 | K121: 457.35 | L121: 448.45 | M121: 438.3 | N121: 2308300 | O121: 12.56%
A122: 112 | B122: Banking | C122: KOTAKBANK | D122: 1232.85 | E122: 1223.42 | F122: 1211.93 | G122: 1191.02 | H122: 1179.53 | I122: 1244.33 | J122: 1255.82 | K122: 1276.73 | L122: 1234.9 | M122: 1202.5 | N122: 11415200 | O122: 0.60%
A123: 113 | B123: Technology | C123: KPIT | D123: 208.85 | E123: 207.03 | F123: 204.57 | G123: 200.28 | H123: 197.82 | I123: 211.32 | J123: 213.78 | K123: 218.07 | L123: 209.5 | M123: 202.75 | N123: 6050250 | O123: 3.70%
A124: 114 | B124: Others | C124: KSCL | D124: 520.65 | E124: 518.32 | F124: 510.63 | G124: 500.62 | H124: 492.93 | I124: 528.33 | J124: 536.02 | K124: 546.03 | L124: 526 | M124: 508.3 | N124: 930000 | O124: 2.99%
A125: 115 | B125: Banking | C125: KTKBANK | D125: 104.15 | E125: 104.22 | F125: 102.83 | G125: 101.52 | H125: 100.13 | I125: 105.53 | J125: 106.92 | K125: 108.23 | L125: 105.6 | M125: 102.9 | N125: 14880800 | O125: 3.90%
A126: 116 | B126: Finance | C126: L&TFH | D126: 144.80 | E126: 144.65 | F126: 143.45 | G126: 142.10 | H126: 140.90 | I126: 146.00 | J126: 147.20 | K126: 148.55 | L126: 145.85 | M126: 143.3 | N126: 20943000 | O126: 6.79%
A127: 117 | B127: Finance | C127: LICHSGFIN | D127: 468.25 | E127: 470.05 | F127: 462.15 | G127: 456.05 | H127: 448.15 | I127: 476.15 | J127: 484.05 | K127: 490.15 | L127: 477.95 | M127: 463.95 | N127: 8675700 | O127: 2.91%
A128: 118 | B128: Capital_Goods | C128: LT | D128: 1433.90 | E128: 1428.77 | F128: 1419.23 | G128: 1404.57 | H128: 1395.03 | I128: 1443.43 | J128: 1452.97 | K128: 1467.63 | L128: 1438.3 | M128: 1414.1 | N128: 8776875 | O128: 3.30%
A129: 119 | B129: Pharma | C129: LUPIN | D129: 884.90 | E129: 880.62 | F129: 869.88 | G129: 854.87 | H129: 844.13 | I129: 895.63 | J129: 906.37 | K129: 921.38 | L129: 891.35 | M129: 865.6 | N129: 8066100 | O129: 2.21%
A130: 120 | B130: Automobile | C130: M&M | D130: 791.00 | E130: 789.60 | F130: 780.85 | G130: 770.70 | H130: 761.95 | I130: 799.75 | J130: 808.50 | K130: 818.65 | L130: 798.35 | M130: 779.45 | N130: 13001000 | O130: 2.31%
A131: 121 | B131: Finance | C131: M&MFIN | D131: 449.00 | E131: 445.98 | F131: 441.02 | G131: 433.03 | H131: 428.07 | I131: 453.97 | J131: 458.93 | K131: 466.92 | L131: 450.95 | M131: 438 | N131: 9253750 | O131: 4.03%
A132: 122 | B132: Others | C132: MANAPPURAM | D132: 86.30 | E132: 85.85 | F132: 85.00 | G132: 83.70 | H132: 82.85 | I132: 87.15 | J132: 88.00 | K132: 89.30 | L132: 86.7 | M132: 84.55 | N132: 11502000 | O132: 0.26%
A133: 123 | B133: FMCG | C133: MARICO | D133: 358.50 | E133: 359.67 | F133: 353.63 | G133: 348.77 | H133: 342.73 | I133: 364.53 | J133: 370.57 | K133: 375.43 | L133: 365.7 | M133: 354.8 | N133: 8684000 | O133: 5.43%
A134: 124 | B134: Automobile | C134: MARUTI | D134: 7661.80 | E134: 7662.62 | F134: 7587.78 | G134: 7513.77 | H134: 7438.93 | I134: 7736.63 | J134: 7811.47 | K134: 7885.48 | L134: 7737.45 | M134: 7588.6 | N134: 2025300 | O134: -0.59%
A135: 125 | B135: FMCG | C135: MCDOWELL-N | D135: 674.00 | E135: 663.58 | F135: 650.17 | G135: 626.33 | H135: 612.92 | I135: 687.42 | J135: 700.83 | K135: 724.67 | L135: 677 | M135: 639.75 | N135: 9266250 | O135: 4.97%
A136: 126 | B136: Others | C136: MCX | D136: 737.00 | E136: 732.37 | F136: 717.63 | G136: 698.27 | H136: 683.53 | I136: 751.73 | J136: 766.47 | K136: 785.83 | L136: 747.1 | M136: 713 | N136: 2621500 | O136: -2.32%
A137: 127 | B137: Finance | C137: MFSL | D137: 446.60 | E137: 444.70 | F137: 436.50 | G137: 426.40 | H137: 418.20 | I137: 454.80 | J137: 463.00 | K137: 473.10 | L137: 452.9 | M137: 434.6 | N137: 2140800 | O137: -3.52%
A138: 128 | B138: Others | C138: MGL | D138: 829.65 | E138: 828.22 | F138: 819.43 | G138: 809.22 | H138: 800.43 | I138: 838.43 | J138: 847.22 | K138: 857.43 | L138: 837 | M138: 818 | N138: 1077000 | O138: -5.08%
A139: 129 | B139: Technology | C139: MINDTREE | D139: 878.60 | E139: 871.73 | F139: 857.97 | G139: 837.33 | H139: 823.57 | I139: 892.37 | J139: 906.13 | K139: 926.77 | L139: 885.5 | M139: 851.1 | N139: 2518800 | O139: 10.71%
A140: 130 | B140: Automobile | C140: MOTHERSUMI | D140: 156.15 | E140: 155.67 | F140: 153.73 | G140: 151.32 | H140: 149.38 | I140: 158.08 | J140: 160.02 | K140: 162.43 | L140: 157.6 | M140: 153.25 | N140: 26877000 | O140: 2.28%
A141: 131 | B141: Automobile | C141: MRF | D141: 67645.15 | E141: 68039.87 | F141: 67134.88 | G141: 66624.62 | H141: 65719.63 | I141: 68550.13 | J141: 69455.12 | K141: 69965.38 | L141: 68944.85 | M141: 67529.6 | N141: 27120 | O141: 2.30%
A142: 132 | B142: Others | C142: MRPL | D142: 73.80 | E142: 74.40 | F142: 72.55 | G142: 71.30 | H142: 69.45 | I142: 75.65 | J142: 77.50 | K142: 78.75 | L142: 76.25 | M142: 73.15 | N142: 3261000 | O142: -3.72%
A143: 133 | B143: Finance | C143: MUTHOOTFIN | D143: 452.70 | E143: 449.90 | F143: 445.30 | G143: 437.90 | H143: 433.30 | I143: 457.30 | J143: 461.90 | K143: 469.30 | L143: 454.5 | M143: 442.5 | N143: 1524000 | O143: 11.40%
A144: 134 | B144: Others | C144: NATIONALUM | D144: 67.30 | E144: 67.00 | F144: 66.50 | G144: 65.70 | H144: 65.20 | I144: 67.80 | J144: 68.30 | K144: 69.10 | L144: 67.5 | M144: 66.2 | N144: 24104000 | O144: -0.66%
A145: 135 | B145: Others | C145: NBCC | D145: 52.65 | E145: 53.48 | F145: 51.37 | G145: 50.08 | H145: 47.97 | I145: 54.77 | J145: 56.88 | K145: 58.17 | L145: 55.6 | M145: 52.2 | N145: 33946000 | O145: 17.24%
A146: 136 | B146: Infrastructure | C146: NCC | D146: 87.40 | E146: 88.28 | F146: 85.87 | G146: 84.33 | H146: 81.92 | I146: 89.82 | J146: 92.23 | K146: 93.77 | L146: 90.7 | M146: 86.75 | N146: 49464000 | O146: 0.98%
A147: 137 | B147: Others | C147: NESTLEIND | D147: 10755.40 | E147: 10712.13 | F147: 10618.27 | G147: 10481.13 | H147: 10387.27 | I147: 10849.27 | J147: 10943.13 | K147: 11080.27 | L147: 10806 | M147: 10575 | N147: 247900 | O147: 1.04%
A148: 138 | B148: Power | C148: NHPC | D148: 26.00 | E148: 25.95 | F148: 25.75 | G148: 25.50 | H148: 25.30 | I148: 26.20 | J148: 26.40 | K148: 26.65 | L148: 26.15 | M148: 25.7 | N148: 16335000 | O148: 1.34%
A149: 139 | B149: Technology | C149: NIITTECH | D149: 1095.35 | E149: 1097.48 | F149: 1081.22 | G149: 1067.08 | H149: 1050.82 | I149: 1111.62 | J149: 1127.88 | K149: 1142.02 | L149: 1113.75 | M149: 1083.35 | N149: 1743000 | O149: 3.61%
A150: 140 | B150: Metals | C150: NMDC | D150: 96.00 | E150: 95.55 | F150: 94.85 | G150: 93.70 | H150: 93.00 | I150: 96.70 | J150: 97.40 | K150: 98.55 | L150: 96.25 | M150: 94.4 | N150: 19704000 | O150: 0.46%
A151: 141 | B151: Power | C151: NTPC | D151: 138.95 | E151: 139.42 | F151: 136.33 | G151: 133.72 | H151: 130.63 | I151: 142.03 | J151: 145.12 | K151: 147.73 | L151: 142.5 | M151: 136.8 | N151: 69668000 | O151: 61.88%
A152: 142 | B152: Technology | C152: OFSS | D152: 3448.45 | E152: 3424.03 | F152: 3392.42 | G152: 3336.38 | H152: 3304.77 | I152: 3480.07 | J152: 3511.68 | K152: 3567.72 | L152: 3455.65 | M152: 3368 | N152: 178350 | O152: 2.68%
A153: 143 | B153: Oil_Gas | C153: OIL | D153: 181.85 | E153: 184.62 | F153: 176.58 | G153: 171.32 | H153: 163.28 | I153: 189.88 | J153: 197.92 | K153: 203.18 | L153: 192.65 | M153: 179.35 | N153: 8956365 | O153: 90.12%
A154: 144 | B154: Oil_Gas | C154: ONGC | D154: 140.00 | E154: 140.53 | F154: 137.72 | G154: 135.43 | H154: 132.62 | I154: 142.82 | J154: 145.63 | K154: 147.92 | L154: 143.35 | M154: 138.25 | N154: 74133750 | O154: 28.45%
A155: 145 | B155: Banking | C155: ORIENTBANK | D155: 89.75 | E155: 89.25 | F155: 88.15 | G155: 86.55 | H155: 85.45 | I155: 90.85 | J155: 91.95 | K155: 93.55 | L155: 90.35 | M155: 87.65 | N155: 10538000 | O155: 6.58%
A156: 146 | B156: Textile | C156: PAGEIND | D156: 26693.65 | E156: 26422.73 | F156: 25745.47 | G156: 24797.28 | H156: 24120.02 | I156: 27370.92 | J156: 28048.18 | K156: 28996.37 | L156: 27100 | M156: 25474.55 | N156: 129500 | O156: 15.75%
A157: 147 | B157: Others | C157: PCJEWELLER | D157: 68.70 | E157: 69.42 | F157: 67.18 | G157: 65.67 | H157: 63.43 | I157: 70.93 | J157: 73.17 | K157: 74.68 | L157: 71.65 | M157: 67.9 | N157: 7066000 | O157: 3.43%
A158: 148 | B158: Pharma | C158: PEL | D158: 2206.65 | E158: 2197.70 | F158: 2168.55 | G158: 2130.45 | H158: 2101.30 | I158: 2235.80 | J158: 2264.95 | K158: 2303.05 | L158: 2226.85 | M158: 2159.6 | N158: 2851182 | O158: -0.33%
A159: 149 | B159: Oil_Gas | C159: PETRONET | D159: 214.55 | E159: 214.98 | F159: 211.37 | G159: 208.18 | H159: 204.57 | I159: 218.17 | J159: 221.78 | K159: 224.97 | L159: 218.6 | M159: 211.8 | N159: 12732000 | O159: 6.13%
A160: 150 | B160: Finance | C160: PFC | D160: 85.65 | E160: 88.25 | F160: 82.60 | G160: 79.55 | H160: 73.90 | I160: 91.30 | J160: 96.95 | K160: 100.00 | L160: 93.9 | M160: 85.2 | N160: 41097800 | O160: 31.33%
A161: 151 | B161: FMCG | C161: PIDILITIND | D161: 1163.65 | E161: 1164.15 | F161: 1150.70 | G161: 1137.75 | H161: 1124.30 | I161: 1177.10 | J161: 1190.55 | K161: 1203.50 | L161: 1177.6 | M161: 1151.2 | N161: 3385500 | O161: -0.60%
A162: 152 | B162: Banking | C162: PNB | D162: 70.05 | E162: 70.02 | F162: 69.23 | G162: 68.42 | H162: 67.63 | I162: 70.83 | J162: 71.62 | K162: 72.43 | L162: 70.8 | M162: 69.2 | N162: 106635000 | O162: -0.27%
A163: 153 | B163: Power | C163: POWERGRID | D163: 179.85 | E163: 180.38 | F163: 177.52 | G163: 175.18 | H163: 172.32 | I163: 182.72 | J163: 185.58 | K163: 187.92 | L163: 183.25 | M163: 178.05 | N163: 34828000 | O163: 3.69%
A164: 154 | B164: Power | C164: PTC | D164: 81.50 | E164: 80.55 | F164: 79.45 | G164: 77.40 | H164: 76.30 | I164: 82.60 | J164: 83.70 | K164: 85.75 | L164: 81.65 | M164: 78.5 | N164: 7584000 | O164: -0.84%
A165: 155 | B165: Others | C165: PVR | D165: 1442.05 | E165: 1449.65 | F165: 1425.40 | G165: 1408.75 | H165: 1384.50 | I165: 1466.30 | J165: 1490.55 | K165: 1507.20 | L165: 1473.9 | M165: 1433 | N165: 1225600 | O165: 6.39%
A166: 156 | B166: Cement | C166: RAMCOCEM | D166: 606.40 | E166: 611.33 | F166: 599.77 | G166: 593.13 | H166: 581.57 | I166: 617.97 | J166: 629.53 | K166: 636.17 | L166: 622.9 | M166: 604.7 | N166: 786400 | O166: 0.51%
A167: 157 | B167: Others | C167: RAYMOND | D167: 813.75 | E167: 819.00 | F167: 803.75 | G167: 793.75 | H167: 778.50 | I167: 829.00 | J167: 844.25 | K167: 854.25 | L167: 834.25 | M167: 809 | N167: 3569600 | O167: -0.84%
A168: 158 | B168: Banking | C168: RBLBANK | D168: 546.65 | E168: 548.07 | F168: 535.58 | G168: 524.52 | H168: 512.03 | I168: 559.13 | J168: 571.62 | K168: 582.68 | L168: 560.55 | M168: 537 | N168: 6663600 | O168: 3.04%
A169: 159 | B169: Telecom | C169: RCOM | D169: 14.40 | E169: 13.92 | F169: 13.08 | G169: 11.77 | H169: 10.93 | I169: 15.23 | J169: 16.07 | K169: 17.38 | L169: 14.75 | M169: 12.6 | N169: 75452000 | O169: 9.60%
A170: 160 | B170: Power | C170: RECLTD | D170: 100.25 | E170: 102.65 | F170: 97.15 | G170: 94.05 | H170: 88.55 | I170: 105.75 | J170: 111.25 | K170: 114.35 | L170: 108.15 | M170: 99.55 | N170: 42960000 | O170: 30.44%
A171: 161 | B171: Finance | C171: RELCAPITAL | D171: 226.55 | E171: 228.35 | F171: 222.70 | G171: 218.85 | H171: 213.20 | I171: 232.20 | J171: 237.85 | K171: 241.70 | L171: 234 | M171: 224.5 | N171: 12483000 | O171: 0.59%
A172: 162 | B172: Oil_Gas | C172: RELIANCE | D172: 1172.05 | E172: 1175.80 | F172: 1162.65 | G172: 1153.25 | H172: 1140.10 | I172: 1185.20 | J172: 1198.35 | K172: 1207.75 | L172: 1188.95 | M172: 1166.4 | N172: 40706500 | O172: 2.99%
A173: 163 | B173: Power | C173: RELINFRA | D173: 332.85 | E173: 337.87 | F173: 323.18 | G173: 313.52 | H173: 298.83 | I173: 347.53 | J173: 362.22 | K173: 371.88 | L173: 352.55 | M173: 328.2 | N173: 7043400 | O173: 12.71%
A174: 164 | B174: Others | C174: REPCOHOME | D174: 370.85 | E174: 357.18 | F174: 339.92 | G174: 308.98 | H174: 291.72 | I174: 388.12 | J174: 405.38 | K174: 436.32 | L174: 374.45 | M174: 326.25 | N174: 1417000 | O174: 46.54%
A175: 165 | B175: Power | C175: RPOWER | D175: 29.25 | E175: 29.53 | F175: 28.67 | G175: 28.08 | H175: 27.22 | I175: 30.12 | J175: 30.98 | K175: 31.57 | L175: 30.4 | M175: 28.95 | N175: 41936000 | O175: 0.16%
A176: 166 | B176: Metals | C176: SAIL | D176: 55.50 | E176: 55.38 | F176: 54.72 | G176: 53.93 | H176: 53.27 | I176: 56.17 | J176: 56.83 | K176: 57.62 | L176: 56.05 | M176: 54.6 | N176: 78648000 | O176: 3.47%
A177: 167 | B177: Banking | C177: SBIN | D177: 284.85 | E177: 286.78 | F177: 281.57 | G177: 278.28 | H177: 273.07 | I177: 290.07 | J177: 295.28 | K177: 298.57 | L177: 292 | M177: 283.5 | N177: 81717000 | O177: 1.17%
A178: 168 | B178: Cement | C178: SHREECEM | D178: 16552.25 | E178: 16570.55 | F178: 16415.60 | G178: 16278.95 | H178: 16124.00 | I178: 16707.20 | J178: 16862.15 | K178: 16998.80 | L178: 16725.5 | M178: 16433.9 | N178: 99950 | O178: 0.30%
A179: 169 | B179: Capital_Goods | C179: SIEMENS | D179: 954.25 | E179: 942.58 | F179: 925.17 | G179: 896.08 | H179: 878.67 | I179: 971.67 | J179: 989.08 | K179: 1018.17 | L179: 960 | M179: 913.5 | N179: 2447700 | O179: -21.95%
A180: 170 | B180: Banking | C180: SOUTHBANK | D180: 16.20 | E180: 16.17 | F180: 16.03 | G180: 15.87 | H180: 15.73 | I180: 16.33 | J180: 16.47 | K180: 16.63 | L180: 16.3 | M180: 16 | N180: 101610306 | O180: -0.39%
A181: 171 | B181: Others | C181: SREINFRA | D181: 31.75 | E181: 32.03 | F181: 31.07 | G181: 30.38 | H181: 29.42 | I181: 32.72 | J181: 33.68 | K181: 34.37 | L181: 33 | M181: 31.35 | N181: 11882000 | O181: 1.62%
A182: 172 | B182: Textile | C182: SRF | D182: 2164.70 | E182: 2163.98 | F182: 2144.72 | G182: 2124.73 | H182: 2105.47 | I182: 2183.97 | J182: 2203.23 | K182: 2223.22 | L182: 2183.25 | M182: 2144 | N182: 517500 | O182: 3.92%
A183: 173 | B183: Finance | C183: SRTRANSFIN | D183: 1160.20 | E183: 1169.62 | F183: 1142.23 | G183: 1124.27 | H183: 1096.88 | I183: 1187.58 | J183: 1214.97 | K183: 1232.93 | L183: 1197 | M183: 1151.65 | N183: 4000200 | O183: 3.99%
A184: 174 | B184: Pharma | C184: STAR | D184: 487.20 | E184: 477.97 | F184: 464.48 | G184: 441.77 | H184: 428.28 | I184: 500.68 | J184: 514.17 | K184: 536.88 | L184: 491.45 | M184: 455.25 | N184: 3794800 | O184: 11.90%
A185: 175 | B185: Pharma | C185: SUNPHARMA | D185: 493.60 | E185: 490.30 | F185: 485.60 | G185: 477.60 | H185: 472.90 | I185: 498.30 | J185: 503.00 | K185: 511.00 | L185: 495 | M185: 482.3 | N185: 38808000 | O185: 5.26%
A186: 176 | B186: Media | C186: SUNTV | D186: 592.75 | E186: 598.72 | F186: 583.23 | G186: 573.72 | H186: 558.23 | I186: 608.23 | J186: 623.72 | K186: 633.23 | L186: 614.2 | M186: 589.2 | N186: 7496000 | O186: 7.24%
A187: 177 | B187: Power | C187: SUZLON | D187: 5.20 | E187: 5.20 | F187: 5.15 | G187: 5.10 | H187: 5.05 | I187: 5.25 | J187: 5.30 | K187: 5.35 | L187: 5.25 | M187: 5.15 | N187: 300353000 | O187: 0.01%
A188: 178 | B188: Banking | C188: SYNDIBANK | D188: 34.90 | E188: 35.05 | F188: 34.40 | G188: 33.90 | H188: 33.25 | I188: 35.55 | J188: 36.20 | K188: 36.70 | L188: 35.7 | M188: 34.55 | N188: 22701000 | O188: 1.94%
A189: 179 | B189: Fertilisers | C189: TATACHEM | D189: 699.05 | E189: 703.22 | F189: 690.43 | G189: 681.82 | H189: 669.03 | I189: 711.83 | J189: 724.62 | K189: 733.23 | L189: 716 | M189: 694.6 | N189: 2971500 | O189: 0.51%
A190: 180 | B190: Telecom | C190: TATACOMM | D190: 538.25 | E190: 534.13 | F190: 527.42 | G190: 516.58 | H190: 509.87 | I190: 544.97 | J190: 551.68 | K190: 562.52 | L190: 540.85 | M190: 523.3 | N190: 2585600 | O190: 1.21%
A191: 181 | B191: Technology | C191: TATAELXSI | D191: 1026.85 | E191: 1022.52 | F191: 1013.13 | G191: 999.42 | H191: 990.03 | I191: 1036.23 | J191: 1045.62 | K191: 1059.33 | L191: 1031.9 | M191: 1008.8 | N191: 1375200 | O191: -1.49%
A192: 182 | B192: FMCG | C192: TATAGLOBAL | D192: 219.55 | E192: 219.20 | F192: 217.45 | G192: 215.35 | H192: 213.60 | I192: 221.30 | J192: 223.05 | K192: 225.15 | L192: 220.95 | M192: 217.1 | N192: 10208250 | O192: -0.33%
A193: 183 | B193: Automobile | C193: TATAMOTORS | D193: 172.45 | E193: 172.97 | F193: 170.38 | G193: 168.32 | H193: 165.73 | I193: 175.03 | J193: 177.62 | K193: 179.68 | L193: 175.55 | M193: 170.9 | N193: 58306000 | O193: 1.88%
A194: 184 | B194: Automobile | C194: TATAMTRDVR | D194: 94.00 | E194: 94.03 | F194: 92.97 | G194: 91.93 | H194: 90.87 | I194: 95.07 | J194: 96.13 | K194: 97.17 | L194: 95.1 | M194: 93 | N194: 26524000 | O194: 0.77%
A195: 185 | B195: Power | C195: TATAPOWER | D195: 76.15 | E195: 75.57 | F195: 74.58 | G195: 73.02 | H195: 72.03 | I195: 77.13 | J195: 78.12 | K195: 79.68 | L195: 76.55 | M195: 74 | N195: 41310000 | O195: -1.80%
A196: 186 | B196: Metals | C196: TATASTEEL | D196: 530.55 | E196: 531.12 | F196: 525.03 | G196: 519.52 | H196: 513.43 | I196: 536.63 | J196: 542.72 | K196: 548.23 | L196: 537.2 | M196: 525.6 | N196: 34518574 | O196: 2.17%
A197: 187 | B197: Technology | C197: TCS | D197: 1976.55 | E197: 1980.17 | F197: 1965.33 | G197: 1954.12 | H197: 1939.28 | I197: 1991.38 | J197: 2006.22 | K197: 2017.43 | L197: 1995 | M197: 1968.95 | N197: 10680500 | O197: 4.63%
A198: 188 | B198: Technology | C198: TECHM | D198: 706.60 | E198: 701.87 | F198: 694.73 | G198: 682.87 | H198: 675.73 | I198: 713.73 | J198: 720.87 | K198: 732.73 | L198: 709 | M198: 690 | N198: 12208800 | O198: 1.75%
A199: 189 | B199: FMCG | C199: TITAN | D199: 930.25 | E199: 928.98 | F199: 922.72 | G199: 915.18 | H199: 908.92 | I199: 936.52 | J199: 942.78 | K199: 950.32 | L199: 935.25 | M199: 921.45 | N199: 12650250 | O199: 0.67%
A200: 190 | B200: Pharma | C200: TORNTPHARM | D200: 1766.05 | E200: 1745.02 | F200: 1716.03 | G200: 1666.02 | H200: 1637.03 | I200: 1795.03 | J200: 1824.02 | K200: 1874.03 | L200: 1774 | M200: 1695 | N200: 371500 | O200: -5.59%
A201: 191 | B201: Power | C201: TORNTPOWER | D201: 270.85 | E201: 269.30 | F201: 262.75 | G201: 254.65 | H201: 248.10 | I201: 277.40 | J201: 283.95 | K201: 292.05 | L201: 275.85 | M201: 261.2 | N201: 3150000 | O201: 7.25%
A202: 192 | B202: Media | C202: TV18BRDCST | D202: 35.85 | E202: 35.65 | F202: 35.30 | G202: 34.75 | H202: 34.40 | I202: 36.20 | J202: 36.55 | K202: 37.10 | L202: 36 | M202: 35.1 | N202: 46350500 | O202: -1.53%
A203: 193 | B203: Automobile | C203: TVSMOTOR | D203: 557.55 | E203: 554.20 | F203: 548.65 | G203: 539.75 | H203: 534.20 | I203: 563.10 | J203: 568.65 | K203: 577.55 | L203: 559.75 | M203: 545.3 | N203: 6181000 | O203: 6.17%
A204: 194 | B204: FMCG | C204: UBL | D204: 1244.65 | E204: 1245.52 | F204: 1234.18 | G204: 1223.72 | H204: 1212.38 | I204: 1255.98 | J204: 1267.32 | K204: 1277.78 | L204: 1256.85 | M204: 1235.05 | N204: 2051000 | O204: 9.08%
A205: 195 | B205: Finance | C205: UJJIVAN | D205: 219.10 | E205: 219.90 | F205: 216.25 | G205: 213.40 | H205: 209.75 | I205: 222.75 | J205: 226.40 | K205: 229.25 | L205: 223.55 | M205: 217.05 | N205: 3329600 | O205: 2.36%
A206: 196 | B206: Cement | C206: ULTRACEMCO | D206: 4014.30 | E206: 4037.68 | F206: 3981.62 | G206: 3948.93 | H206: 3892.87 | I206: 4070.37 | J206: 4126.43 | K206: 4159.12 | L206: 4093.75 | M206: 4005 | N206: 2115000 | O206: 2.19%
... 24 more rows

Sheet Cash Intra
M5: Back to Main Page
A6: FOR INTRA DAY TRADING | K6: =Main!B10 -> 2018-12-03
A8: Sr.no | B8: Scrip | C8: CLOSE RATE | D8: Pivot Point | E8: Supports | H8: Resistances
C9: Point | E9: S1 | F9: S2 | G9: S3 | H9: R1 | I9: R2 | J9: R3 | K9: HIGH | L9: LOW | M9: Total Trade Quanity in Lakhs
A10: 1 | B10: Nifty 50 | C10: 10876.75 | D10: 10878.10 | E10: 10833.75 | F10: 10790.75 | G10: 10746.40 | H10: 10921.10 | I10: 10965.45 | J10: 11008.45 | K10: 10922.45 | L10: 10835.1
A11: 2 | B11: Nifty Bank | C11: 26862.95 | D11: 26880.18 | E11: 26747.67 | F11: 26632.38 | G11: 26499.87 | H11: 26995.47 | I11: 27127.98 | J11: 27243.27 | K11: 27012.7 | L11: 26764.9
A12: 3 | B12: Nifty CPSE | C12: 1967.65 | D12: 1975.82 | E12: 1941.53 | F12: 1915.42 | G12: 1881.13 | H12: 2001.93 | I12: 2036.22 | J12: 2062.33 | K12: 2010.1 | L12: 1949.7
A13: 4 | B13: Nifty Infra | C13: 3087 | D13: 3082.83 | E13: 3063.52 | F13: 3040.03 | G13: 3020.72 | H13: 3106.32 | I13: 3125.63 | J13: 3149.12 | K13: 3102.15 | L13: 3059.35
A14: 5 | B14: Nifty IT | C14: 14638.05 | D14: 14614.48 | E14: 14518.17 | F14: 14398.28 | G14: 14301.97 | H14: 14734.37 | I14: 14830.68 | J14: 14950.57 | K14: 14710.8 | L14: 14494.6
A15: 6 | B15: Nifty PSE | C15: 3212.65 | D15: 3220.37 | E15: 3176.48 | F15: 3140.32 | G15: 3096.43 | H15: 3256.53 | I15: 3300.42 | J15: 3336.58 | K15: 3264.25 | L15: 3184.2
A16: 7 | B16: Nifty Midcap 50 | C16: 4780 | D16: 4779.68 | E16: 4762.72 | F16: 4745.43 | G16: 4728.47 | H16: 4796.97 | I16: 4813.93 | J16: 4831.22 | K16: 4796.65 | L16: 4762.4
A17: 8 | B17: ABB | C17: 1408.7 | D17: 1398.28 | E17: 1384.47 | F17: 1360.23 | G17: 1346.42 | H17: 1422.52 | I17: 1436.33 | J17: 1460.57 | K17: 1412.1 | L17: 1374.05 | M17: 1.36537
A18: 9 | B18: ACC | C18: 1485.5 | D18: 1482.23 | E18: 1466.47 | F18: 1447.43 | G18: 1431.67 | H18: 1501.27 | I18: 1517.03 | J18: 1536.07 | K18: 1498 | L18: 1463.2 | M18: 6.00458
A19: 10 | B19: AIAENG | C19: 1699.85 | D19: 1663.28 | E19: 1621.57 | F19: 1543.28 | G19: 1501.57 | H19: 1741.57 | I19: 1783.28 | J19: 1861.57 | K19: 1705 | L19: 1585 | M19: 1.90258
A20: 11 | B20: AUBANK | C20: 568.25 | D20: 575.67 | E20: 551.28 | F20: 534.32 | G20: 509.93 | H20: 592.63 | I20: 617.02 | J20: 633.98 | K20: 600.05 | L20: 558.7 | M20: 27.93659
A21: 12 | B21: ADANIENT | C21: 165 | D21: 167.77 | E21: 160.73 | F21: 156.47 | G21: 149.43 | H21: 172.03 | I21: 179.07 | J21: 183.33 | K21: 174.8 | L21: 163.5 | M21: 94.05499
A22: 13 | B22: ADANIPORTS | C22: 365.65 | D22: 367.95 | E22: 361.30 | F22: 356.95 | G22: 350.30 | H22: 372.30 | I22: 378.95 | J22: 383.30 | K22: 374.6 | L22: 363.6 | M22: 41.37466
A23: 14 | B23: ADANIPOWER | C23: 55.5 | D23: 55.37 | E23: 54.43 | F23: 53.37 | G23: 52.43 | H23: 56.43 | I23: 57.37 | J23: 58.43 | K23: 56.3 | L23: 54.3 | M23: 302.03347
A24: 15 | B24: ABFRL | C24: 181.05 | D24: 182.73 | E24: 178.37 | F24: 175.68 | G24: 171.32 | H24: 185.42 | I24: 189.78 | J24: 192.47 | K24: 187.1 | L24: 180.05 | M24: 3.25748
A25: 16 | B25: AJANTPHARM | C25: 1168.55 | D25: 1157.88 | E25: 1125.77 | F25: 1082.98 | G25: 1050.87 | H25: 1200.67 | I25: 1232.78 | J25: 1275.57 | K25: 1190 | L25: 1115.1 | M25: 5.97093
A26: 17 | B26: ALKEM | C26: 1912.65 | D26: 1894.87 | E26: 1869.78 | F26: 1826.92 | G26: 1801.83 | H26: 1937.73 | I26: 1962.82 | J26: 2005.68 | K26: 1919.95 | L26: 1852 | M26: 0.8668
A27: 18 | B27: AMARAJABAT | C27: 709.25 | D27: 714.80 | E27: 701.45 | F27: 693.65 | G27: 680.30 | H27: 722.60 | I27: 735.95 | J27: 743.75 | K27: 728.15 | L27: 707 | M27: 8.5727
A28: 19 | B28: AMBUJACEM | C28: 217.45 | D28: 218.02 | E28: 215.13 | F28: 212.82 | G28: 209.93 | H28: 220.33 | I28: 223.22 | J28: 225.53 | K28: 220.9 | L28: 215.7 | M28: 43.96332
A29: 20 | B29: APOLLOHOSP | C29: 1264.8 | D29: 1268.25 | E29: 1246.75 | F29: 1228.70 | G29: 1207.20 | H29: 1286.30 | I29: 1307.80 | J29: 1325.85 | K29: 1289.75 | L29: 1250.2 | M29: 10.35249
A30: 21 | B30: APOLLOTYRE | C30: 239.05 | D30: 237.90 | E30: 235.50 | F30: 231.95 | G30: 229.55 | H30: 241.45 | I30: 243.85 | J30: 247.40 | K30: 240.3 | L30: 234.35 | M30: 21.80338
A31: 22 | B31: ARVIND | C31: 102.9 | D31: 102.62 | E31: 100.48 | F31: 98.07 | G31: 95.93 | H31: 105.03 | I31: 107.17 | J31: 109.58 | K31: 104.75 | L31: 100.2 | M31: 132.68509
A32: 23 | B32: ASHOKLEY | C32: 112.35 | D32: 111.75 | E32: 110.85 | F32: 109.35 | G32: 108.45 | H32: 113.25 | I32: 114.15 | J32: 115.65 | K32: 112.65 | L32: 110.25 | M32: 243.50704
A33: 24 | B33: ASIANPAINT | C33: 1345.95 | D33: 1349.95 | E33: 1338.15 | F33: 1330.35 | G33: 1318.55 | H33: 1357.75 | I33: 1369.55 | J33: 1377.35 | K33: 1361.75 | L33: 1342.15 | M33: 10.30541
A34: 25 | B34: AUROPHARMA | C34: 810.7 | D34: 804.55 | E34: 794.15 | F34: 777.60 | G34: 767.20 | H34: 821.10 | I34: 831.50 | J34: 848.05 | K34: 814.95 | L34: 788 | M34: 42.07727
A35: 26 | B35: DMART | C35: 1492.5 | D35: 1476.83 | E35: 1453.67 | F35: 1414.83 | G35: 1391.67 | H35: 1515.67 | I35: 1538.83 | J35: 1577.67 | K35: 1500 | L35: 1438 | M35: 13.60732
A36: 27 | B36: AXISBANK | C36: 625.75 | D36: 628.33 | E36: 621.42 | F36: 617.08 | G36: 610.17 | H36: 632.67 | I36: 639.58 | J36: 643.92 | K36: 635.25 | L36: 624 | M36: 89.84998
A37: 28 | B37: BAJAJ-AUTO | C37: 2745.7 | D37: 2739.13 | E37: 2708.57 | F37: 2671.43 | G37: 2640.87 | H37: 2776.27 | I37: 2806.83 | J37: 2843.97 | K37: 2769.7 | L37: 2702 | M37: 6.90175
A38: 29 | B38: BAJFINANCE | C38: 2537.7 | D38: 2536.38 | E38: 2508.37 | F38: 2479.03 | G38: 2451.02 | H38: 2565.72 | I38: 2593.73 | J38: 2623.07 | K38: 2564.4 | L38: 2507.05 | M38: 27.37341
A39: 30 | B39: BAJAJFINSV | C39: 5994.35 | D39: 6018.12 | E39: 5936.23 | F39: 5878.12 | G39: 5796.23 | H39: 6076.23 | I39: 6158.12 | J39: 6216.23 | K39: 6100 | L39: 5960 | M39: 3.58307
A40: 31 | B40: BALKRISIND | C40: 960.4 | D40: 963.47 | E40: 951.93 | F40: 943.47 | G40: 931.93 | H40: 971.93 | I40: 983.47 | J40: 991.93 | K40: 975 | L40: 955 | M40: 9.00245
A41: 32 | B41: BANKBARODA | C41: 105.05 | D41: 105.13 | E41: 103.62 | F41: 102.18 | G41: 100.67 | H41: 106.57 | I41: 108.08 | J41: 109.52 | K41: 106.65 | L41: 103.7 | M41: 147.41115
A42: 33 | B42: BANKINDIA | C42: 84.85 | D42: 85.07 | E42: 83.88 | F42: 82.92 | G42: 81.73 | H42: 86.03 | I42: 87.22 | J42: 88.18 | K42: 86.25 | L42: 84.1 | M42: 52.59126
A43: 34 | B43: BATAINDIA | C43: 1043.3 | D43: 1031.07 | E43: 1012.23 | F43: 981.17 | G43: 962.33 | H43: 1062.13 | I43: 1080.97 | J43: 1112.03 | K43: 1049.9 | L43: 1000 | M43: 20.93515
A44: 35 | B44: BERGEPAINT | C44: 319.8 | D44: 320.77 | E44: 317.23 | F44: 314.67 | G44: 311.13 | H44: 323.33 | I44: 326.87 | J44: 329.43 | K44: 324.3 | L44: 318.2 | M44: 6.46632
A45: 36 | B45: BEL | C45: 83.25 | D45: 83.80 | E45: 82.20 | F45: 81.15 | G45: 79.55 | H45: 84.85 | I45: 86.45 | J45: 87.50 | K45: 85.4 | L45: 82.75 | M45: 117.36238
A46: 37 | B46: BHARATFIN | C46: 1023.05 | D46: 1031.47 | E46: 1003.73 | F46: 984.42 | G46: 956.68 | H46: 1050.78 | I46: 1078.52 | J46: 1097.83 | K46: 1059.2 | L46: 1012.15 | M46: 23.32435
A47: 38 | B47: BHARATFORG | C47: 563.85 | D47: 567.32 | E47: 558.63 | F47: 553.42 | G47: 544.73 | H47: 572.53 | I47: 581.22 | J47: 586.43 | K47: 576 | L47: 562.1 | M47: 18.64406
A48: 39 | B48: BHEL | C48: 68.15 | D48: 68.22 | E48: 66.08 | F48: 64.02 | G48: 61.88 | H48: 70.28 | I48: 72.42 | J48: 74.48 | K48: 70.35 | L48: 66.15 | M48: 1232.27256
A49: 40 | B49: BPCL | C49: 324.4 | D49: 325.53 | E49: 319.27 | F49: 314.13 | G49: 307.87 | H49: 330.67 | I49: 336.93 | J49: 342.07 | K49: 331.8 | L49: 320.4 | M49: 91.21147
A50: 41 | B50: BHARTIARTL | C50: 313.5 | D50: 316.17 | E50: 308.03 | F50: 302.57 | G50: 294.43 | H50: 321.63 | I50: 329.77 | J50: 335.23 | K50: 324.3 | L50: 310.7 | M50: 59.44313
A51: 42 | B51: INFRATEL | C51: 256.75 | D51: 259.33 | E51: 252.72 | F51: 248.68 | G51: 242.07 | H51: 263.37 | I51: 269.98 | J51: 274.02 | K51: 265.95 | L51: 255.3 | M51: 33.89542
A52: 43 | B52: BIOCON | C52: 624.35 | D52: 617.80 | E52: 609.20 | F52: 594.05 | G52: 585.45 | H52: 632.95 | I52: 641.55 | J52: 656.70 | K52: 626.4 | L52: 602.65 | M52: 25.88196
A53: 44 | B53: BOSCHLTD | C53: 18973.25 | D53: 18888.83 | E53: 18734.42 | F53: 18495.58 | G53: 18341.17 | H53: 19127.67 | I53: 19282.08 | J53: 19520.92 | K53: 19043.25 | L53: 18650 | M53: 0.31941
A54: 45 | B54: BRITANNIA | C54: 3169.75 | D54: 3135.85 | E54: 3074.70 | F54: 2979.65 | G54: 2918.50 | H54: 3230.90 | I54: 3292.05 | J54: 3387.10 | K54: 3197 | L54: 3040.8 | M54: 9.54568
A55: 46 | B55: CRISIL | C55: 1500.35 | D55: 1491.13 | E55: 1474.27 | F55: 1448.18 | G55: 1431.32 | H55: 1517.22 | I55: 1534.08 | J55: 1560.17 | K55: 1508 | L55: 1465.05 | M55: 0.17948
A56: 47 | B56: CADILAHC | C56: 365.3 | D56: 362.37 | E56: 357.28 | F56: 349.27 | G56: 344.18 | H56: 370.38 | I56: 375.47 | J56: 383.48 | K56: 367.45 | L56: 354.35 | M56: 12.22488
A57: 48 | B57: CANBK | C57: 255.8 | D57: 257.93 | E57: 251.87 | F57: 247.93 | G57: 241.87 | H57: 261.87 | I57: 267.93 | J57: 271.87 | K57: 264 | L57: 254 | M57: 55.76043
A58: 49 | B58: CASTROLIND | C58: 151 | D58: 152.60 | E58: 148.80 | F58: 146.60 | G58: 142.80 | H58: 154.80 | I58: 158.60 | J58: 160.80 | K58: 156.4 | L58: 150.4 | M58: 10.81315
A59: 50 | B59: CENTRALBK | C59: 29 | D59: 29.12 | E59: 28.78 | F59: 28.57 | G59: 28.23 | H59: 29.33 | I59: 29.67 | J59: 29.88 | K59: 29.45 | L59: 28.9 | M59: 2.0605
A60: 51 | B60: CENTURYTEX | C60: 921 | D60: 914.53 | E60: 902.32 | F60: 883.63 | G60: 871.42 | H60: 933.22 | I60: 945.43 | J60: 964.12 | K60: 926.75 | L60: 895.85 | M60: 6.36019
A61: 52 | B61: CHOLAFIN | C61: 1314 | D61: 1320.63 | E61: 1298.77 | F61: 1283.53 | G61: 1261.67 | H61: 1335.87 | I61: 1357.73 | J61: 1372.97 | K61: 1342.5 | L61: 1305.4 | M61: 1.86743
A62: 53 | B62: CIPLA | C62: 540.85 | D62: 536.62 | E62: 531.23 | F62: 521.62 | G62: 516.23 | H62: 546.23 | I62: 551.62 | J62: 561.23 | K62: 542 | L62: 527 | M62: 38.55382
A63: 54 | B63: COALINDIA | C63: 244.9 | D63: 244.12 | E63: 239.83 | F63: 234.77 | G63: 230.48 | H63: 249.18 | I63: 253.47 | J63: 258.53 | K63: 248.4 | L63: 239.05 | M63: 127.89209
A64: 55 | B64: COLPAL | C64: 1219.65 | D64: 1220.43 | E64: 1201.22 | F64: 1182.78 | G64: 1163.57 | H64: 1238.87 | I64: 1258.08 | J64: 1276.52 | K64: 1239.65 | L64: 1202 | M64: 4.56503
A65: 56 | B65: CONCOR | C65: 674.95 | D65: 671.18 | E65: 661.57 | F65: 648.18 | G65: 638.57 | H65: 684.57 | I65: 694.18 | J65: 707.57 | K65: 680.8 | L65: 657.8 | M65: 8.44954
A66: 57 | B66: COROMANDEL | C66: 406.55 | D66: 406.08 | E66: 404.17 | F66: 401.78 | G66: 399.87 | H66: 408.47 | I66: 410.38 | J66: 412.77 | K66: 408 | L66: 403.7 | M66: 0.78488
A67: 58 | B67: CROMPTON | C67: 216.95 | D67: 215.33 | E67: 213.67 | F67: 210.38 | G67: 208.72 | H67: 218.62 | I67: 220.28 | J67: 223.57 | K67: 217 | L67: 212.05 | M67: 3.85542
A68: 59 | B68: CUMMINSIND | C68: 807 | D68: 809.32 | E68: 799.68 | F68: 792.37 | G68: 782.73 | H68: 816.63 | I68: 826.27 | J68: 833.58 | K68: 818.95 | L68: 802 | M68: 5.05611
A69: 60 | B69: DLF | C69: 178.1 | D69: 178.02 | E69: 176.03 | F69: 173.97 | G69: 171.98 | H69: 180.08 | I69: 182.07 | J69: 184.13 | K69: 180 | L69: 175.95 | M69: 35.13726
A70: 61 | B70: DABUR | C70: 409.1 | D70: 411.35 | E70: 404.30 | F70: 399.50 | G70: 392.45 | H70: 416.15 | I70: 423.20 | J70: 428.00 | K70: 418.4 | L70: 406.55 | M70: 44.71587
A71: 63 | B71: DHFL | C71: 212.75 | D71: 212.20 | E71: 207.55 | F71: 202.35 | G71: 197.70 | H71: 217.40 | I71: 222.05 | J71: 227.25 | K71: 216.85 | L71: 207 | M71: 212.39611
A72: 64 | B72: DISHTV | C72: 38.3 | D72: 38.52 | E72: 37.83 | F72: 37.37 | G72: 36.68 | H72: 38.98 | I72: 39.67 | J72: 40.13 | K72: 39.2 | L72: 38.05 | M72: 93.89157
A73: 65 | B73: DIVISLAB | C73: 1439.35 | D73: 1446.82 | E73: 1412.53 | F73: 1385.72 | G73: 1351.43 | H73: 1473.63 | I73: 1507.92 | J73: 1534.73 | K73: 1481.1 | L73: 1420 | M73: 122.73274
A74: 66 | B74: LALPATHLAB | C74: 862.45 | D74: 866.50 | E74: 848.00 | F74: 833.55 | G74: 815.05 | H74: 880.95 | I74: 899.45 | J74: 913.90 | K74: 885 | L74: 852.05 | M74: 4.15293
A75: 67 | B75: DRREDDY | C75: 2722.2 | D75: 2704.60 | E75: 2674.65 | F75: 2627.10 | G75: 2597.15 | H75: 2752.15 | I75: 2782.10 | J75: 2829.65 | K75: 2734.55 | L75: 2657.05 | M75: 14.91828
A76: 68 | B76: EDELWEISS | C76: 169.7 | D76: 169.75 | E76: 167.50 | F76: 165.30 | G76: 163.05 | H76: 171.95 | I76: 174.20 | J76: 176.40 | K76: 172 | L76: 167.55 | M76: 23.53768
A77: 69 | B77: EICHERMOT | C77: 23405.3 | D77: 23485.08 | E77: 23230.22 | F77: 23055.13 | G77: 22800.27 | H77: 23660.17 | I77: 23915.03 | J77: 24090.12 | K77: 23739.95 | L77: 23310 | M77: 0.8649
A78: 70 | B78: EMAMILTD | C78: 437.45 | D78: 435.52 | E78: 427.08 | F78: 416.72 | G78: 408.28 | H78: 445.88 | I78: 454.32 | J78: 464.68 | K78: 443.95 | L78: 425.15 | M78: 5.58754
A79: 71 | B79: ENDURANCE | C79: 1118.8 | D79: 1104.67 | E79: 1085.18 | F79: 1051.57 | G79: 1032.08 | H79: 1138.28 | I79: 1157.77 | J79: 1191.38 | K79: 1124.15 | L79: 1071.05 | M79: 0.22864
A80: 72 | B80: ENGINERSIN | C80: 117.5 | D80: 117.62 | E80: 116.43 | F80: 115.37 | G80: 114.18 | H80: 118.68 | I80: 119.87 | J80: 120.93 | K80: 118.8 | L80: 116.55 | M80: 6.40019
A81: 73 | B81: EXIDEIND | C81: 262.8 | D81: 261.15 | E81: 258.65 | F81: 254.50 | G81: 252.00 | H81: 265.30 | I81: 267.80 | J81: 271.95 | K81: 263.65 | L81: 257 | M81: 15.50129
A82: 74 | B82: FEDERALBNK | C82: 85.3 | D82: 85.42 | E82: 84.58 | F82: 83.87 | G82: 83.03 | H82: 86.13 | I82: 86.97 | J82: 87.68 | K82: 86.25 | L82: 84.7 | M82: 133.68505
A83: 75 | B83: GAIL | C83: 343.05 | D83: 343.02 | E83: 337.78 | F83: 332.52 | G83: 327.28 | H83: 348.28 | I83: 353.52 | J83: 358.78 | K83: 348.25 | L83: 337.75 | M83: 58.32509
A84: 76 | B84: GMRINFRA | C84: 16.1 | D84: 16.07 | E84: 15.93 | F84: 15.77 | G84: 15.63 | H84: 16.23 | I84: 16.37 | J84: 16.53 | K84: 16.2 | L84: 15.9 | M84: 123.99604
A85: 77 | B85: GSKCONS | C85: 7268.2 | D85: 7262.05 | E85: 7226.15 | F85: 7184.10 | G85: 7148.20 | H85: 7304.10 | I85: 7340.00 | J85: 7382.05 | K85: 7297.95 | L85: 7220 | M85: 0.10881
A86: 78 | B86: GLAXO | C86: 1360.5 | D86: 1359.38 | E86: 1341.22 | F86: 1321.93 | G86: 1303.77 | H86: 1378.67 | I86: 1396.83 | J86: 1416.12 | K86: 1377.55 | L86: 1340.1 | M86: 0.11965
A87: 79 | B87: GLENMARK | C87: 653.15 | D87: 649.72 | E87: 643.88 | F87: 634.62 | G87: 628.78 | H87: 658.98 | I87: 664.82 | J87: 674.08 | K87: 655.55 | L87: 640.45 | M87: 19.36061
A88: 80 | B88: GODREJCP | C88: 750.35 | D88: 749.45 | E88: 745.90 | F88: 741.45 | G88: 737.90 | H88: 753.90 | I88: 757.45 | J88: 761.90 | K88: 753 | L88: 745 | M88: 10.08042
A89: 81 | B89: GODREJIND | C89: 549.45 | D89: 545.27 | E89: 539.68 | F89: 529.92 | G89: 524.33 | H89: 555.03 | I89: 560.62 | J89: 570.38 | K89: 550.85 | L89: 535.5 | M89: 9.26561
A90: 82 | B90: GRUH | C90: 296.7 | D90: 293.97 | E90: 289.93 | F90: 283.17 | G90: 279.13 | H90: 300.73 | I90: 304.77 | J90: 311.53 | K90: 298 | L90: 287.2 | M90: 4.07624
A91: 83 | B91: GPPL | C91: 95 | D91: 95.72 | E91: 93.78 | F91: 92.57 | G91: 90.63 | H91: 96.93 | I91: 98.87 | J91: 100.08 | K91: 97.65 | L91: 94.5 | M91: 1.03655
A92: 84 | B92: GSPL | C92: 187.15 | D92: 186.80 | E92: 184.60 | F92: 182.05 | G92: 179.85 | H92: 189.35 | I92: 191.55 | J92: 194.10 | K92: 189 | L92: 184.25 | M92: 1.14886
A93: 85 | B93: HCLTECH | C93: 1015 | D93: 1015.18 | E93: 1004.07 | F93: 993.13 | G93: 982.02 | H93: 1026.12 | I93: 1037.23 | J93: 1048.17 | K93: 1026.3 | L93: 1004.25 | M93: 21.09694
A94: 86 | B94: HDFCBANK | C94: 2128.45 | D94: 2125.33 | E94: 2113.12 | F94: 2097.78 | G94: 2085.57 | H94: 2140.67 | I94: 2152.88 | J94: 2168.22 | K94: 2137.55 | L94: 2110 | M94: 32.60231
A95: 87 | B95: HAVELLS | C95: 684.7 | D95: 689.17 | E95: 671.33 | F95: 657.97 | G95: 640.13 | H95: 702.53 | I95: 720.37 | J95: 733.73 | K95: 707 | L95: 675.8 | M95: 35.8915
A96: 88 | B96: HEROMOTOCO | C96: 3055.2 | D96: 3045.67 | E96: 3029.53 | F96: 3003.87 | G96: 2987.73 | H96: 3071.33 | I96: 3087.47 | J96: 3113.13 | K96: 3061.8 | L96: 3020 | M96: 4.18913
A97: 89 | B97: HEXAWARE | C97: 323.95 | D97: 322.13 | E97: 315.27 | F97: 306.58 | G97: 299.72 | H97: 330.82 | I97: 337.68 | J97: 346.37 | K97: 329 | L97: 313.45 | M97: 21.88045
A98: 90 | B98: HINDALCO | C98: 226.2 | D98: 224.77 | E98: 222.13 | F98: 218.07 | G98: 215.43 | H98: 228.83 | I98: 231.47 | J98: 235.53 | K98: 227.4 | L98: 220.7 | M98: 93.788
A99: 91 | B99: HINDPETRO | C99: 232.35 | D99: 236.32 | E99: 226.33 | F99: 220.32 | G99: 210.33 | H99: 242.33 | I99: 252.32 | J99: 258.33 | K99: 246.3 | L99: 230.3 | M99: 99.34232
A100: 92 | B100: HINDUNILVR | C100: 1754 | D100: 1764.85 | E100: 1731.40 | F100: 1708.80 | G100: 1675.35 | H100: 1787.45 | I100: 1820.90 | J100: 1843.50 | K100: 1798.3 | L100: 1742.25 | M100: 23.73749
A101: 93 | B101: HINDZINC | C101: 266.7 | D101: 266.17 | E101: 263.53 | F101: 260.37 | G101: 257.73 | H101: 269.33 | I101: 271.97 | J101: 275.13 | K101: 268.8 | L101: 263 | M101: 6.14826
A102: 94 | B102: HUDCO | C102: 43 | D102: 43.00 | E102: 42.60 | F102: 42.20 | G102: 41.80 | H102: 43.40 | I102: 43.80 | J102: 44.20 | K102: 43.4 | L102: 42.6 | M102: 5.32484
A103: 95 | B103: HDFC | C103: 1989 | D103: 1983.52 | E103: 1968.28 | F103: 1947.57 | G103: 1932.33 | H103: 2004.23 | I103: 2019.47 | J103: 2040.18 | K103: 1998.75 | L103: 1962.8 | M103: 42.36401
A104: 96 | B104: ITC | C104: 285.8 | D104: 286.87 | E104: 283.73 | F104: 281.67 | G104: 278.53 | H104: 288.93 | I104: 292.07 | J104: 294.13 | K104: 290 | L104: 284.8 | M104: 86.39876
A105: 97 | B105: ICICIBANK | C105: 355.15 | D105: 357.98 | E105: 350.97 | F105: 346.78 | G105: 339.77 | H105: 362.17 | I105: 369.18 | J105: 373.37 | K105: 365 | L105: 353.8 | M105: 218.93877
A106: 98 | B106: ICICIPRULI | C106: 325.25 | D106: 323.40 | E106: 318.45 | F106: 311.65 | G106: 306.70 | H106: 330.20 | I106: 335.15 | J106: 341.95 | K106: 328.35 | L106: 316.6 | M106: 8.90176
A107: 99 | B107: IDBI | C107: 59.5 | D107: 59.75 | E107: 59.10 | F107: 58.70 | G107: 58.05 | H107: 60.15 | I107: 60.80 | J107: 61.20 | K107: 60.4 | L107: 59.35 | M107: 37.08418
A108: 100 | B108: IDFCBANK | C108: 38.45 | D108: 38.42 | E108: 38.08 | F108: 37.72 | G108: 37.38 | H108: 38.78 | I108: 39.12 | J108: 39.48 | K108: 38.75 | L108: 38.05 | M108: 65.75062
A109: 101 | B109: IDFC | C109: 40.95 | D109: 40.60 | E109: 40.05 | F109: 39.15 | G109: 38.60 | H109: 41.50 | I109: 42.05 | J109: 42.95 | K109: 41.15 | L109: 39.7 | M109: 28.63847
A110: 102 | B110: IRB | C110: 149.25 | D110: 149.38 | E110: 147.47 | F110: 145.68 | G110: 143.77 | H110: 151.17 | I110: 153.08 | J110: 154.87 | K110: 151.3 | L110: 147.6 | M110: 23.20245
A111: 103 | B111: IDEA | C111: 35.3 | D111: 36.02 | E111: 34.38 | F111: 33.47 | G111: 31.83 | H111: 36.93 | I111: 38.57 | J111: 39.48 | K111: 37.65 | L111: 35.1 | M111: 463.54925
A112: 104 | B112: IBULHSGFIN | C112: 715.6 | D112: 716.23 | E112: 707.47 | F112: 699.33 | G112: 690.57 | H112: 724.37 | I112: 733.13 | J112: 741.27 | K112: 725 | L112: 708.1 | M112: 91.62147
A113: 105 | B113: INDIANB | C113: 229.8 | D113: 228.57 | E113: 224.88 | F113: 219.97 | G113: 216.28 | H113: 233.48 | I113: 237.17 | J113: 242.08 | K113: 232.25 | L113: 223.65 | M113: 16.64145
A114: 106 | B114: INDHOTEL | C114: 144.25 | D114: 143.22 | E114: 141.18 | F114: 138.12 | G114: 136.08 | H114: 146.28 | I114: 148.32 | J114: 151.38 | K114: 145.25 | L114: 140.15 | M114: 15.12262
A115: 107 | B115: IOC | C115: 134.6 | D115: 134.30 | E115: 132.70 | F115: 130.80 | G115: 129.20 | H115: 136.20 | I115: 137.80 | J115: 139.70 | K115: 135.9 | L115: 132.4 | M115: 301.22132
A116: 108 | B116: IGL | C116: 263.15 | D116: 262.33 | E116: 259.97 | F116: 256.78 | G116: 254.42 | H116: 265.52 | I116: 267.88 | J116: 271.07 | K116: 264.7 | L116: 259.15 | M116: 15.78443
A117: 109 | B117: INDUSINDBK | C117: 1631.8 | D117: 1643.08 | E117: 1611.72 | F117: 1591.63 | G117: 1560.27 | H117: 1663.17 | I117: 1694.53 | J117: 1714.62 | K117: 1674.45 | L117: 1623 | M117: 13.91187
A118: 110 | B118: NAUKRI | C118: 1545.6 | D118: 1555.20 | E118: 1525.40 | F118: 1505.20 | G118: 1475.40 | H118: 1575.40 | I118: 1605.20 | J118: 1625.40 | K118: 1585 | L118: 1535 | M118: 1.6364
A119: 111 | B119: INFY | C119: 667.45 | D119: 666.80 | E119: 661.60 | F119: 655.75 | G119: 650.55 | H119: 672.65 | I119: 677.85 | J119: 683.70 | K119: 672 | L119: 660.95 | M119: 104.45773
A120: 112 | B120: INDIGO | C120: 1038.25 | D120: 1039.78 | E120: 1026.92 | F120: 1015.58 | G120: 1002.72 | H120: 1051.12 | I120: 1063.98 | J120: 1075.32 | K120: 1052.65 | L120: 1028.45 | M120: 5.75053
A121: 113 | B121: IPCALAB | C121: 796.45 | D121: 791.82 | E121: 778.63 | F121: 760.82 | G121: 747.63 | H121: 809.63 | I121: 822.82 | J121: 840.63 | K121: 805 | L121: 774 | M121: 1.96017
A122: 114 | B122: JSWENERGY | C122: 68.35 | D122: 68.23 | E122: 67.87 | F122: 67.38 | G122: 67.02 | H122: 68.72 | I122: 69.08 | J122: 69.57 | K122: 68.6 | L122: 67.75 | M122: 9.24147
A123: 115 | B123: JSWSTEEL | C123: 314.25 | D123: 316.83 | E123: 310.87 | F123: 307.48 | G123: 301.52 | H123: 320.22 | I123: 326.18 | J123: 329.57 | K123: 322.8 | L123: 313.45 | M123: 51.61526
A124: 116 | B124: JINDALSTEL | C124: 154.05 | D124: 154.28 | E124: 151.37 | F124: 148.68 | G124: 145.77 | H124: 156.97 | I124: 159.88 | J124: 162.57 | K124: 157.2 | L124: 151.6 | M124: 109.03611
A125: 117 | B125: JUBLFOOD | C125: 1258.05 | D125: 1250.23 | E125: 1227.82 | F125: 1197.58 | G125: 1175.17 | H125: 1280.47 | I125: 1302.88 | J125: 1333.12 | K125: 1272.65 | L125: 1220 | M125: 12.45114
A126: 118 | B126: JUBILANT | C126: 774.8 | D126: 767.77 | E126: 755.53 | F126: 736.27 | G126: 724.03 | H126: 787.03 | I126: 799.27 | J126: 818.53 | K126: 780 | L126: 748.5 | M126: 6.74968
A127: 119 | B127: KARURVYSYA | C127: 79 | D127: 79.40 | E127: 78.20 | F127: 77.40 | G127: 76.20 | H127: 80.20 | I127: 81.40 | J127: 82.20 | K127: 80.6 | L127: 78.6 | M127: 20.0512
A128: 120 | B128: KOTAKBANK | C128: 1233.95 | D128: 1223.35 | E128: 1208.30 | F128: 1182.65 | G128: 1167.60 | H128: 1249.00 | I128: 1264.05 | J128: 1289.70 | K128: 1238.4 | L128: 1197.7 | M128: 30.05495
A129: 121 | B129: L&TFH | C129: 144.2 | D129: 144.45 | E129: 143.25 | F129: 142.30 | G129: 141.10 | H129: 145.40 | I129: 146.60 | J129: 147.55 | K129: 145.65 | L129: 143.5 | M129: 55.39236
A130: 122 | B130: LICHSGFIN | C130: 466.35 | D130: 467.78 | E130: 460.17 | F130: 453.98 | G130: 446.37 | H130: 473.97 | I130: 481.58 | J130: 487.77 | K130: 475.4 | L130: 461.6 | M130: 16.99401
A131: 123 | B131: LT | C131: 1432.5 | D131: 1426.88 | E131: 1415.62 | F131: 1398.73 | G131: 1387.47 | H131: 1443.77 | I131: 1455.03 | J131: 1471.92 | K131: 1438.15 | L131: 1410 | M131: 20.18571
A132: 124 | B132: LUPIN | C132: 886.75 | D132: 881.45 | E132: 871.30 | F132: 855.85 | G132: 845.70 | H132: 896.90 | I132: 907.05 | J132: 922.50 | K132: 891.6 | L132: 866 | M132: 24.19585
A133: 125 | B133: MRF | C133: 67332.05 | D133: 67720.50 | E133: 66762.45 | F133: 66192.85 | G133: 65234.80 | H133: 68290.10 | I133: 69248.15 | J133: 69817.75 | K133: 68678.55 | L133: 67150.9 | M133: 0.05175
A134: 126 | B134: MGL | C134: 832.3 | D134: 831.28 | E134: 819.87 | F134: 807.43 | G134: 796.02 | H134: 843.72 | I134: 855.13 | J134: 867.57 | K134: 842.7 | L134: 818.85 | M134: 5.16382
A135: 127 | B135: M&MFIN | C135: 449.25 | D135: 445.52 | E135: 440.03 | F135: 430.82 | G135: 425.33 | H135: 454.73 | I135: 460.22 | J135: 469.43 | K135: 451 | L135: 436.3 | M135: 22.61571
A136: 128 | B136: M&M | C136: 790.9 | D136: 787.87 | E136: 779.73 | F136: 768.57 | G136: 760.43 | H136: 799.03 | I136: 807.17 | J136: 818.33 | K136: 796 | L136: 776.7 | M136: 52.1478
A137: 129 | B137: MANAPPURAM | C137: 86.3 | D137: 85.88 | E137: 84.87 | F137: 83.43 | G137: 82.42 | H137: 87.32 | I137: 88.33 | J137: 89.77 | K137: 86.9 | L137: 84.45 | M137: 17.42052
A138: 130 | B138: MRPL | C138: 73.9 | D138: 74.30 | E138: 72.70 | F138: 71.50 | G138: 69.90 | H138: 75.50 | I138: 77.10 | J138: 78.30 | K138: 75.9 | L138: 73.1 | M138: 7.72917
A139: 131 | B139: MARICO | C139: 356.75 | D139: 358.17 | E139: 352.03 | F139: 347.32 | G139: 341.18 | H139: 362.88 | I139: 369.02 | J139: 373.73 | K139: 364.3 | L139: 353.45 | M139: 30.14933
A140: 132 | B140: MARUTI | C140: 7661.6 | D140: 7652.88 | E140: 7578.77 | F140: 7495.93 | G140: 7421.82 | H140: 7735.72 | I140: 7809.83 | J140: 7892.67 | K140: 7727 | L140: 7570.05 | M140: 8.69715
A141: 133 | B141: MFSL | C141: 447.3 | D141: 444.12 | E141: 436.73 | F141: 426.17 | G141: 418.78 | H141: 454.68 | I141: 462.07 | J141: 472.63 | K141: 451.5 | L141: 433.55 | M141: 5.05079
A142: 134 | B142: MINDTREE | C142: 876.65 | D142: 869.55 | E142: 855.10 | F142: 833.55 | G142: 819.10 | H142: 891.10 | I142: 905.55 | J142: 927.10 | K142: 884 | L142: 848 | M142: 15.19665
A143: 135 | B143: MOTHERSUMI | C143: 155.7 | D143: 155.17 | E143: 153.33 | F143: 150.97 | G143: 149.13 | H143: 157.53 | I143: 159.37 | J143: 161.73 | K143: 157 | L143: 152.8 | M143: 84.84375
A144: 136 | B144: MPHASIS | C144: 1003.15 | D144: 989.10 | E144: 958.20 | F144: 913.25 | G144: 882.35 | H144: 1034.05 | I144: 1064.95 | J144: 1109.90 | K144: 1020 | L144: 944.15 | M144: 5.60282
A145: 137 | B145: MUTHOOTFIN | C145: 452.6 | D145: 449.90 | E145: 444.95 | F145: 437.30 | G145: 432.35 | H145: 457.55 | I145: 462.50 | J145: 470.15 | K145: 454.85 | L145: 442.25 | M145: 7.02937
A146: 138 | B146: NATCOPHARM | C146: 714.6 | D146: 712.43 | E146: 709.87 | F146: 705.13 | G146: 702.57 | H146: 717.17 | I146: 719.73 | J146: 724.47 | K146: 715 | L146: 707.7 | M146: 2.14312
A147: 139 | B147: NBCC | C147: 52.9 | D147: 53.68 | E147: 51.72 | F147: 50.53 | G147: 48.57 | H147: 54.87 | I147: 56.83 | J147: 58.02 | K147: 55.65 | L147: 52.5 | M147: 114.34173
A148: 140 | B148: NHPC | C148: 25.95 | D148: 25.90 | E148: 25.65 | F148: 25.35 | G148: 25.10 | H148: 26.20 | I148: 26.45 | J148: 26.75 | K148: 26.15 | L148: 25.6 | M148: 91.44744
A149: 141 | B149: NMDC | C149: 95.85 | D149: 95.42 | E149: 94.63 | F149: 93.42 | G149: 92.63 | H149: 96.63 | I149: 97.42 | J149: 98.63 | K149: 96.2 | L149: 94.2 | M149: 25.57237
A150: 142 | B150: NTPC | C150: 140.3 | D150: 140.15 | E150: 137.70 | F150: 135.10 | G150: 132.65 | H150: 142.75 | I150: 145.20 | J150: 147.80 | K150: 142.6 | L150: 137.55 | M150: 248.67219
A151: 143 | B151: NATIONALUM | C151: 67.45 | D151: 67.18 | E151: 66.52 | F151: 65.58 | G151: 64.92 | H151: 68.12 | I151: 68.78 | J151: 69.72 | K151: 67.85 | L151: 66.25 | M151: 38.74603
A152: 144 | B152: OBEROIRLTY | C152: 446.3 | D152: 444.77 | E152: 429.73 | F152: 413.17 | G152: 398.13 | H152: 461.33 | I152: 476.37 | J152: 492.93 | K152: 459.8 | L152: 428.2 | M152: 9.43123
A153: 145 | B153: ONGC | C153: 140.3 | D153: 140.83 | E153: 137.97 | F153: 135.63 | G153: 132.77 | H153: 143.17 | I153: 146.03 | J153: 148.37 | K153: 143.7 | L153: 138.5 | M153: 236.75557
A154: 146 | B154: OIL | C154: 186.25 | D154: 189.13 | E154: 182.47 | F154: 178.68 | G154: 172.02 | H154: 192.92 | I154: 199.58 | J154: 203.37 | K154: 195.8 | L154: 185.35 | M154: 68.28327
A155: 147 | B155: OFSS | C155: 3438.8 | D155: 3412.27 | E155: 3374.63 | F155: 3310.47 | G155: 3272.83 | H155: 3476.43 | I155: 3514.07 | J155: 3578.23 | K155: 3449.9 | L155: 3348.1 | M155: 0.41812
A156: 148 | B156: PCJEWELLER | C156: 68.85 | D156: 69.58 | E156: 67.67 | F156: 66.48 | G156: 64.57 | H156: 70.77 | I156: 72.68 | J156: 73.87 | K156: 71.5 | L156: 68.4 | M156: 116.23191
A157: 149 | B157: PIIND | C157: 821.95 | D157: 821.65 | E157: 813.30 | F157: 804.65 | G157: 796.30 | H157: 830.30 | I157: 838.65 | J157: 847.30 | K157: 830 | L157: 813 | M157: 0.79667
A158: 150 | B158: PNBHOUSING | C158: 906.5 | D158: 920.03 | E158: 875.32 | F158: 844.13 | G158: 799.42 | H158: 951.22 | I158: 995.93 | J158: 1027.12 | K158: 964.75 | L158: 888.85 | M158: 8.81509
A159: 151 | B159: PAGEIND | C159: 27117.1 | D159: 26622.37 | E159: 25844.73 | F159: 24572.37 | G159: 23794.73 | H159: 27894.73 | I159: 28672.37 | J159: 29944.73 | K159: 27400 | L159: 25350 | M159: 0.96728
A160: 152 | B160: PETRONET | C160: 214.2 | D160: 214.30 | E160: 210.60 | F160: 207.00 | G160: 203.30 | H160: 217.90 | I160: 221.60 | J160: 225.20 | K160: 218 | L160: 210.7 | M160: 90.70285
A161: 153 | B161: PIDILITIND | C161: 1163.3 | D161: 1167.87 | E161: 1150.63 | F161: 1137.97 | G161: 1120.73 | H161: 1180.53 | I161: 1197.77 | J161: 1210.43 | K161: 1185.1 | L161: 1155.2 | M161: 12.7853
A162: 154 | B162: PEL | C162: 2200 | D162: 2192.33 | E162: 2160.67 | F162: 2121.33 | G162: 2089.67 | H162: 2231.67 | I162: 2263.33 | J162: 2302.67 | K162: 2224 | L162: 2153 | M162: 5.67024
A163: 155 | B163: PFC | C163: 86.45 | D163: 88.92 | E163: 83.53 | F163: 80.62 | G163: 75.23 | H163: 91.83 | I163: 97.22 | J163: 100.13 | K163: 94.3 | L163: 86 | M163: 192.34712
A164: 156 | B164: POWERGRID | C164: 180.15 | D164: 180.67 | E164: 177.78 | F164: 175.42 | G164: 172.53 | H164: 183.03 | I164: 185.92 | J164: 188.28 | K164: 183.55 | L164: 178.3 | M164: 59.47786
A165: 157 | B165: PRESTIGE | C165: 216.55 | D165: 210.72 | E165: 200.83 | F165: 185.12 | G165: 175.23 | H165: 226.43 | I165: 236.32 | J165: 252.03 | K165: 220.6 | L165: 195 | M165: 19.35021
A166: 158 | B166: PGHH | C166: 9570.35 | D166: 9541.80 | E166: 9284.60 | F166: 8998.85 | G166: 8741.65 | H166: 9827.55 | I166: 10084.75 | J166: 10370.50 | K166: 9799 | L166: 9256.05 | M166: 0.10567
A167: 159 | B167: PNB | C167: 69.9 | D167: 69.80 | E167: 69.10 | F167: 68.30 | G167: 67.60 | H167: 70.60 | I167: 71.30 | J167: 72.10 | K167: 70.5 | L167: 69 | M167: 140.26529
A168: 160 | B168: RBLBANK | C168: 548.4 | D168: 549.47 | E168: 534.53 | F168: 520.67 | G168: 505.73 | H168: 563.33 | I168: 578.27 | J168: 592.13 | K168: 564.4 | L168: 535.6 | M168: 38.69279
A169: 161 | B169: RAJESHEXPO | C169: 570.9 | D169: 571.15 | E169: 570.35 | F169: 569.80 | G169: 569.00 | H169: 571.70 | I169: 572.50 | J169: 573.05 | K169: 571.95 | L169: 570.6 | M169: 3.98386
A170: 162 | B170: RELCAPITAL | C170: 226.1 | D170: 227.85 | E170: 222.25 | F170: 218.40 | G170: 212.80 | H170: 231.70 | I170: 237.30 | J170: 241.15 | K170: 233.45 | L170: 224 | M170: 99.82271
A171: 163 | B171: RCOM | C171: 14.25 | D171: 13.82 | E171: 12.98 | F171: 11.72 | G171: 10.88 | H171: 15.08 | I171: 15.92 | J171: 17.18 | K171: 14.65 | L171: 12.55 | M171: 1550.35529
A172: 164 | B172: RELIANCE | C172: 1167.55 | D172: 1171.95 | E172: 1157.90 | F172: 1148.25 | G172: 1134.20 | H172: 1181.60 | I172: 1195.65 | J172: 1205.30 | K172: 1186 | L172: 1162.3 | M172: 107.17448
A173: 165 | B173: RELINFRA | C173: 331.3 | D173: 336.85 | E173: 322.70 | F173: 314.10 | G173: 299.95 | H173: 345.45 | I173: 359.60 | J173: 368.20 | K173: 351 | L173: 328.25 | M173: 62.14362
A174: 166 | B174: RPOWER | C174: 29.15 | D174: 29.45 | E174: 28.60 | F174: 28.05 | G174: 27.20 | H174: 30.00 | I174: 30.85 | J174: 31.40 | K174: 30.3 | L174: 28.9 | M174: 113.38887
A175: 167 | B175: RECLTD | C175: 99.9 | D175: 102.43 | E175: 96.72 | F175: 93.53 | G175: 87.82 | H175: 105.62 | I175: 111.33 | J175: 114.52 | K175: 108.15 | L175: 99.25 | M175: 220.56559
A176: 168 | B176: SRF | C176: 2164.45 | D176: 2161.87 | E176: 2144.78 | F176: 2125.12 | G176: 2108.03 | H176: 2181.53 | I176: 2198.62 | J176: 2218.28 | K176: 2178.95 | L176: 2142.2 | M176: 2.94077
A177: 169 | B177: SHREECEM | C177: 16487.35 | D177: 16539.35 | E177: 16328.00 | F177: 16168.65 | G177: 15957.30 | H177: 16698.70 | I177: 16910.05 | J177: 17069.40 | K177: 16750.7 | L177: 16380 | M177: 0.34147
A178: 170 | B178: SRTRANSFIN | C178: 1155.5 | D178: 1165.65 | E178: 1137.75 | F178: 1120.00 | G178: 1092.10 | H178: 1183.40 | I178: 1211.30 | J178: 1229.05 | K178: 1193.55 | L178: 1147.9 | M178: 12.4611
A179: 171 | B179: SIEMENS | C179: 950.65 | D179: 939.60 | E179: 921.60 | F179: 892.55 | G179: 874.55 | H179: 968.65 | I179: 986.65 | J179: 1015.70 | K179: 957.6 | L179: 910.55 | M179: 70.04519
A180: 172 | B180: SBIN | C180: 284.65 | D180: 286.25 | E180: 281.60 | F180: 278.55 | G180: 273.90 | H180: 289.30 | I180: 293.95 | J180: 297.00 | K180: 290.9 | L180: 283.2 | M180: 175.8351
A181: 173 | B181: SAIL | C181: 55.3 | D181: 55.20 | E181: 54.55 | F181: 53.80 | G181: 53.15 | H181: 55.95 | I181: 56.60 | J181: 57.35 | K181: 55.85 | L181: 54.45 | M181: 110.29301
A182: 174 | B182: SPARC | C182: 260 | D182: 257.50 | E182: 253.50 | F182: 247.00 | G182: 243.00 | H182: 264.00 | I182: 268.00 | J182: 274.50 | K182: 261.5 | L182: 251 | M182: 2.79894
A183: 175 | B183: SUNPHARMA | C183: 492.6 | D183: 489.43 | E183: 484.92 | F183: 477.23 | G183: 472.72 | H183: 497.12 | I183: 501.63 | J183: 509.32 | K183: 493.95 | L183: 481.75 | M183: 65.44665
A184: 176 | B184: SUNTV | C184: 591.55 | D184: 596.72 | E184: 581.88 | F184: 572.22 | G184: 557.38 | H184: 606.38 | I184: 621.22 | J184: 630.88 | K184: 611.55 | L184: 587.05 | M184: 32.89607
A185: 177 | B185: SUZLON | C185: 5.15 | D185: 5.15 | E185: 5.10 | F185: 5.05 | G185: 5.00 | H185: 5.20 | I185: 5.25 | J185: 5.30 | K185: 5.2 | L185: 5.1 | M185: 199.73226
A186: 178 | B186: SYNDIBANK | C186: 34.85 | D186: 34.88 | E186: 34.47 | F186: 34.08 | G186: 33.67 | H186: 35.27 | I186: 35.68 | J186: 36.07 | K186: 35.3 | L186: 34.5 | M186: 16.55049
A187: 179 | B187: SYNGENE | C187: 540.25 | D187: 540.40 | E187: 535.85 | F187: 531.45 | G187: 526.90 | H187: 544.80 | I187: 549.35 | J187: 553.75 | K187: 544.95 | L187: 536 | M187: 1.90605
A188: 180 | B188: TV18BRDCST | C188: 35.9 | D188: 35.70 | E188: 35.20 | F188: 34.50 | G188: 34.00 | H188: 36.40 | I188: 36.90 | J188: 37.60 | K188: 36.2 | L188: 35 | M188: 37.98674
A189: 181 | B189: TVSMOTOR | C189: 557.4 | D189: 554.15 | E189: 548.30 | F189: 539.20 | G189: 533.35 | H189: 563.25 | I189: 569.10 | J189: 578.20 | K189: 560 | L189: 545.05 | M189: 12.70341
A190: 182 | B190: TATACHEM | C190: 697.45 | D190: 701.32 | E190: 687.13 | F190: 676.82 | G190: 662.63 | H190: 711.63 | I190: 725.82 | J190: 736.13 | K190: 715.5 | L190: 691 | M190: 13.67669
A191: 183 | B191: TATACOMM | C191: 538.05 | D191: 533.95 | E191: 527.50 | F191: 516.95 | G191: 510.50 | H191: 544.50 | I191: 550.95 | J191: 561.50 | K191: 540.4 | L191: 523.4 | M191: 2.77664
A192: 184 | B192: TCS | C192: 1968.25 | D192: 1973.03 | E192: 1955.07 | F192: 1941.88 | G192: 1923.92 | H192: 1986.22 | I192: 2004.18 | J192: 2017.37 | K192: 1991 | L192: 1959.85 | M192: 52.68901
A193: 185 | B193: TATAGLOBAL | C193: 218.65 | D193: 218.50 | E193: 216.40 | F193: 214.15 | G193: 212.05 | H193: 220.75 | I193: 222.85 | J193: 225.10 | K193: 220.6 | L193: 216.25 | M193: 10.44674
A194: 186 | B194: TATAMTRDVR | C194: 93.75 | D194: 94.20 | E194: 92.20 | F194: 90.65 | G194: 88.65 | H194: 95.75 | I194: 97.75 | J194: 99.30 | K194: 96.2 | L194: 92.65 | M194: 18.68437
A195: 187 | B195: TATAMOTORS | C195: 171.95 | D195: 172.40 | E195: 169.90 | F195: 167.85 | G195: 165.35 | H195: 174.45 | I195: 176.95 | J195: 179.00 | K195: 174.9 | L195: 170.35 | M195: 183.93012
A196: 188 | B196: TATAPOWER | C196: 76.1 | D196: 75.45 | E196: 74.40 | F196: 72.70 | G196: 71.65 | H196: 77.15 | I196: 78.20 | J196: 79.90 | K196: 76.5 | L196: 73.75 | M196: 81.35493
A197: 189 | B197: TATASTEEL | C197: 529.5 | D197: 530.60 | E197: 524.40 | F197: 519.30 | G197: 513.10 | H197: 535.70 | I197: 541.90 | J197: 547.00 | K197: 536.8 | L197: 525.5 | M197: 78.54071
A198: 190 | B198: TECHM | C198: 705.95 | D198: 700.93 | E198: 691.97 | F198: 677.98 | G198: 669.02 | H198: 714.92 | I198: 723.88 | J198: 737.87 | K198: 709.9 | L198: 686.95 | M198: 32.92579
A199: 191 | B199: RAMCOCEM | C199: 603.2 | D199: 607.87 | E199: 596.28 | F199: 589.37 | G199: 577.78 | H199: 614.78 | I199: 626.37 | J199: 633.28 | K199: 619.45 | L199: 600.95 | M199: 3.44857
A200: 192 | B200: TITAN | C200: 927.1 | D200: 925.37 | E200: 919.73 | F200: 912.37 | G200: 906.73 | H200: 932.73 | I200: 938.37 | J200: 945.73 | K200: 931 | L200: 918 | M200: 27.38673
A201: 193 | B201: TORNTPHARM | C201: 1773.8 | D201: 1747.93 | E201: 1715.87 | F201: 1657.93 | G201: 1625.87 | H201: 1805.87 | I201: 1837.93 | J201: 1895.87 | K201: 1780 | L201: 1690 | M201: 3.80252
A202: 194 | B202: TORNTPOWER | C202: 270.9 | D202: 268.90 | E202: 262.50 | F202: 254.10 | G202: 247.70 | H202: 277.30 | I202: 283.70 | J202: 292.10 | K202: 275.3 | L202: 260.5 | M202: 31.36436
A203: 195 | B203: UPL | C203: 757.8 | D203: 766.12 | E203: 746.73 | F203: 735.67 | G203: 716.28 | H203: 777.18 | I203: 796.57 | J203: 807.63 | K203: 785.5 | L203: 755.05 | M203: 21.32736
A204: 196 | B204: ULTRACEMCO | C204: 3999.65 | D204: 4022.18 | E204: 3963.37 | F204: 3927.08 | G204: 3868.27 | H204: 4058.47 | I204: 4117.28 | J204: 4153.57 | K204: 4081 | L204: 3985.9 | M204: 6.37323
A205: 197 | B205: UNIONBANK | C205: 78.55 | D205: 78.83 | E205: 77.22 | F205: 75.88 | G205: 74.27 | H205: 80.17 | I205: 81.78 | J205: 83.12 | K205: 80.45 | L205: 77.5 | M205: 95.35721
... 29 more rows

Sheet MidCap Intra
L5: Back To Main Page
A6: FOR INTRA DAY TRADING | K6: =Main!B10 -> 2018-12-03
A9: Sr.no | B9: Scrip | C9: CLOSE RATE | D9: Pivot Point | E9: Supports | H9: Resistances
C10: Point | E10: S1 | F10: S2 | G10: S3 | H10: R1 | I10: R2 | J10: R3 | K10: HIGH | L10: LOW | M10: Total Trade Quanity in Lakhs
A11: 1 | B11: 3MINDIA | C11: 21634 | D11: 21354.15 | E11: 21007.30 | F11: 20380.60 | G11: 20033.75 | H11: 21980.85 | I11: 22327.70 | J11: 22954.40 | K11: 21701 | L11: 20727.45 | M11: 0.01148
A12: 2 | B12: 8KMILES | C12: 183.85 | D12: 183.85 | E12: 183.85 | F12: 183.85 | G12: 183.85 | H12: 183.85 | I12: 183.85 | J12: 183.85 | K12: 183.85 | L12: 183.85 | M12: 0.30967
A13: 3 | B13: AARTIIND | C13: 1435.9 | D13: 1436.93 | E13: 1398.97 | F13: 1362.03 | G13: 1324.07 | H13: 1473.87 | I13: 1511.83 | J13: 1548.77 | K13: 1474.9 | L13: 1400 | M13: 1.71246
A14: 4 | B14: ABAN | C14: 75 | D14: 75.13 | E14: 73.87 | F14: 72.73 | G14: 71.47 | H14: 76.27 | I14: 77.53 | J14: 78.67 | K14: 76.4 | L14: 74 | M14: 3.21337
A15: 5 | B15: ABB | C15: 1408.7 | D15: 1398.28 | E15: 1384.47 | F15: 1360.23 | G15: 1346.42 | H15: 1422.52 | I15: 1436.33 | J15: 1460.57 | K15: 1412.1 | L15: 1374.05 | M15: 1.36537
A16: 6 | B16: ABCAPITAL | C16: 105.05 | D16: 104.85 | E16: 104.05 | F16: 103.05 | G16: 102.25 | H16: 105.85 | I16: 106.65 | J16: 107.65 | K16: 105.65 | L16: 103.85 | M16: 11.09675
A17: 7 | B17: ABFRL | C17: 181.05 | D17: 182.73 | E17: 178.37 | F17: 175.68 | G17: 171.32 | H17: 185.42 | I17: 189.78 | J17: 192.47 | K17: 187.1 | L17: 180.05 | M17: 3.25748
A18: 8 | B18: ACC | C18: 1485.5 | D18: 1482.23 | E18: 1466.47 | F18: 1447.43 | G18: 1431.67 | H18: 1501.27 | I18: 1517.03 | J18: 1536.07 | K18: 1498 | L18: 1463.2 | M18: 6.00458
A19: 9 | B19: ADANIPORTS | C19: 365.65 | D19: 367.95 | E19: 361.30 | F19: 356.95 | G19: 350.30 | H19: 372.30 | I19: 378.95 | J19: 383.30 | K19: 374.6 | L19: 363.6 | M19: 41.37466
A20: 10 | B20: ADANIPOWER | C20: 55.5 | D20: 55.37 | E20: 54.43 | F20: 53.37 | G20: 52.43 | H20: 56.43 | I20: 57.37 | J20: 58.43 | K20: 56.3 | L20: 54.3 | M20: 302.03347
A21: 11 | B21: ADANITRANS | C21: 225.1 | D21: 228.58 | E21: 218.52 | F21: 211.93 | G21: 201.87 | H21: 235.17 | I21: 245.23 | J21: 251.82 | K21: 238.65 | L21: 222 | M21: 19.24259
A22: 12 | B22: ADVENZYMES | C22: 184.8 | D22: 184.85 | E22: 182.05 | F22: 179.30 | G22: 176.50 | H22: 187.60 | I22: 190.40 | J22: 193.15 | K22: 187.65 | L22: 182.1 | M22: 0.54314
A23: 13 | B23: AEGISCHEM | C23: 210.5 | D23: 213.83 | E23: 203.17 | F23: 195.83 | G23: 185.17 | H23: 221.17 | I23: 231.83 | J23: 239.17 | K23: 224.5 | L23: 206.5 | M23: 1.83051
A24: 14 | B24: AIAENG | C24: 1699.85 | D24: 1663.28 | E24: 1621.57 | F24: 1543.28 | G24: 1501.57 | H24: 1741.57 | I24: 1783.28 | J24: 1861.57 | K24: 1705 | L24: 1585 | M24: 1.90258
A25: 15 | B25: AJANTPHARM | C25: 1168.55 | D25: 1157.88 | E25: 1125.77 | F25: 1082.98 | G25: 1050.87 | H25: 1200.67 | I25: 1232.78 | J25: 1275.57 | K25: 1190 | L25: 1115.1 | M25: 5.97093
A26: 16 | B26: AKZOINDIA | C26: 1579.35 | D26: 1576.30 | E26: 1564.55 | F26: 1549.75 | G26: 1538.00 | H26: 1591.10 | I26: 1602.85 | J26: 1617.65 | K26: 1588.05 | L26: 1561.5 | M26: 0.05564
A27: 17 | B27: ALBK | C27: 48.55 | D27: 48.25 | E27: 47.10 | F27: 45.65 | G27: 44.50 | H27: 49.70 | I27: 50.85 | J27: 52.30 | K27: 49.4 | L27: 46.8 | M27: 91.12603
A28: 18 | B28: ALKEM | C28: 1912.65 | D28: 1894.87 | E28: 1869.78 | F28: 1826.92 | G28: 1801.83 | H28: 1937.73 | I28: 1962.82 | J28: 2005.68 | K28: 1919.95 | L28: 1852 | M28: 0.8668
A29: 19 | B29: ALLCARGO | C29: 105 | D29: 106.02 | E29: 103.28 | F29: 101.57 | G29: 98.83 | H29: 107.73 | I29: 110.47 | J29: 112.18 | K29: 108.75 | L29: 104.3 | M29: 4.46417
A30: 20 | B30: AMARAJABAT | C30: 709.25 | D30: 714.80 | E30: 701.45 | F30: 693.65 | G30: 680.30 | H30: 722.60 | I30: 735.95 | J30: 743.75 | K30: 728.15 | L30: 707 | M30: 8.5727
A31: 21 | B31: AMBUJACEM | C31: 217.45 | D31: 218.02 | E31: 215.13 | F31: 212.82 | G31: 209.93 | H31: 220.33 | I31: 223.22 | J31: 225.53 | K31: 220.9 | L31: 215.7 | M31: 43.96332
A32: 22 | B32: ANDHRABANK | C32: 28.45 | D32: 28.35 | E32: 28.20 | F32: 27.95 | G32: 27.80 | H32: 28.60 | I32: 28.75 | J32: 29.00 | K32: 28.5 | L32: 28.1 | M32: 8.72783
A33: 23 | B33: APLAPOLLO | C33: 1291.4 | D33: 1292.80 | E33: 1270.60 | F33: 1249.80 | G33: 1227.60 | H33: 1313.60 | I33: 1335.80 | J33: 1356.60 | K33: 1315 | L33: 1272 | M33: 0.11789
A34: 24 | B34: APLLTD | C34: 617.45 | D34: 608.17 | E34: 576.43 | F34: 535.42 | G34: 503.68 | H34: 649.18 | I34: 680.92 | J34: 721.93 | K34: 639.9 | L34: 567.15 | M34: 1.66448
A35: 25 | B35: APOLLOHOSP | C35: 1264.8 | D35: 1268.25 | E35: 1246.75 | F35: 1228.70 | G35: 1207.20 | H35: 1286.30 | I35: 1307.80 | J35: 1325.85 | K35: 1289.75 | L35: 1250.2 | M35: 10.35249
A36: 26 | B36: APOLLOTYRE | C36: 239.05 | D36: 237.90 | E36: 235.50 | F36: 231.95 | G36: 229.55 | H36: 241.45 | I36: 243.85 | J36: 247.40 | K36: 240.3 | L36: 234.35 | M36: 21.80338
A37: 27 | B37: ARVIND | C37: 102.9 | D37: 102.62 | E37: 100.48 | F37: 98.07 | G37: 95.93 | H37: 105.03 | I37: 107.17 | J37: 109.58 | K37: 104.75 | L37: 100.2 | M37: 132.68509
A38: 28 | B38: ASAHIINDIA | C38: 263.6 | D38: 261.62 | E38: 254.98 | F38: 246.37 | G38: 239.73 | H38: 270.23 | I38: 276.87 | J38: 285.48 | K38: 268.25 | L38: 253 | M38: 0.22752
A39: 29 | B39: ASHOKA | C39: 130.6 | D39: 130.68 | E39: 127.92 | F39: 125.23 | G39: 122.47 | H39: 133.37 | I39: 136.13 | J39: 138.82 | K39: 133.45 | L39: 128 | M39: 5.17728
A40: 30 | B40: ASHOKLEY | C40: 112.35 | D40: 111.75 | E40: 110.85 | F40: 109.35 | G40: 108.45 | H40: 113.25 | I40: 114.15 | J40: 115.65 | K40: 112.65 | L40: 110.25 | M40: 243.50704
A41: 31 | B41: ASIANPAINT | C41: 1345.95 | D41: 1349.95 | E41: 1338.15 | F41: 1330.35 | G41: 1318.55 | H41: 1357.75 | I41: 1369.55 | J41: 1377.35 | K41: 1361.75 | L41: 1342.15 | M41: 10.30541
A42: 32 | B42: ASTRAL | C42: 1038.35 | D42: 1043.65 | E42: 1015.80 | F42: 993.25 | G42: 965.40 | H42: 1066.20 | I42: 1094.05 | J42: 1116.60 | K42: 1071.5 | L42: 1021.1 | M42: 2.2157
A43: 33 | B43: ATUL | C43: 3469.35 | D43: 3477.12 | E43: 3404.23 | F43: 3339.12 | G43: 3266.23 | H43: 3542.23 | I43: 3615.12 | J43: 3680.23 | K43: 3550 | L43: 3412 | M43: 0.69043
A44: 34 | B44: AUBANK | C44: 568.25 | D44: 575.67 | E44: 551.28 | F44: 534.32 | G44: 509.93 | H44: 592.63 | I44: 617.02 | J44: 633.98 | K44: 600.05 | L44: 558.7 | M44: 27.93659
A45: 35 | B45: AUROPHARMA | C45: 810.7 | D45: 804.55 | E45: 794.15 | F45: 777.60 | G45: 767.20 | H45: 821.10 | I45: 831.50 | J45: 848.05 | K45: 814.95 | L45: 788 | M45: 42.07727
A46: 36 | B46: AVANTIFEED | C46: 341.65 | D46: 342.35 | E46: 332.90 | F46: 324.15 | G46: 314.70 | H46: 351.10 | I46: 360.55 | J46: 369.30 | K46: 351.8 | L46: 333.6 | M46: 4.38391
A47: 37 | B47: AXISBANK | C47: 625.75 | D47: 628.33 | E47: 621.42 | F47: 617.08 | G47: 610.17 | H47: 632.67 | I47: 639.58 | J47: 643.92 | K47: 635.25 | L47: 624 | M47: 89.84998
A48: 38 | B48: BAJAJ-AUTO | C48: 2745.7 | D48: 2739.13 | E48: 2708.57 | F48: 2671.43 | G48: 2640.87 | H48: 2776.27 | I48: 2806.83 | J48: 2843.97 | K48: 2769.7 | L48: 2702 | M48: 6.90175
A49: 39 | B49: BAJAJCORP | C49: 359.6 | D49: 358.67 | E49: 354.33 | F49: 349.07 | G49: 344.73 | H49: 363.93 | I49: 368.27 | J49: 373.53 | K49: 363 | L49: 353.4 | M49: 2.03632
A50: 40 | B50: BAJAJELEC | C50: 472.85 | D50: 475.57 | E50: 466.83 | F50: 460.82 | G50: 452.08 | H50: 481.58 | I50: 490.32 | J50: 496.33 | K50: 484.3 | L50: 469.55 | M50: 2.64045
A51: 41 | B51: BAJAJFINSV | C51: 5994.35 | D51: 6018.12 | E51: 5936.23 | F51: 5878.12 | G51: 5796.23 | H51: 6076.23 | I51: 6158.12 | J51: 6216.23 | K51: 6100 | L51: 5960 | M51: 3.58307
A52: 42 | B52: BAJAJHIND | C52: 9.6 | D52: 9.62 | E52: 9.43 | F52: 9.27 | G52: 9.08 | H52: 9.78 | I52: 9.97 | J52: 10.13 | K52: 9.8 | L52: 9.45 | M52: 26.10342
A53: 43 | B53: BAJAJHLDNG | C53: 3000.8 | D53: 3003.53 | E53: 2977.27 | F53: 2953.73 | G53: 2927.47 | H53: 3027.07 | I53: 3053.33 | J53: 3076.87 | K53: 3029.8 | L53: 2980 | M53: 0.15452
A54: 44 | B54: BAJFINANCE | C54: 2537.7 | D54: 2536.38 | E54: 2508.37 | F54: 2479.03 | G54: 2451.02 | H54: 2565.72 | I54: 2593.73 | J54: 2623.07 | K54: 2564.4 | L54: 2507.05 | M54: 27.37341
A55: 45 | B55: BALKRISIND | C55: 960.4 | D55: 963.47 | E55: 951.93 | F55: 943.47 | G55: 931.93 | H55: 971.93 | I55: 983.47 | J55: 991.93 | K55: 975 | L55: 955 | M55: 9.00245
A56: 46 | B56: BALLARPUR | C56: 5.8 | D56: 5.85 | E56: 5.50 | F56: 5.20 | G56: 4.85 | H56: 6.15 | I56: 6.50 | J56: 6.80 | K56: 6.2 | L56: 5.55 | M56: 17.79413
A57: 47 | B57: BALMLAWRIE | C57: 188.45 | D57: 188.95 | E57: 186.90 | F57: 185.35 | G57: 183.30 | H57: 190.50 | I57: 192.55 | J57: 194.10 | K57: 191 | L57: 187.4 | M57: 0.19587
A58: 48 | B58: BALRAMCHIN | C58: 101.15 | D58: 100.63 | E58: 98.32 | F58: 95.48 | G58: 93.17 | H58: 103.47 | I58: 105.78 | J58: 108.62 | K58: 102.95 | L58: 97.8 | M58: 36.99965
A59: 49 | B59: BANKBARODA | C59: 105.05 | D59: 105.13 | E59: 103.62 | F59: 102.18 | G59: 100.67 | H59: 106.57 | I59: 108.08 | J59: 109.52 | K59: 106.65 | L59: 103.7 | M59: 147.41115
A60: 50 | B60: BANKINDIA | C60: 84.85 | D60: 85.07 | E60: 83.88 | F60: 82.92 | G60: 81.73 | H60: 86.03 | I60: 87.22 | J60: 88.18 | K60: 86.25 | L60: 84.1 | M60: 52.59126
A61: 51 | B61: BASF | C61: 1588.4 | D61: 1594.48 | E61: 1558.97 | F61: 1529.53 | G61: 1494.02 | H61: 1623.92 | I61: 1659.43 | J61: 1688.87 | K61: 1630 | L61: 1565.05 | M61: 0.14678
A62: 52 | B62: BATAINDIA | C62: 1043.3 | D62: 1031.07 | E62: 1012.23 | F62: 981.17 | G62: 962.33 | H62: 1062.13 | I62: 1080.97 | J62: 1112.03 | K62: 1049.9 | L62: 1000 | M62: 20.93515
A63: 53 | B63: BBTC | C63: 1380.25 | D63: 1365.42 | E63: 1345.83 | F63: 1311.42 | G63: 1291.83 | H63: 1399.83 | I63: 1419.42 | J63: 1453.83 | K63: 1385 | L63: 1331 | M63: 1.55044
A64: 54 | B64: BEL | C64: 83.25 | D64: 83.80 | E64: 82.20 | F64: 81.15 | G64: 79.55 | H64: 84.85 | I64: 86.45 | J64: 87.50 | K64: 85.4 | L64: 82.75 | M64: 117.36238
A65: 55 | B65: BEML | C65: 752.85 | D65: 756.95 | E65: 740.90 | F65: 728.95 | G65: 712.90 | H65: 768.90 | I65: 784.95 | J65: 796.90 | K65: 773 | L65: 745 | M65: 7.93765
A66: 56 | B66: BERGEPAINT | C66: 319.8 | D66: 320.77 | E66: 317.23 | F66: 314.67 | G66: 311.13 | H66: 323.33 | I66: 326.87 | J66: 329.43 | K66: 324.3 | L66: 318.2 | M66: 6.46632
A67: 57 | B67: BFUTILITIE | C67: 213.85 | D67: 215.83 | E67: 210.27 | F67: 206.68 | G67: 201.12 | H67: 219.42 | I67: 224.98 | J67: 228.57 | K67: 221.4 | L67: 212.25 | M67: 4.3021
A68: 58 | B68: BGRENERGY | C68: 60.65 | D68: 60.83 | E68: 59.87 | F68: 59.08 | G68: 58.12 | H68: 61.62 | I68: 62.58 | J68: 63.37 | K68: 61.8 | L68: 60.05 | M68: 0.5456
A69: 59 | B69: BHARATFIN | C69: 1023.05 | D69: 1031.47 | E69: 1003.73 | F69: 984.42 | G69: 956.68 | H69: 1050.78 | I69: 1078.52 | J69: 1097.83 | K69: 1059.2 | L69: 1012.15 | M69: 23.32435
A70: 60 | B70: BHARATFORG | C70: 563.85 | D70: 567.32 | E70: 558.63 | F70: 553.42 | G70: 544.73 | H70: 572.53 | I70: 581.22 | J70: 586.43 | K70: 576 | L70: 562.1 | M70: 18.64406
A71: 61 | B71: BHARTIARTL | C71: 313.5 | D71: 316.17 | E71: 308.03 | F71: 302.57 | G71: 294.43 | H71: 321.63 | I71: 329.77 | J71: 335.23 | K71: 324.3 | L71: 310.7 | M71: 59.44313
A72: 62 | B72: BHEL | C72: 68.15 | D72: 68.22 | E72: 66.08 | F72: 64.02 | G72: 61.88 | H72: 70.28 | I72: 72.42 | J72: 74.48 | K72: 70.35 | L72: 66.15 | M72: 1232.27256
A73: 63 | B73: BHUSANSTL | C73: 27.15 | D73: 27.27 | E73: 26.88 | F73: 26.62 | G73: 26.23 | H73: 27.53 | I73: 27.92 | J73: 28.18 | K73: 27.65 | L73: 27 | M73: 3.34021
A74: 64 | B74: BIOCON | C74: 624.35 | D74: 617.80 | E74: 609.20 | F74: 594.05 | G74: 585.45 | H74: 632.95 | I74: 641.55 | J74: 656.70 | K74: 626.4 | L74: 602.65 | M74: 25.88196
A75: 65 | B75: BIRLACORPN | C75: 617.4 | D75: 623.03 | E75: 606.52 | F75: 595.63 | G75: 579.12 | H75: 633.92 | I75: 650.43 | J75: 661.32 | K75: 639.55 | L75: 612.15 | M75: 2.81663
A76: 66 | B76: BLISSGVS | C76: 151.15 | D76: 155.38 | E76: 145.77 | F76: 140.38 | G76: 130.77 | H76: 160.77 | I76: 170.38 | J76: 175.77 | K76: 165 | L76: 150 | M76: 3.63896
A77: 67 | B77: BLUEDART | C77: 3097.15 | D77: 3123.72 | E77: 3033.43 | F77: 2969.72 | G77: 2879.43 | H77: 3187.43 | I77: 3277.72 | J77: 3341.43 | K77: 3214 | L77: 3060 | M77: 0.07782
A78: 68 | B78: BLUESTARCO | C78: 677.65 | D78: 672.33 | E78: 663.02 | F78: 648.38 | G78: 639.07 | H78: 686.97 | I78: 696.28 | J78: 710.92 | K78: 681.65 | L78: 657.7 | M78: 0.91865
A79: 69 | B79: BOMDYEING | C79: 99.1 | D79: 100.80 | E79: 96.90 | F79: 94.70 | G79: 90.80 | H79: 103.00 | I79: 106.90 | J79: 109.10 | K79: 104.7 | L79: 98.6 | M79: 13.77025
A80: 70 | B80: BOSCHLTD | C80: 18973.25 | D80: 18888.83 | E80: 18734.42 | F80: 18495.58 | G80: 18341.17 | H80: 19127.67 | I80: 19282.08 | J80: 19520.92 | K80: 19043.25 | L80: 18650 | M80: 0.31941
A81: 71 | B81: BPCL | C81: 324.4 | D81: 325.53 | E81: 319.27 | F81: 314.13 | G81: 307.87 | H81: 330.67 | I81: 336.93 | J81: 342.07 | K81: 331.8 | L81: 320.4 | M81: 91.21147
A82: 72 | B82: BRFL | C82: 10.05 | D82: 10.27 | E82: 9.83 | F82: 9.62 | G82: 9.18 | H82: 10.48 | I82: 10.92 | J82: 11.13 | K82: 10.7 | L82: 10.05 | M82: 2.66421
A83: 73 | B83: BRIGADE | C83: 196.9 | D83: 195.13 | E83: 192.77 | F83: 188.63 | G83: 186.27 | H83: 199.27 | I83: 201.63 | J83: 205.77 | K83: 197.5 | L83: 191 | M83: 0.25106
A84: 74 | B84: BRITANNIA | C84: 3169.75 | D84: 3135.85 | E84: 3074.70 | F84: 2979.65 | G84: 2918.50 | H84: 3230.90 | I84: 3292.05 | J84: 3387.10 | K84: 3197 | L84: 3040.8 | M84: 9.54568
A85: 75 | B85: BSE | C85: 605.25 | D85: 605.03 | E85: 600.17 | F85: 595.08 | G85: 590.22 | H85: 610.12 | I85: 614.98 | J85: 620.07 | K85: 609.9 | L85: 599.95 | M85: 0.64461
A86: 77 | B86: CADILAHC | C86: 365.3 | D86: 362.37 | E86: 357.28 | F86: 349.27 | G86: 344.18 | H86: 370.38 | I86: 375.47 | J86: 383.48 | K86: 367.45 | L86: 354.35 | M86: 12.22488
A87: 78 | B87: CANBK | C87: 255.8 | D87: 257.93 | E87: 251.87 | F87: 247.93 | G87: 241.87 | H87: 261.87 | I87: 267.93 | J87: 271.87 | K87: 264 | L87: 254 | M87: 55.76043
A88: 79 | B88: CANFINHOME | C88: 269.85 | D88: 271.78 | E88: 263.87 | F88: 257.88 | G88: 249.97 | H88: 277.77 | I88: 285.68 | J88: 291.67 | K88: 279.7 | L88: 265.8 | M88: 15.38831
A89: 80 | B89: CAPF | C89: 524.4 | D89: 524.13 | E89: 518.27 | F89: 512.13 | G89: 506.27 | H89: 530.27 | I89: 536.13 | J89: 542.27 | K89: 530 | L89: 518 | M89: 6.80549
A90: 81 | B90: CAPLIPOINT | C90: 400.7 | D90: 402.53 | E90: 397.22 | F90: 393.73 | G90: 388.42 | H90: 406.02 | I90: 411.33 | J90: 414.82 | K90: 407.85 | L90: 399.05 | M90: 0.10762
A91: 82 | B91: CARBORUNIV | C91: 362.25 | D91: 361.08 | E91: 356.67 | F91: 351.08 | G91: 346.67 | H91: 366.67 | I91: 371.08 | J91: 376.67 | K91: 365.5 | L91: 355.5 | M91: 0.22676
A92: 83 | B92: CARERATING | C92: 958.7 | D92: 960.93 | E92: 947.87 | F92: 937.03 | G92: 923.97 | H92: 971.77 | I92: 984.83 | J92: 995.67 | K92: 974 | L92: 950.1 | M92: 2.28585
A93: 84 | B93: CASTROLIND | C93: 151 | D93: 152.60 | E93: 148.80 | F93: 146.60 | G93: 142.80 | H93: 154.80 | I93: 158.60 | J93: 160.80 | K93: 156.4 | L93: 150.4 | M93: 10.81315
A94: 85 | B94: CCL | C94: 268.15 | D94: 268.30 | E94: 266.00 | F94: 263.85 | G94: 261.55 | H94: 270.45 | I94: 272.75 | J94: 274.90 | K94: 270.6 | L94: 266.15 | M94: 0.29201
A95: 86 | B95: CDSL | C95: 237.15 | D95: 236.97 | E95: 234.93 | F95: 232.72 | G95: 230.68 | H95: 239.18 | I95: 241.22 | J95: 243.43 | K95: 239 | L95: 234.75 | M95: 4.28711
A96: 87 | B96: CEATLTD | C96: 1264.15 | D96: 1268.77 | E96: 1253.68 | F96: 1243.22 | G96: 1228.13 | H96: 1279.23 | I96: 1294.32 | J96: 1304.78 | K96: 1283.85 | L96: 1258.3 | M96: 9.07144
A97: 88 | B97: CENTRALBK | C97: 29 | D97: 29.12 | E97: 28.78 | F97: 28.57 | G97: 28.23 | H97: 29.33 | I97: 29.67 | J97: 29.88 | K97: 29.45 | L97: 28.9 | M97: 2.0605
A98: 89 | B98: CENTURYPLY | C98: 174.35 | D98: 175.62 | E98: 171.23 | F98: 168.12 | G98: 163.73 | H98: 178.73 | I98: 183.12 | J98: 186.23 | K98: 180 | L98: 172.5 | M98: 1.30013
A99: 90 | B99: CENTURYTEX | C99: 921 | D99: 914.53 | E99: 902.32 | F99: 883.63 | G99: 871.42 | H99: 933.22 | I99: 945.43 | J99: 964.12 | K99: 926.75 | L99: 895.85 | M99: 6.36019
A100: 91 | B100: CERA | C100: 2359.85 | D100: 2362.27 | E100: 2337.58 | F100: 2315.32 | G100: 2290.63 | H100: 2384.53 | I100: 2409.22 | J100: 2431.48 | K100: 2386.95 | L100: 2340 | M100: 0.04686
A101: 92 | B101: CGPOWER | C101: 38.75 | D101: 38.92 | E101: 38.03 | F101: 37.32 | G101: 36.43 | H101: 39.63 | I101: 40.52 | J101: 41.23 | K101: 39.8 | L101: 38.2 | M101: 46.14742
A102: 93 | B102: CHAMBLFERT | C102: 153.1 | D102: 152.42 | E102: 149.23 | F102: 145.37 | G102: 142.18 | H102: 156.28 | I102: 159.47 | J102: 163.33 | K102: 155.6 | L102: 148.55 | M102: 2.67154
A103: 94 | B103: CHENNPETRO | C103: 274.3 | D103: 275.80 | E103: 270.00 | F103: 265.70 | G103: 259.90 | H103: 280.10 | I103: 285.90 | J103: 290.20 | K103: 281.6 | L103: 271.5 | M103: 3.48485
A104: 95 | B104: CHOLAFIN | C104: 1314 | D104: 1320.63 | E104: 1298.77 | F104: 1283.53 | G104: 1261.67 | H104: 1335.87 | I104: 1357.73 | J104: 1372.97 | K104: 1342.5 | L104: 1305.4 | M104: 1.86743
A105: 96 | B105: CIPLA | C105: 540.85 | D105: 536.62 | E105: 531.23 | F105: 521.62 | G105: 516.23 | H105: 546.23 | I105: 551.62 | J105: 561.23 | K105: 542 | L105: 527 | M105: 38.55382
A106: 97 | B106: COALINDIA | C106: 244.9 | D106: 244.12 | E106: 239.83 | F106: 234.77 | G106: 230.48 | H106: 249.18 | I106: 253.47 | J106: 258.53 | K106: 248.4 | L106: 239.05 | M106: 127.89209
A107: 98 | B107: COCHINSHIP | C107: 374.65 | D107: 376.58 | E107: 371.82 | F107: 368.98 | G107: 364.22 | H107: 379.42 | I107: 384.18 | J107: 387.02 | K107: 381.35 | L107: 373.75 | M107: 0.66599
A108: 99 | B108: COFFEEDAY | C108: 263.15 | D108: 263.78 | E108: 261.17 | F108: 259.18 | G108: 256.57 | H108: 265.77 | I108: 268.38 | J108: 270.37 | K108: 266.4 | L108: 261.8 | M108: 0.92235
A109: 100 | B109: COLPAL | C109: 1219.65 | D109: 1220.43 | E109: 1201.22 | F109: 1182.78 | G109: 1163.57 | H109: 1238.87 | I109: 1258.08 | J109: 1276.52 | K109: 1239.65 | L109: 1202 | M109: 4.56503
A110: 101 | B110: CONCOR | C110: 674.95 | D110: 671.18 | E110: 661.57 | F110: 648.18 | G110: 638.57 | H110: 684.57 | I110: 694.18 | J110: 707.57 | K110: 680.8 | L110: 657.8 | M110: 8.44954
A111: 102 | B111: COROMANDEL | C111: 406.55 | D111: 406.08 | E111: 404.17 | F111: 401.78 | G111: 399.87 | H111: 408.47 | I111: 410.38 | J111: 412.77 | K111: 408 | L111: 403.7 | M111: 0.78488
A112: 103 | B112: COX&KINGS | C112: 176.15 | D112: 175.87 | E112: 173.78 | F112: 171.42 | G112: 169.33 | H112: 178.23 | I112: 180.32 | J112: 182.68 | K112: 177.95 | L112: 173.5 | M112: 0.22913
A113: 104 | B113: CRISIL | C113: 1500.35 | D113: 1491.13 | E113: 1474.27 | F113: 1448.18 | G113: 1431.32 | H113: 1517.22 | I113: 1534.08 | J113: 1560.17 | K113: 1508 | L113: 1465.05 | M113: 0.17948
A114: 105 | B114: CROMPTON | C114: 216.95 | D114: 215.33 | E114: 213.67 | F114: 210.38 | G114: 208.72 | H114: 218.62 | I114: 220.28 | J114: 223.57 | K114: 217 | L114: 212.05 | M114: 3.85542
A115: 106 | B115: CUB | C115: 174.35 | D115: 175.48 | E115: 171.92 | F115: 169.48 | G115: 165.92 | H115: 177.92 | I115: 181.48 | J115: 183.92 | K115: 179.05 | L115: 173.05 | M115: 9.85066
A116: 107 | B116: CUMMINSIND | C116: 807 | D116: 809.32 | E116: 799.68 | F116: 792.37 | G116: 782.73 | H116: 816.63 | I116: 826.27 | J116: 833.58 | K116: 818.95 | L116: 802 | M116: 5.05611
A117: 108 | B117: CYIENT | C117: 598.6 | D117: 600.23 | E117: 593.42 | F117: 588.23 | G117: 581.42 | H117: 605.42 | I117: 612.23 | J117: 617.42 | K117: 607.05 | L117: 595.05 | M117: 1.33301
A118: 109 | B118: DABUR | C118: 409.1 | D118: 411.35 | E118: 404.30 | F118: 399.50 | G118: 392.45 | H118: 416.15 | I118: 423.20 | J118: 428.00 | K118: 418.4 | L118: 406.55 | M118: 44.71587
A119: 110 | B119: DBCORP | C119: 176.85 | D119: 177.65 | E119: 175.30 | F119: 173.75 | G119: 171.40 | H119: 179.20 | I119: 181.55 | J119: 183.10 | K119: 180 | L119: 176.1 | M119: 0.19077
A120: 111 | B120: DBL | C120: 459.2 | D120: 458.27 | E120: 451.93 | F120: 444.67 | G120: 438.33 | H120: 465.53 | I120: 471.87 | J120: 479.13 | K120: 464.6 | L120: 451 | M120: 1.6136
A121: 112 | B121: DBREALTY | C121: 21.15 | D121: 21.12 | E121: 20.78 | F121: 20.42 | G121: 20.08 | H121: 21.48 | I121: 21.82 | J121: 22.18 | K121: 21.45 | L121: 20.75 | M121: 1.70429
A122: 113 | B122: DCAL | C122: 238.3 | D122: 238.43 | E122: 233.92 | F122: 229.53 | G122: 225.02 | H122: 242.82 | I122: 247.33 | J122: 251.72 | K122: 242.95 | L122: 234.05 | M122: 3.68951
A123: 114 | B123: DCBBANK | C123: 156.9 | D123: 156.05 | E123: 154.45 | F123: 152.00 | G123: 150.40 | H123: 158.50 | I123: 160.10 | J123: 162.55 | K123: 157.65 | L123: 153.6 | M123: 10.65209
A124: 115 | B124: DCMSHRIRAM | C124: 356.95 | D124: 359.62 | E124: 350.53 | F124: 344.12 | G124: 335.03 | H124: 366.03 | I124: 375.12 | J124: 381.53 | K124: 368.7 | L124: 353.2 | M124: 0.81772
A125: 116 | B125: DEEPAKFERT | C125: 160.15 | D125: 161.72 | E125: 157.43 | F125: 154.72 | G125: 150.43 | H125: 164.43 | I125: 168.72 | J125: 171.43 | K125: 166 | L125: 159 | M125: 3.77368
A126: 117 | B126: DELTACORP | C126: 239.2 | D126: 238.93 | E126: 235.87 | F126: 232.53 | G126: 229.47 | H126: 242.27 | I126: 245.33 | J126: 248.67 | K126: 242 | L126: 235.6 | M126: 6.38645
A127: 118 | B127: DEN | C127: 69.65 | D127: 69.58 | E127: 69.17 | F127: 68.68 | G127: 68.27 | H127: 70.07 | I127: 70.48 | J127: 70.97 | K127: 70 | L127: 69.1 | M127: 0.76517
A128: 119 | B128: DENABANK | C128: 15.9 | D128: 15.93 | E128: 15.82 | F128: 15.73 | G128: 15.62 | H128: 16.02 | I128: 16.13 | J128: 16.22 | K128: 16.05 | L128: 15.85 | M128: 5.3561
A129: 120 | B129: DHFL | C129: 212.75 | D129: 212.20 | E129: 207.55 | F129: 202.35 | G129: 197.70 | H129: 217.40 | I129: 222.05 | J129: 227.25 | K129: 216.85 | L129: 207 | M129: 212.39611
A130: 121 | B130: DISHTV | C130: 38.3 | D130: 38.52 | E130: 37.83 | F130: 37.37 | G130: 36.68 | H130: 38.98 | I130: 39.67 | J130: 40.13 | K130: 39.2 | L130: 38.05 | M130: 93.89157
A131: 122 | B131: DIVISLAB | C131: 1439.35 | D131: 1446.82 | E131: 1412.53 | F131: 1385.72 | G131: 1351.43 | H131: 1473.63 | I131: 1507.92 | J131: 1534.73 | K131: 1481.1 | L131: 1420 | M131: 122.73274
A132: 123 | B132: DIXON | C132: 2038.05 | D132: 2037.78 | E132: 2000.57 | F132: 1963.08 | G132: 1925.87 | H132: 2075.27 | I132: 2112.48 | J132: 2149.97 | K132: 2075 | L132: 2000.3 | M132: 0.79687
A133: 124 | B133: DLF | C133: 178.1 | D133: 178.02 | E133: 176.03 | F133: 173.97 | G133: 171.98 | H133: 180.08 | I133: 182.07 | J133: 184.13 | K133: 180 | L133: 175.95 | M133: 35.13726
A134: 125 | B134: DMART | C134: 1492.5 | D134: 1476.83 | E134: 1453.67 | F134: 1414.83 | G134: 1391.67 | H134: 1515.67 | I134: 1538.83 | J134: 1577.67 | K134: 1500 | L134: 1438 | M134: 13.60732
A135: 126 | B135: DREDGECORP | C135: 358.25 | D135: 360.52 | E135: 354.53 | F135: 350.82 | G135: 344.83 | H135: 364.23 | I135: 370.22 | J135: 373.93 | K135: 366.5 | L135: 356.8 | M135: 0.80646
A136: 127 | B136: DRREDDY | C136: 2722.2 | D136: 2704.60 | E136: 2674.65 | F136: 2627.10 | G136: 2597.15 | H136: 2752.15 | I136: 2782.10 | J136: 2829.65 | K136: 2734.55 | L136: 2657.05 | M136: 14.91828
A137: 128 | B137: ECLERX | C137: 1013.8 | D137: 1029.65 | E137: 985.30 | F137: 956.80 | G137: 912.45 | H137: 1058.15 | I137: 1102.50 | J137: 1131.00 | K137: 1074 | L137: 1001.15 | M137: 0.70412
A138: 129 | B138: EDELWEISS | C138: 169.7 | D138: 169.75 | E138: 167.50 | F138: 165.30 | G138: 163.05 | H138: 171.95 | I138: 174.20 | J138: 176.40 | K138: 172 | L138: 167.55 | M138: 23.53768
A139: 130 | B139: EICHERMOT | C139: 23405.3 | D139: 23485.08 | E139: 23230.22 | F139: 23055.13 | G139: 22800.27 | H139: 23660.17 | I139: 23915.03 | J139: 24090.12 | K139: 23739.95 | L139: 23310 | M139: 0.8649
A140: 131 | B140: EIDPARRY | C140: 209.3 | D140: 212.35 | E140: 204.95 | F140: 200.60 | G140: 193.20 | H140: 216.70 | I140: 224.10 | J140: 228.45 | K140: 219.75 | L140: 208 | M140: 1.30505
A141: 132 | B141: EIHOTEL | C141: 195 | D141: 192.27 | E141: 188.63 | F141: 182.27 | G141: 178.63 | H141: 198.63 | I141: 202.27 | J141: 208.63 | K141: 195.9 | L141: 185.9 | M141: 7.5579
A142: 133 | B142: EMAMILTD | C142: 437.45 | D142: 435.52 | E142: 427.08 | F142: 416.72 | G142: 408.28 | H142: 445.88 | I142: 454.32 | J142: 464.68 | K142: 443.95 | L142: 425.15 | M142: 5.58754
A143: 134 | B143: ENDURANCE | C143: 1118.8 | D143: 1104.67 | E143: 1085.18 | F143: 1051.57 | G143: 1032.08 | H143: 1138.28 | I143: 1157.77 | J143: 1191.38 | K143: 1124.15 | L143: 1071.05 | M143: 0.22864
A144: 135 | B144: ENGINERSIN | C144: 117.5 | D144: 117.62 | E144: 116.43 | F144: 115.37 | G144: 114.18 | H144: 118.68 | I144: 119.87 | J144: 120.93 | K144: 118.8 | L144: 116.55 | M144: 6.40019
A145: 136 | B145: EQUITAS | C145: 107.65 | D145: 106.32 | E145: 103.38 | F145: 99.12 | G145: 96.18 | H145: 110.58 | I145: 113.52 | J145: 117.78 | K145: 109.25 | L145: 102.05 | M145: 67.33497
A146: 137 | B146: ERIS | C146: 622.25 | D146: 620.20 | E146: 613.35 | F146: 604.45 | G146: 597.60 | H146: 629.10 | I146: 635.95 | J146: 644.85 | K146: 627.05 | L146: 611.3 | M146: 0.08653
A147: 138 | B147: EROSMEDIA | C147: 93.7 | D147: 91.80 | E147: 88.80 | F147: 83.90 | G147: 80.90 | H147: 96.70 | I147: 99.70 | J147: 104.60 | K147: 94.8 | L147: 86.9 | M147: 6.66131
A148: 139 | B148: ESCORTS | C148: 704.7 | D148: 703.53 | E148: 697.27 | F148: 689.83 | G148: 683.57 | H148: 710.97 | I148: 717.23 | J148: 724.67 | K148: 709.8 | L148: 696.1 | M148: 24.65495
A149: 140 | B149: EVEREADY | C149: 197.9 | D149: 199.38 | E149: 193.77 | F149: 189.63 | G149: 184.02 | H149: 203.52 | I149: 209.13 | J149: 213.27 | K149: 205 | L149: 195.25 | M149: 3.10885
A150: 141 | B150: EXIDEIND | C150: 262.8 | D150: 261.15 | E150: 258.65 | F150: 254.50 | G150: 252.00 | H150: 265.30 | I150: 267.80 | J150: 271.95 | K150: 263.65 | L150: 257 | M150: 15.50129
A151: 142 | B151: FCONSUMER | C151: 45.75 | D151: 46.55 | E151: 44.20 | F151: 42.65 | G151: 40.30 | H151: 48.10 | I151: 50.45 | J151: 52.00 | K151: 48.9 | L151: 45 | M151: 64.94795
A152: 143 | B152: FEDERALBNK | C152: 85.3 | D152: 85.42 | E152: 84.58 | F152: 83.87 | G152: 83.03 | H152: 86.13 | I152: 86.97 | J152: 87.68 | K152: 86.25 | L152: 84.7 | M152: 133.68505
A153: 144 | B153: FINCABLES | C153: 458.35 | D153: 456.08 | E153: 446.17 | F153: 433.98 | G153: 424.07 | H153: 468.27 | I153: 478.18 | J153: 490.37 | K153: 466 | L153: 443.9 | M153: 0.97337
A154: 145 | B154: FINPIPE | C154: 553.85 | D154: 550.58 | E154: 536.27 | F154: 518.68 | G154: 504.37 | H154: 568.17 | I154: 582.48 | J154: 600.07 | K154: 564.9 | L154: 533 | M154: 0.47835
A155: 146 | B155: FLFL | C155: 399.3 | D155: 397.35 | E155: 388.75 | F155: 378.20 | G155: 369.60 | H155: 407.90 | I155: 416.50 | J155: 427.05 | K155: 405.95 | L155: 386.8 | M155: 0.26864
A156: 147 | B156: FSL | C156: 52.3 | D156: 52.53 | E156: 51.37 | F156: 50.43 | G156: 49.27 | H156: 53.47 | I156: 54.63 | J156: 55.57 | K156: 53.7 | L156: 51.6 | M156: 28.5414
A157: 148 | B157: GAIL | C157: 343.05 | D157: 343.02 | E157: 337.78 | F157: 332.52 | G157: 327.28 | H157: 348.28 | I157: 353.52 | J157: 358.78 | K157: 348.25 | L157: 337.75 | M157: 58.32509
A158: 149 | B158: GATI | C158: 87.4 | D158: 87.70 | E158: 86.40 | F158: 85.40 | G158: 84.10 | H158: 88.70 | I158: 90.00 | J158: 91.00 | K158: 89 | L158: 86.7 | M158: 3.90027
A159: 150 | B159: GDL | C159: 139.8 | D159: 140.32 | E159: 136.58 | F159: 133.37 | G159: 129.63 | H159: 143.53 | I159: 147.27 | J159: 150.48 | K159: 144.05 | L159: 137.1 | M159: 4.5679
A160: 151 | B160: GEPIL | C160: 816.4 | D160: 812.68 | E160: 800.42 | F160: 784.43 | G160: 772.17 | H160: 828.67 | I160: 840.93 | J160: 856.92 | K160: 824.95 | L160: 796.7 | M160: 0.08316
A161: 152 | B161: GESHIP | C161: 284.15 | D161: 285.38 | E161: 280.82 | F161: 277.48 | G161: 272.92 | H161: 288.72 | I161: 293.28 | J161: 296.62 | K161: 289.95 | L161: 282.05 | M161: 0.82699
A162: 153 | B162: GET&D | C162: 231.35 | D162: 233.45 | E162: 228.45 | F162: 225.55 | G162: 220.55 | H162: 236.35 | I162: 241.35 | J162: 244.25 | K162: 238.45 | L162: 230.55 | M162: 0.31212
A163: 154 | B163: GHCL | C163: 225.75 | D163: 224.25 | E163: 219.00 | F163: 212.25 | G163: 207.00 | H163: 231.00 | I163: 236.25 | J163: 243.00 | K163: 229.5 | L163: 217.5 | M163: 1.94404
A164: 155 | B164: GICRE | C164: 285 | D164: 287.42 | E164: 281.63 | F164: 278.27 | G164: 272.48 | H164: 290.78 | I164: 296.57 | J164: 299.93 | K164: 293.2 | L164: 284.05 | M164: 1.78612
A165: 156 | B165: GILLETTE | C165: 6543.35 | D165: 6530.45 | E165: 6497.90 | F165: 6452.45 | G165: 6419.90 | H165: 6575.90 | I165: 6608.45 | J165: 6653.90 | K165: 6563 | L165: 6485 | M165: 0.09084
A166: 157 | B166: GLAXO | C166: 1360.5 | D166: 1359.38 | E166: 1341.22 | F166: 1321.93 | G166: 1303.77 | H166: 1378.67 | I166: 1396.83 | J166: 1416.12 | K166: 1377.55 | L166: 1340.1 | M166: 0.11965
A167: 158 | B167: GLENMARK | C167: 653.15 | D167: 649.72 | E167: 643.88 | F167: 634.62 | G167: 628.78 | H167: 658.98 | I167: 664.82 | J167: 674.08 | K167: 655.55 | L167: 640.45 | M167: 19.36061
A168: 159 | B168: GMDCLTD | C168: 86.25 | D168: 86.63 | E168: 85.57 | F168: 84.88 | G168: 83.82 | H168: 87.32 | I168: 88.38 | J168: 89.07 | K168: 87.7 | L168: 85.95 | M168: 1.26522
A169: 160 | B169: GMRINFRA | C169: 16.1 | D169: 16.07 | E169: 15.93 | F169: 15.77 | G169: 15.63 | H169: 16.23 | I169: 16.37 | J169: 16.53 | K169: 16.2 | L169: 15.9 | M169: 123.99604
A170: 161 | B170: GNFC | C170: 341.35 | D170: 340.45 | E170: 337.40 | F170: 333.45 | G170: 330.40 | H170: 344.40 | I170: 347.45 | J170: 351.40 | K170: 343.5 | L170: 336.5 | M170: 4.48266
A171: 162 | B171: GODFRYPHLP | C171: 926.4 | D171: 930.90 | E171: 916.90 | F171: 907.40 | G171: 893.40 | H171: 940.40 | I171: 954.40 | J171: 963.90 | K171: 944.9 | L171: 921.4 | M171: 1.35945
A172: 163 | B172: GODREJAGRO | C172: 495.85 | D172: 498.02 | E172: 492.18 | F172: 488.52 | G172: 482.68 | H172: 501.68 | I172: 507.52 | J172: 511.18 | K172: 503.85 | L172: 494.35 | M172: 1.21804
A173: 164 | B173: GODREJCP | C173: 750.35 | D173: 749.45 | E173: 745.90 | F173: 741.45 | G173: 737.90 | H173: 753.90 | I173: 757.45 | J173: 761.90 | K173: 753 | L173: 745 | M173: 10.08042
A174: 165 | B174: GODREJIND | C174: 549.45 | D174: 545.27 | E174: 539.68 | F174: 529.92 | G174: 524.33 | H174: 555.03 | I174: 560.62 | J174: 570.38 | K174: 550.85 | L174: 535.5 | M174: 9.26561
A175: 166 | B175: GODREJPROP | C175: 663.2 | D175: 657.13 | E175: 644.32 | F175: 625.43 | G175: 612.62 | H175: 676.02 | I175: 688.83 | J175: 707.72 | K175: 669.95 | L175: 638.25 | M175: 1.7034
A176: 167 | B176: GPPL | C176: 95 | D176: 95.72 | E176: 93.78 | F176: 92.57 | G176: 90.63 | H176: 96.93 | I176: 98.87 | J176: 100.08 | K176: 97.65 | L176: 94.5 | M176: 1.03655
A177: 168 | B177: GRANULES | C177: 88.65 | D177: 88.58 | E177: 87.27 | F177: 85.88 | G177: 84.57 | H177: 89.97 | I177: 91.28 | J177: 92.67 | K177: 89.9 | L177: 87.2 | M177: 19.2121
A178: 169 | B178: GRAPHITE | C178: 934.85 | D178: 938.27 | E178: 927.58 | F178: 920.32 | G178: 909.63 | H178: 945.53 | I178: 956.22 | J178: 963.48 | K178: 948.95 | L178: 931 | M178: 3.92648
A179: 170 | B179: GRASIM | C179: 866.25 | D179: 863.27 | E179: 853.78 | F179: 841.32 | G179: 831.83 | H179: 875.73 | I179: 885.22 | J179: 897.68 | K179: 872.75 | L179: 850.8 | M179: 17.44863
A180: 171 | B180: GREAVESCOT | C180: 122.6 | D180: 123.10 | E180: 121.50 | F180: 120.40 | G180: 118.80 | H180: 124.20 | I180: 125.80 | J180: 126.90 | K180: 124.7 | L180: 122 | M180: 1.57991
A181: 172 | B181: GREENPLY | C181: 133.25 | D181: 133.70 | E181: 129.60 | F181: 125.95 | G181: 121.85 | H181: 137.35 | I181: 141.45 | J181: 145.10 | K181: 137.8 | L181: 130.05 | M181: 2.61838
A182: 173 | B182: GRUH | C182: 296.7 | D182: 293.97 | E182: 289.93 | F182: 283.17 | G182: 279.13 | H182: 300.73 | I182: 304.77 | J182: 311.53 | K182: 298 | L182: 287.2 | M182: 4.07624
A183: 174 | B183: GSFC | C183: 106.1 | D183: 105.62 | E183: 103.38 | F183: 100.67 | G183: 98.43 | H183: 108.33 | I183: 110.57 | J183: 113.28 | K183: 107.85 | L183: 102.9 | M183: 15.01369
A184: 175 | B184: GSKCONS | C184: 7268.2 | D184: 7262.05 | E184: 7226.15 | F184: 7184.10 | G184: 7148.20 | H184: 7304.10 | I184: 7340.00 | J184: 7382.05 | K184: 7297.95 | L184: 7220 | M184: 0.10881
A185: 176 | B185: GSPL | C185: 187.15 | D185: 186.80 | E185: 184.60 | F185: 182.05 | G185: 179.85 | H185: 189.35 | I185: 191.55 | J185: 194.10 | K185: 189 | L185: 184.25 | M185: 1.14886
A186: 177 | B186: GUJALKALI | C186: 560.05 | D186: 559.68 | E186: 554.37 | F186: 548.68 | G186: 543.37 | H186: 565.37 | I186: 570.68 | J186: 576.37 | K186: 565 | L186: 554 | M186: 0.28512
A187: 178 | B187: GUJFLUORO | C187: 892.1 | D187: 887.37 | E187: 877.73 | F187: 863.37 | G187: 853.73 | H187: 901.73 | I187: 911.37 | J187: 925.73 | K187: 897 | L187: 873 | M187: 0.58692
A188: 179 | B188: GUJGASLTD | C188: 642.9 | D188: 642.63 | E188: 630.27 | F188: 617.63 | G188: 605.27 | H188: 655.27 | I188: 667.63 | J188: 680.27 | K188: 655 | L188: 630 | M188: 0.13416
A189: 180 | B189: GULFOILLUB | C189: 737.45 | D189: 742.55 | E189: 729.90 | F189: 722.35 | G189: 709.70 | H189: 750.10 | I189: 762.75 | J189: 770.30 | K189: 755.2 | L189: 735 | M189: 0.08041
A190: 181 | B190: GVKPIL | C190: 7.45 | D190: 7.42 | E190: 7.33 | F190: 7.22 | G190: 7.13 | H190: 7.53 | I190: 7.62 | J190: 7.73 | K190: 7.5 | L190: 7.3 | M190: 7.25286
A191: 182 | B191: HATHWAY | C191: 30.55 | D191: 30.60 | E191: 30.50 | F191: 30.45 | G191: 30.35 | H191: 30.65 | I191: 30.75 | J191: 30.80 | K191: 30.7 | L191: 30.55 | M191: 3.48078
A192: 183 | B192: HATSUN | C192: 619.95 | D192: 618.80 | E192: 615.60 | F192: 611.25 | G192: 608.05 | H192: 623.15 | I192: 626.35 | J192: 630.70 | K192: 622 | L192: 614.45 | M192: 0.0293
A193: 184 | B193: HAVELLS | C193: 684.7 | D193: 689.17 | E193: 671.33 | F193: 657.97 | G193: 640.13 | H193: 702.53 | I193: 720.37 | J193: 733.73 | K193: 707 | L193: 675.8 | M193: 35.8915
A194: 185 | B194: HCC | C194: 11.7 | D194: 11.73 | E194: 11.57 | F194: 11.43 | G194: 11.27 | H194: 11.87 | I194: 12.03 | J194: 12.17 | K194: 11.9 | L194: 11.6 | M194: 76.78591
A195: 186 | B195: HCL-INSYS | C195: 24.65 | D195: 24.88 | E195: 24.27 | F195: 23.88 | G195: 23.27 | H195: 25.27 | I195: 25.88 | J195: 26.27 | K195: 25.5 | L195: 24.5 | M195: 7.92314
A196: 187 | B196: HCLTECH | C196: 1015 | D196: 1015.18 | E196: 1004.07 | F196: 993.13 | G196: 982.02 | H196: 1026.12 | I196: 1037.23 | J196: 1048.17 | K196: 1026.3 | L196: 1004.25 | M196: 21.09694
A197: 188 | B197: HDFC | C197: 1989 | D197: 1983.52 | E197: 1968.28 | F197: 1947.57 | G197: 1932.33 | H197: 2004.23 | I197: 2019.47 | J197: 2040.18 | K197: 1998.75 | L197: 1962.8 | M197: 42.36401
A198: 189 | B198: HDFCBANK | C198: 2128.45 | D198: 2125.33 | E198: 2113.12 | F198: 2097.78 | G198: 2085.57 | H198: 2140.67 | I198: 2152.88 | J198: 2168.22 | K198: 2137.55 | L198: 2110 | M198: 32.60231
A199: 190 | B199: HDIL | C199: 20.3 | D199: 20.37 | E199: 20.13 | F199: 19.97 | G199: 19.73 | H199: 20.53 | I199: 20.77 | J199: 20.93 | K199: 20.6 | L199: 20.2 | M199: 12.47043
A200: 191 | B200: HEG | C200: 4180.9 | D200: 4195.22 | E200: 4155.68 | F200: 4130.47 | G200: 4090.93 | H200: 4220.43 | I200: 4259.97 | J200: 4285.18 | K200: 4234.75 | L200: 4170 | M200: 0.89859
A201: 192 | B201: HEIDELBERG | C201: 150.8 | D201: 150.23 | E201: 148.57 | F201: 146.33 | G201: 144.67 | H201: 152.47 | I201: 154.13 | J201: 156.37 | K201: 151.9 | L201: 148 | M201: 1.28132
A202: 193 | B202: HERITGFOOD | C202: 513.15 | D202: 514.68 | E202: 511.02 | F202: 508.88 | G202: 505.22 | H202: 516.82 | I202: 520.48 | J202: 522.62 | K202: 518.35 | L202: 512.55 | M202: 0.11342
A203: 194 | B203: HEROMOTOCO | C203: 3055.2 | D203: 3045.67 | E203: 3029.53 | F203: 3003.87 | G203: 2987.73 | H203: 3071.33 | I203: 3087.47 | J203: 3113.13 | K203: 3061.8 | L203: 3020 | M203: 4.18913
A204: 195 | B204: HEXAWARE | C204: 323.95 | D204: 322.13 | E204: 315.27 | F204: 306.58 | G204: 299.72 | H204: 330.82 | I204: 337.68 | J204: 346.37 | K204: 329 | L204: 313.45 | M204: 21.88045
A205: 196 | B205: HFCL | C205: 18.1 | D205: 18.20 | E205: 17.90 | F205: 17.70 | G205: 17.40 | H205: 18.40 | I205: 18.70 | J205: 18.90 | K205: 18.5 | L205: 18 | M205: 19.74667
A206: 197 | B206: HIMATSEIDE | C206: 215.05 | D206: 218.93 | E206: 208.87 | F206: 202.68 | G206: 192.62 | H206: 225.12 | I206: 235.18 | J206: 241.37 | K206: 229 | L206: 212.75 | M206: 4.39507
... 304 more rows

Sheet Bulk Deals
E6: Back To Main Page
A7: Subject : | B7: BULK DEAL | D7: =Main!B10 -> 2018-12-03
A9: Date | B9: Scrip code | C9: Scrip Name | D9: Client Name | E9: Buy / Sell | F9: Quantity Traded | G9: Trade Price / Wt.Avg.trade price | H9: Exchange
A10: 2018-11-30 | B10: 542057 | C10: BCPL | D10: NNM SECURITIES PVT LTD | E10: SELL | F10: 88,000 | G10: 34.83 | H10: BSE
A11: 2018-11-30 | B11: 542057 | C11: BCPL | D11: NNM SECURITIES PVT LTD | E11: BUY | F11: 20,000 | G11: 36 | H11: BSE
A12: 2018-11-30 | B12: 533090 | C12: EXCEL | D12: SARVOTTAM SECURITIES PRIVATE LIMITED | E12: BUY | F12: 540,000 | G12: 3.6 | H12: BSE
A13: 2018-11-30 | B13: 541276 | C13: GARVIND | D13: SURENDER KUMAR | E13: BUY | F13: 100,000 | G13: 7.8 | H13: BSE
A14: 2018-11-30 | B14: 539009 | C14: GBLIL | D14: BUDDHADEB LAHA | E14: BUY | F14: 39,000 | G14: 63.12 | H14: BSE
A15: 2018-11-30 | B15: 539009 | C15: GBLIL | D15: HATHILA VANESHBHAI RASUBHAI | E15: SELL | F15: 32,500 | G15: 63.14 | H15: BSE
A16: 2018-11-30 | B16: 539009 | C16: GBLIL | D16: ARUN LAHA | E16: BUY | F16: 36,000 | G16: 63.21 | H16: BSE
A17: 2018-11-30 | B17: 540716 | C17: ICICIGI | D17: RED BLOOM INVESTMENT LTD | E17: SELL | F17: 14,278,821 | G17: 800 | H17: BSE
A18: 2018-11-30 | B18: 536709 | C18: INDRENEW | D18: JITENDRA KANTILAL VAKHARIA | E18: SELL | F18: 25,000 | G18: 18 | H18: BSE
A19: 2018-11-30 | B19: 536709 | C19: INDRENEW | D19: SABOO RAJ KUMAR | E19: BUY | F19: 27,159 | G19: 18 | H19: BSE
A20: 2018-11-30 | B20: 535136 | C20: KFL | D20: LAKHOTIA POLYSTERS (INDIA) LIMITED | E20: SELL | F20: 102,500 | G20: 6.32 | H20: BSE
A21: 2018-11-30 | B21: 540812 | C21: KMSL | D21: NEWEDGE VINIMAY PRIVATE LIMITED | E21: SELL | F21: 72,000 | G21: 12 | H21: BSE
A22: 2018-11-30 | B22: 540812 | C22: KMSL | D22: COMPETENT TEXTILES PVT LTD | E22: BUY | F22: 100,000 | G22: 12 | H22: BSE
A23: 2018-11-30 | B23: 531206 | C23: KWALITYCL | D23: FASTNER MACHINERY DEALERS PVT LIMITED | E23: SELL | F23: 40,067 | G23: 10.1 | H23: BSE
A24: 2018-11-30 | B24: 535322 | C24: REPCOHOME | D24: THE PABRAI INVESTMENT FUND IV LP | E24: SELL | F24: 684,000 | G24: 338.17 | H24: BSE
A25: 2018-11-30 | B25: 532527 | C25: RKFORGE | D25: VANTAGE EQUITY FUND | E25: BUY | F25: 280,000 | G25: 516.67 | H25: BSE
A26: 2018-11-30 | B26: 532527 | C26: RKFORGE | D26: AMANSA HOLDINGS PRIVATE LIMITED | E26: SELL | F26: 296,600 | G26: 515.11 | H26: BSE
A27: 2018-11-30 | B27: 538557 | C27: SAIBABA | D27: GYAN CHAND AGGARWAL | E27: BUY | F27: 600,000 | G27: 1.83 | H27: BSE
A28: 2018-11-30 | B28: 538557 | C28: SAIBABA | D28: HAIDERALI KUTUBALI NOORANI | E28: SELL | F28: 600,000 | G28: 1.83 | H28: BSE
A29: 2018-11-30 | B29: 530419 | C29: SUMEDHA | D29: LUKMAN MUNAVAR PATEL | E29: SELL | F29: 104,805 | G29: 17.3 | H29: BSE
A30: 2018-11-30 | B30: 532070 | C30: SUPRBPA | D30: JAY BHAVSAR | E30: BUY | F30: 30,005 | G30: 22.41 | H30: BSE
A31: 2018-11-30 | B31: 539798 | C31: UMIYA | D31: SAVJIBHAI MANJIBHAI MENPARA . | E31: BUY | F31: 51,000 | G31: 28.14 | H31: BSE
A32: 2018-11-30 | B32: 539798 | C32: UMIYA | D32: ARUN DASHRATHBHAI PRAJAPATI | E32: SELL | F32: 73,039 | G32: 28.02 | H32: BSE
A33: 2018-11-30 | B33: 539798 | C33: UMIYA | D33: RATNA SANJEEV PATEL | E33: BUY | F33: 133,025 | G33: 27.78 | H33: BSE
A34: 2018-11-30 | B34: 539798 | C34: UMIYA | D34: RATNA SANJEEV PATEL | E34: SELL | F34: 19,745 | G34: 27.98 | H34: BSE
A35: 2018-11-30 | B35: 505533 | C35: WESTLIFE | D35: SBI MUTUAL FUND | E35: SELL | F35: 3,395,710 | G35: 345.07 | H35: BSE
A36: 2018-11-30 | B36: 505533 | C36: WESTLIFE | D36: SBI MUTUAL FUND | E36: BUY | F36: 3,306,962 | G36: 345 | H36: BSE
A37: 2018-11-30 | B37: 522108 | C37: YUKEN | D37: CHANDRAKANT SUNDER SHETTY | E37: BUY | F37: 245,000 | G37: 529.5 | H37: BSE
A38: 2018-11-30 | B38: 522108 | C38: YUKEN | D38: FAZAL NABI SHAIK | E38: SELL | F38: 245,000 | G38: 529.5 | H38: BSE
A39: 2018-11-30 | B39: ARVIND | C39: Arvind Limited | D39: SHAASTRA SECURITIES TRADING PRIVATE LIMITED | E39: BUY | F39: 1,588,258 | G39: 102.5 | H39: BSE
A40: 2018-11-30 | B40: BHEL | C40: Bharat Heavy Elect Ltd. | D40: INTEGRATED CORE STRATEGIES (ASIA) PTE.LTD. | E40: BUY | F40: 30,167,975 | G40: 68.57 | H40: NSE
A41: 2018-11-30 | B41: CARERATING | C41: CARE Ratings Ltd | D41: COPTHALL MAURITIUS INVESTMENT LIMITED | E41: BUY | F41: 152,020 | G41: 957.2 | H41: NSE
A42: 2018-11-30 | B42: CKPPRODUCT | C42: CKP Products Limited | D42: KSBL SECURITIES LIMITED | E42: BUY | F42: 147,000 | G42: 34.9 | H42: NSE
A43: 2018-11-30 | B43: CKPPRODUCT | C43: CKP Products Limited | D43: SHASHI MANMOHAN AGRAWAL | E43: BUY | F43: 150,000 | G43: 34.9 | H43: NSE
A44: 2018-11-30 | B44: CNOVAPETRO | C44: CIL Nova Petro Chm Ltd | D44: ANIL R DHANUKA | E44: BUY | F44: 186,407 | G44: 23.9 | H44: NSE
A45: 2018-11-30 | B45: DHFL | C45: Dewan Housing Fin Corp | D45: SHAASTRA SECURITIES TRADING PRIVATE LIMITED | E45: BUY | F45: 1,719,039 | G45: 211.6 | H45: NSE
A46: 2018-11-30 | B46: GSS | C46: GSS Infotech Limited | D46: AGARWAL ARCHANA | E46: BUY | F46: 95,518 | G46: 126.94 | H46: NSE
A47: 2018-11-30 | B47: RCOM | C47: Reliance Comm. Ltd. | D47: SHAASTRA SECURITIES TRADING PRIVATE LIMITED | E47: BUY | F47: 15,289,825 | G47: 13.84 | H47: NSE
A48: 2018-11-30 | B48: RKFORGE | C48: Ramkrishna Forgings Ltd | D48: ABAKKUS GROWTH FUND 1 | E48: BUY | F48: 500,000 | G48: 515 | H48: NSE
A49: 2018-11-30 | B49: RKFORGE | C49: Ramkrishna Forgings Ltd | D49: OLD BRIDGE CAPITAL MANAGEMENT PRIVATE LIMITED A/C OBCMPL-AL | E49: BUY | F49: 800,383 | G49: 515 | H49: NSE
A50: 2018-11-30 | B50: SILGO | C50: Silgo Retail Limited | D50: OVERSKUD MULTI ASSET MANAGEMENT PRIVATE LIMITED | E50: BUY | F50: 42,000 | G50: 36.25 | H50: NSE
A51: 2018-11-30 | B51: SUULD | C51: Suumaya Lifestyle Limited | D51: NEWEDGE VINIMAY PRIVATE LIMITED | E51: BUY | F51: 176,000 | G51: 26.55 | H51: NSE
A52: 2018-11-30 | B52: ARVIND | C52: Arvind Limited | D52: SHAASTRA SECURITIES TRADING PRIVATE LIMITED | E52: SELL | F52: 1,588,258 | G52: 102.44 | H52: NSE
A53: 2018-11-30 | B53: CKPPRODUCT | C53: CKP Products Limited | D53: EMMAR TRADING PRIVATE LIMITED | E53: SELL | F53: 150,000 | G53: 34.84 | H53: NSE
A54: 2018-11-30 | B54: CKPPRODUCT | C54: CKP Products Limited | D54: KSBL SECURITIES LIMITED | E54: SELL | F54: 147,000 | G54: 34.9 | H54: NSE
A55: 2018-11-30 | B55: CNOVAPETRO | C55: CIL Nova Petro Chm Ltd | D55: ASIA INVESTMENT CORPORATION MAURITIUS LTD | E55: SELL | F55: 186,407 | G55: 23.9 | H55: NSE
A56: 2018-11-30 | B56: DHFL | C56: Dewan Housing Fin Corp | D56: SHAASTRA SECURITIES TRADING PRIVATE LIMITED | E56: SELL | F56: 1,719,039 | G56: 211.71 | H56: NSE
A57: 2018-11-30 | B57: DIVISLAB | C57: Divi's Laboratories Limit | D57: INTEGRATED CORE STRATEGIES (ASIA) PTE.LTD. | E57: SELL | F57: 1,886,001 | G57: 1438.98 | H57: NSE
A58: 2018-11-30 | B58: GSS | C58: GSS Infotech Limited | D58: AGARWAL ARCHANA | E58: SELL | F58: 95,518 | G58: 126.03 | H58: NSE
A59: 2018-11-30 | B59: HISARMETAL | C59: Hisar Metal Ind. Limited | D59: LUKMAN MUNAVAR PATEL | E59: SELL | F59: 34,257 | G59: 44.82 | H59: NSE
A60: 2018-11-30 | B60: RCOM | C60: Reliance Comm. Ltd. | D60: SHAASTRA SECURITIES TRADING PRIVATE LIMITED | E60: SELL | F60: 15,289,825 | G60: 13.88 | H60: NSE
A61: 2018-11-30 | B61: RKFORGE | C61: Ramkrishna Forgings Ltd | D61: AMANSA HOLDINGS PRIVATE LIMITED | E61: SELL | F61: 1,600,000 | G61: 515.24 | H61: NSE
A62: 2018-11-30 | B62: SILGO | C62: Silgo Retail Limited | D62: NOPEA CAPITAL SERVICE PRIVATE LIMITED | E62: SELL | F62: 42,000 | G62: 36.25 | H62: NSE
A63: 2018-11-30 | B63: SUULD | C63: Suumaya Lifestyle Limited | D63: MACRO DEALCOMM PRIVATE LIMITED | E63: SELL | F63: 176,000 | G63: 26.45 | H63: NSE

Sheet Call Tracker (Equity & F&O)
M5: Back To Main Page
A6: Retail Research Technical Calls & Fundamental Performance Report for the month of November -2018
M7: =Main!B10 -> 2018-12-03
B8: Positional Call
A9: Sr.no | B9: Date | D9: Company | E9: Rec | F9: Rec Price | G9: Stop Loss*** | H9: Call Closed At | I9: Target | J9: Remark | K9: Profit / Loss per Share | L9: Gain / Loss % | M9: Status | N9: Closed Date | O9: NSE Closed Price
A10: 1 | B10: 2018-10-25 | D10: SUNPHARMA | E10: Buy{} | F10: 569 | G10: 528 | H10: 587.5 | I10: 620-630 | J10: Profit of Rs.18.5/- | K10: =H10-F10 -> 18.5 | L10: =K10/F10 -> 3.25% | M10: Successful | N10: 2018-11-09 | R10: H
A11: 2 | B11: 2018-11-02 | D11: MARUTI | E11: Buy{} | F11: 6860 | G11: 6580 | H11: 7140 | I11: 7300-7500 | J11: Profit of Rs.280/- | K11: =H11-F11 -> 280 | L11: =K11/F11 -> 4.08% | M11: Successful | N11: 2018-11-05 | R11: H
A12: 3 | B12: 2018-11-09 | D12: RECLTD | E12: Buy{} | F12: 122.5 | G12: 116.3 | H12: 120 | I12: 133-137 | J12: Loss of Rs.2.50/- | K12: =H12-F12 -> -2.5 | L12: =K12/F12 -> -2.04% | M12: Unuccessful | N12: 2018-11-28 | R12: R
A13: 4 | B13: 2018-11-12 | D13: SRF | E13: Buy{} | F13: 2040 | G13: 1940 | H13: 2110 | I13: 2200-2250 | J13: Profit of Rs.70/- | K13: =H13-F13 -> 70 | L13: =K13/F13 -> 3.43% | M13: Successful | N13: 2018-11-28 | R13: H
A14: 5 | B14: 2018-11-12 | D14: GAIL | E14: Buy | F14: 363.5 | G14: 348 | H14: 346 | I14: 385-395 | J14: Loss of Rs.17.50/- | K14: =H14-F14 -> -17.5 | L14: =K14/F14 -> -4.81% | M14: Unuccessful | N14: 2018-11-16 | R14: H
A15: 6 | B15: 2018-11-13 | D15: IOC | E15: Buy | F15: 137.5 | G15: 134 | H15: 142.25 | I15: 146-150 | J15: Profit of Rs.4.75/- | K15: =H15-F15 -> 4.75 | L15: =K15/F15 -> 3.45% | M15: Successful | N15: 2018-11-13 | R15: H
A16: 7 | B16: 2018-11-13 | D16: NIITTECH | E16: Buy | F16: 1195 | G16: 1144.4 | H16: 1144.4 | I16: 1300-1310 | J16: Loss of Rs.50.6/- | K16: =H16-F16 -> -50.6 | L16: =K16/F16 -> -4.23% | M16: Unuccessful | N16: 2018-11-17 | R16: R
A17: 8 | B17: 2018-11-14 | D17: ASHOKLEY | E17: Buy | F17: 108 | G17: 100.7 | H17: 111.25 | I17: 122-125 | J17: Part Profit of Rs.3.25/- | K17: 3.25 | L17: 3.01% | M17: Successful | N17: 2018-11-30 | R17: R
A18: 9 | B18: 2018-11-16 | D18: JSWSTEEL | E18: Buy | F18: 338 | G18: 324 | H18: 321.5 | I18: 365-375 | J18: Loss of Rs.16.50/- | K18: =H18-F18 -> -16.5 | L18: =K18/F18 -> -4.88% | M18: Unuccessful | N18: 2018-11-22 | R18: H
A19: 10 | B19: 2018-11-20 | D19: GLENMARK | E19: Buy{} | F19: 627.5 | G19: 598.7 | H19: 651 | I19: 700-710 | J19: Profit of Rs.23.5/- | K19: =H19-F19 -> 23.5 | L19: =K19/F19 -> 3.75% | M19: Successful | N19: 2018-11-27 | R19: R
A20: 11 | B20: 2018-11-20 | D20: NIITTECH | E20: Buy | F20: 1123.5 | G20: 1078 | H20: 1078 | I20: 1180-1200 | J20: Loss of Rs.45.50/- | K20: -45.5 | L20: -4.05% | M20: Unuccessful | N20: 2018-11-22 | R20: H
A21: 12 | B21: 2018-11-20 | D21: FEDERALBNK | E21: Sell | F21: 80.25 | G21: 85.2 | H21: 84.5 | I21: 68-70 | J21: Loss of Rs.4.25/- | K21: =F21-H21 -> -4.25 | L21: =K21/F21 -> -5.30% | M21: Unuccessful | N21: 2018-11-29 | R21: R
A22: 13 | B22: 2018-11-21 | D22: ADANIPORTS | E22: Sell | F22: 358-361 | G22: 377.7 | I22: 322-326 | J22: Open | O22: =VLOOKUP(D22,Sheet2!A11:M1647,6,0) -> 365.65 | R22: R
A23: 14 | B23: 2018-11-29 | D23: JSWSTEEL | E23: Buy | F23: 312 | G23: 297.7 | H23: 322 | I23: 344-350 | J23: Part Profit of Rs.10/- | K23: =H23-F23 -> 10 | L23: =K23/F23 -> 3.21% | M23: Successful | N23: 2018-11-30 | R23: R
A24: 15 | B24: 2018-11-30 | D24: RAYMOND | E24: Sell | F24: 818-822 | G24: 861.6 | I24: 745-735 | J24: Open | O24: =VLOOKUP(D24,Sheet2!A13:M1649,6,0) -> 809.5 | R24: R
A25: 16 | B25: 2018-11-30 | D25: INFY | E25: Buy | F25: 662-668 | G25: 628 | I25: 725 | J25: Open | O25: =VLOOKUP(D25,Sheet2!A14:M1650,6,0) -> 667.45 | R25: H
A30: CLBS = Closing Basis *** | F30: Reinitiated $
A31: Dividend adjusted <> | F31: Revised stoploss #
A32: Part book {}
A33: Master Trade High Risk
A34: Sr.no | B34: Date | D34: Company | E34: Rec | F34: Rec Price | G34: Stop Loss | H34: Call Closed At | I34: Target | J34: Remark | K34: Profit / Loss per share | L34: Gain / Loss per Lot | M34: Lot | N34: Status | O34: Closed Date
A35: 1 | B35: 2018-11-01 | D35: NIFTY NOV FUT | E35: Sell | F35: 10435 | G35: 10620 | H35: 10355 | I35: 10250 | J35: Profit of Rs 53/- | K35: =F35-H35 -> 80 | L35: =M35*53 -> 3975 | M35: 75 | N35: Successful | O35: 2018-11-01 | R35: H
D36: NIFTY NOV 10300 PE | E36: Sell | F36: 165 | H36: 192 | K36: -27
A37: 2 | B37: 2018-11-01 | D37: WIPRO NOV FUT | E37: Sell | F37: 330 | G37: 338 | H37: 324.75 | I37: 315 | J37: Profit of Rs 4.25/- | K37: 5.25 | L37: =M37*4.25 -> 10200 | M37: 2400 | N37: Successful | O37: 2018-11-02 | R37: H
D38: WIPRO Nov 320 PE | E38: Sell | F38: 6.25 | H38: 7.25 | K38: -1
A39: 3 | B39: 2018-11-01 | D39: NIFTY NOV FUT | E39: Sell | F39: 10445 | G39: 10620 | H39: 10575 | I39: 10250 | J39: Loss of Rs.67.5/- | K39: -130 | L39: =-M39*67.5 -> -5062.5 | M39: 75 | N39: Unsuccessful | O39: 2018-11-02 | R39: H
D40: NIFTY NOV 10300 PE | E40: Sell | F40: 155 | H40: 92.5 | K40: 62.5
A41: 4 | B41: 2018-11-05 | D41: WIPRO NOV FUT | E41: Sell | F41: 321.5 | G41: 331 | H41: 319.5 | I41: 305 | J41: Profit of Rs 4/- | K41: =F41-H41 -> 2 | L41: 9600 | M41: 2400 | N41: Successful | O41: 2018-11-14 | R41: H
D42: WIPRO Nov 320 PE | E42: Sell | F42: 6.5 | H42: 4.5 | K42: 2 | R42: H
A43: 5 | B43: 2018-11-14 | D43: RELIANCE NOV FUT | E43: Sell | F43: 1105 | G43: 1126 | H43: 1089 | I43: 1070-1060 | J43: Profit of Rs.16/- | K43: =F43-H43 -> 16 | L43: =M43*K43 -> 8000 | M43: 500 | N43: Successful | O43: 2018-11-14 | R43: H
A44: 6 | B44: 2018-11-14 | D44: JSWSTEEL NOV FUT | E44: Buy | F44: 346.5 | G44: 338.5 | H44: 340 | I44: 362 | J44: Loss of Rs.6.5/- | K44: =H44-F44 -> -6.50 | L44: =M44*K44 -> -9750 | M44: 1500 | N44: Unsuccessful | O44: 2018-11-14 | R44: H
A45: 7 | B45: 2018-11-16 | D45: NIFTY NOV FUT | E45: Sell | F45: 10705 | G45: 10875 | H45: 10635 | I45: 10450 | J45: Profit of Rs.70/- | K45: =F45-H45 -> 70 | L45: =M45*K45 -> 5250 | M45: 75 | N45: Successful | O45: 2018-11-21 | R45: H
A46: 8 | B46: 2018-11-22 | D46: ICICIBANK NOV FUT | E46: Buy | F46: 356 | G46: 349 | H46: 356.5 | I46: 365-368 | J46: Profit of Rs 3.25/- | K46: =H46-F46 -> 0.5 | L46: =M46*3.25 -> 8937.5 | M46: 2750 | N46: Successful | O46: 2018-11-28 | R46: H
D47: ICICIBANK Nov 320 PE | E47: Sell | F47: 4 | H47: 1.25 | K47: =F47-H47 -> 2.75 | R47: H
A48: 9 | B48: 2018-11-28 | D48: NIFTY DEC FUT | E48: Sell | F48: 10777.5 | G48: 10975 | H48: 10900 | I48: 10500-10400 | J48: Loss of Rs.84/- | K48: =F48-H48 -> -122.5 | L48: =-M48*67.5 -> -5062.5 | M48: 75 | N48: Unsuccessful | O48: 2018-11-29 | R48: H
D49: NIFTY DEC 10600 PE | E49: Sell | F49: 137.5 | H49: 99 | K49: 38.5
A50: 10 | B50: 2018-11-30 | D50: UPL DEC FUT | E50: Sell | F50: 781 | G50: 804 | H50: 771.5 | I50: 705 | J50: Profit of Rs 6.75/- | K50: 9.5 | L50: =M50*6.75 -> 8100 | M50: 1200 | N50: Successful | O50: 2018-11-30 | R50: H
D51: UPL DEC 760 PE | E51: Sell | F51: 19 | H51: 21.75 | K51: =F51-H51 -> -2.75
A52: 11 | B52: 2018-11-30 | D52: ADANIPORTS DEC FUT | E52: Sell | F52: 375.5 | G52: 384 | H52: 370.5 | I52: 360 | J52: Profit of Rs 4/- | K52: 5 | L52: 10000 | M52: 2500 | N52: Successful | O52: 2018-11-30 | R52: H
D53: ADANIPORTS DEC 360 PE | E53: Sell | F53: 8.5 | H53: 9.5 | K53: =F53-H53 -> -1
A54: 12 | B54: 2018-11-30 | D54: KOTAKBANK DEC FUT | E54: Buy | F54: 1228-1231 | G54: 1195 | I54: 1270-1290 | J54: Open | R54: H
D55: KOTAKBANK DEC 1260 CE | E55: Sell | F55: 23-24
A57: Master Trade Medium Risk
A58: Sr.no | B58: Date | D58: Company | E58: Rec | F58: Rec Price | G58: Stop Loss | H58: Call Closed At | I58: Target | J58: Remark | K58: Profit/ Loss per lot | L58: Gain / Loss per Lot | M58: Lot | N58: Status | O58: Closed Date
A59: 1 | B59: 2018-11-05 | D59: HDFCBANK NOV 2000 CE | E59: Buy | F59: 22 | G59: 8 | H59: 26.5 | I59: 45 | J59: Profit of Rs.4.50/- | K59: 4.5 | L59: =M59*K59 -> 1125 | M59: 250 | N59: Successful | O59: 2018-11-06 | R59: H
A60: 2 | B60: 2018-11-07 | D60: NIFTY NOV 10300 PE | E60: Buy | F60: 64 | G60: 17 | H60: 74 | I60: 120-130 | J60: Profit of Rs.10/- | K60: =H60-F60 -> 10 | L60: =M60*K60 -> 750 | M60: 75 | N60: Successful | O60: 2018-11-12 | R60: H
A61: 3 | B61: 2018-11-12 | D61: HDFCBANK NOV 1960 CE | E61: Buy | F61: 20.5 | G61: 8 | H61: 25.5 | I61: 45 | J61: Profit of Rs.5/- | K61: 5 | L61: =M61*K61 -> 1250 | M61: 250 | N61: Successful | O61: 2018-11-14 | R61: H
A62: 4 | B62: 2018-11-14 | D62: Nifty NOV 10600 PE | E62: Buy | F62: 131 | H62: 109 | J62: Profit of Rs 20/- | K62: =H62-F62 -> -22 | L62: =75*20 -> 1500 | M62: 75 | N62: Successful | O62: 2018-11-26 | R62: H
D63: Nifty NOV 10450 PE | E63: Sell | F63: 81 | H63: 39 | K63: =F63-H63 -> 42
A64: 5 | B64: 2018-11-16 | D64: HINDPETRO NOV 250 PE | E64: Buy | F64: 8.5 | H64: 13.5 | J64: Profit of Rs 2.75/- | K64: =H64-F64 -> 5 | L64: =1575*2.75 -> 4331.25 | M64: 1575 | N64: Successful | O64: 2018-11-16 | R64: H
D65: HINDPETRO NOV 240 PE | E65: Sell | F65: 5.25 | H65: 7.5 | K65: =F65-H65 -> -2.25
A66: 6 | B66: 2018-11-19 | D66: RELIANCE NOV 1100 PE | E66: Buy | F66: 8.5 | G66: 1.9 | H66: 12.25 | I66: 18-20 | J66: Profit of Rs.5/- | K66: 5 | L66: =M66*K66 -> 2500 | M66: 500 | N66: Successful | O66: 2018-11-21 | R66: H
A67: 7 | B67: 2018-11-20 | D67: MARUTI NOV 7200 PE | E67: Buy | F67: 60 | H67: 0 | I67: 130 | J67: Loss of Rs.60/- | K67: =H67-F67 -> -60.00 | L67: =M67*K67 -> -4500 | M67: 75 | N67: Unsuccessful | O67: 2018-11-29 | R67: N
B74: Smart Delivery Trade
A75: Sr.no | B75: Date | D75: Company | E75: Rec | F75: Rec Price | G75: Stop Loss*** | H75: Call Closed At | I75: Target | J75: Remark | K75: Profit / Loss per Share | L75: Gain / Loss % | M75: Status | N75: Closed Date | O75: NSE Closed Price
A76: 1 | B76: 2018-11-02 | D76: JSWSTEEL | E76: Buy | F76: 346 | G76: 331 | H76: 354 | I76: 375 | J76: Profit of Rs.8/- | K76: =H76-F76 -> 8 | L76: =K76/F76 -> 2.31% | M76: Successful | N76: 2018-11-02 | R76: H
A77: 2 | B77: 2018-11-02 | D77: DABUR | E77: Buy<> | F77: 371.25 | G77: 358 | H77: 382.5 | I77: 390-400 | J77: Profit of Rs.11.25/- | K77: 11.25 | L77: 3.03% | M77: Successful | N77: 2018-11-12 | R77: H
A78: 3 | B78: 2018-11-02 | D78: BHARATFORG | E78: Buy | F78: 610 | G78: 589 | H78: 587.5 | I78: 640-650 | J78: Loss of Rs.22.5/- | K78: =H78-F78 -> -22.5 | L78: =K78/F78 -> -3.69% | M78: Unsuccessful | N78: 2018-11-09 | R78: H
A79: 4 | B79: 2018-11-09 | D79: SUVEN | E79: Buy | F79: 255 | G79: 247 | H79: 247 | I79: 270-275 | J79: Loss of Rs.8/- | K79: =H79-F79 -> -8 | L79: =K79/F79 -> -3.14% | M79: Unsuccessful | N79: 2018-11-14 | R79: R
A80: 5 | B80: 2018-11-09 | D80: JUBLFOOD | E80: Buy | F80: 1075 | G80: 1037 | H80: 1108.5 | I80: 1120-1140 | J80: Profit of Rs.33.5/- | K80: =H80-F80 -> 33.5 | L80: =K80/F80 -> 3.12% | M80: Successful | N80: 2018-11-12 | R80: H
A81: 6 | B81: 2018-11-12 | D81: HEROMOTOCO | E81: Buy | F81: 2920 | G81: 2790 | H81: 3022.5 | I81: 3100-3200 | J81: Profit of Rs.102.5/- | K81: =H81-F81 -> 102.5 | L81: =K81/F81 -> 3.51% | M81: Successful | N81: 2018-11-26 | R81: H
A82: 7 | B82: 2018-11-12 | D82: HINDALCO | E82: Buy | F82: 234.5 | G82: 227 | H82: 224 | I82: 247-250 | J82: Loss of Rs.10.5/- | K82: =H82-F82 -> -10.5 | L82: =K82/F82 -> -4.48% | M82: Unsuccessful | N82: 2018-11-22 | R82: R
A83: 8 | B83: 2018-11-13 | D83: DRREDDY | E83: Buy | F83: 2445 | G83: 2366.6 | H83: 2520 | I83: 2580-2600 | J83: Profit of Rs.75/- | K83: =H83-F83 -> 75 | L83: =K83/F83 -> 3.07% | M83: Successful | N83: 2018-11-19 | R83: R
A84: 9 | B84: 2018-11-14 | D84: ICICIBANK | E84: Sell | F84: 369 | G84: 381 | H84: 357.5 | I84: 340-345 | J84: Profit of Rs.11.5/- | K84: =F84-H84 -> 11.5 | L84: =K84/F84 -> 3.12% | M84: Successful | N84: 2018-11-20 | R84: R
A85: 10 | B85: 2018-11-15 | D85: CYIENT | E85: Buy | F85: 662 | G85: 638.7 | H85: 632.5 | I85: 710-720 | J85: Loss of Rs.29.5/- | K85: =H85-F85 -> -29.5 | L85: =K85/F85 -> -4.46% | M85: Unsuccessful | N85: 2018-11-14 | R85: R
A86: 11 | B86: 2018-11-15 | D86: DMART | E86: Buy | F86: 1390 | G86: 1348 | H86: 1435 | I86: 1470-1490 | J86: Profit of Rs.45/- | K86: 45 | L86: 3.24% | M86: Successful | N86: 2018-11-20 | R86: R
A87: 12 | B87: 2018-11-19 | D87: APOLLOHOSP | E87: Buy | F87: 1218 | G87: 1170 | H87: 1259 | I87: 1260-1280 | J87: Profit of Rs.41/- | K87: =H87-F87 -> 41 | L87: =K87/F87 -> 3.37% | M87: Successful | N87: 2018-11-27 | R87: H
A88: 13 | B88: 2018-11-21 | D88: IOC | E88: Buy | F88: 142.25 | G88: 137.8 | H88: 137.5 | I88: 150-152 | J88: Loss of Rs.4.75/- | K88: =H88-F88 -> -4.75 | L88: =K88/F88 -> -3.34% | M88: Unsuccessful | N88: 2018-11-26 | R88: H
A89: 14 | B89: 2018-11-21 | D89: ITC | E89: Buy | F89: 281.5 | G89: 269 | H89: 289.5 | I89: 300 | J89: Profit of Rs.8/- | K89: 8 | L89: 2.84% | M89: Successful | N89: 2018-11-30 | R89: H
A90: 15 | B90: 2018-11-22 | D90: TCS | E90: Buy | F90: 1824 | G90: 1765 | H90: 1883.5 | I90: 1920-1930 | J90: Profit of Rs.59.5/- | K90: =H90-F90 -> 59.5 | L90: =K90/F90 -> 3.26% | M90: Successful | N90: 2018-11-27 | R90: R
A91: 16 | B91: 2018-11-22 | D91: INFY | E91: Buy | F91: 624 | G91: 608 | H91: 648 | I91: 670-680 | J91: Profit of Rs.24/- | K91: 24 | L91: 3.85% | M91: Successful | N91: 2018-11-28 | R91: R
A92: 17 | B92: 2018-11-22 | D92: UPL | E92: Sell | F92: 784 | G92: 805 | H92: 759.5 | I92: 750-740 | J92: Profit of Rs.24.5/- | K92: =F92-H92 -> 24.5 | L92: =K92/F92 -> 3.13% | M92: Successful | N92: 2018-11-26 | R92: H
A93: 18 | B93: 2018-11-26 | D93: NIITTECH | E93: Buy | F93: 1060 | G93: 1035 | H93: 1093.5 | I93: 1100-1120 | J93: Profit of Rs.33.5/- | K93: =H93-F93 -> 33.5 | L93: =K93/F93 -> 3.16% | M93: Successful | N93: 2018-11-27 | R93: H
A94: 19 | B94: 2018-11-26 | D94: BALKRISIND | E94: Buy | F94: 965 | G94: 937 | H94: 1005 | I94: 1015-1025 | J94: Profit of Rs.40/- | K94: 40 | L94: 4.15% | M94: Successful | N94: 2018-11-28 | R94: R
A95: 20 | B95: 2018-11-26 | D95: VGUARD | E95: Buy | F95: 199 | G95: 192 | H95: 204.5 | I95: 210-215 | J95: Profit of Rs.5.5/- | K95: =H95-F95 -> 5.5 | L95: =K95/F95 -> 2.76% | M95: Successful | N95: 2018-11-28 | R95: R
A96: 21 | B96: 2018-11-27 | D96: MGL | E96: Buy | F96: 816-821 | G96: 793.7 | I96: 860-870 | J96: Open | O96: =VLOOKUP(D96,Sheet2!A57:M1693,6,0) -> 832.3 | R96: R
A97: 22 | B97: 2018-11-28 | D97: ESCORTS | E97: Buy | F97: 690-692 | G97: 669 | I97: 725-735 | J97: Open | O97: =VLOOKUP(D97,Sheet2!A58:M1694,6,0) -> 704.7 | R97: R
A98: 23 | B98: 2018-11-28 | D98: CEATLTD | E98: Buy | F98: 1220.5 | G98: 1183.3 | H98: 1256 | I98: 1290-1300 | J98: Profit of Rs.35.5/- | K98: =H98-F98 -> 35.5 | L98: =K98/F98 -> 2.91% | M98: Successful | N98: 2018-11-29 | R98: R
A99: 24 | B99: 2018-11-28 | D99: RELIANCE | E99: Sell | F99: 1150-1155 | G99: 1186 | I99: 1100-1090 | J99: Open | O99: =VLOOKUP(D99,Sheet2!A60:M1696,6,0) -> 1167.55 | R99: H
A100: 25 | B100: 2018-11-29 | D100: ACC | E100: Buy | F100: 1450.5 | G100: 1406.6 | H100: 1496 | I100: 1525-1535 | J100: Profit of Rs.45.5/- | K100: =H100-F100 -> 45.5 | L100: =K100/F100 -> 3.14% | M100: Successful | N100: 2018-11-30 | R100: R
A101: 26 | B101: 2018-11-29 | D101: NIITTECH | E101: Buy | F101: 1074 | G101: 1035 | H101: 1109 | I101: 1120-1140 | J101: Profit of Rs.35/- | K101: =H101-F101 -> 35 | L101: =K101/F101 -> 3.26% | M101: Successful | N101: 2018-11-30 | R101: H
A102: 27 | B102: 2018-11-29 | D102: MINDTREE | E102: Buy | F102: 850 | G102: 818.7 | H102: 879.5 | I102: 905-915 | J102: Profit of Rs.29.50/- | K102: =H102-F102 -> 29.5 | L102: =K102/F102 -> 3.47% | M102: Successful | N102: 2018-11-30 | R102: R
A103: 28 | B103: 2018-11-30 | D103: BAJAJ-AUTO | E103: Buy | F103: 2755-2765 | G103: 2680 | I103: 2870-2900 | J103: Open | O103: =VLOOKUP(D103,Sheet2!A64:M1700,6,0) -> 2745.7 | R103: H
A108: CLBS = Closing Basis *** | F108: Reinitiated $
A109: Dividend adjusted <> | F109: Revised stoploss #
B112: Momentum Call
A113: Sr.no | B113: Date | D113: Company | E113: Rec | F113: Rec Price | G113: Stop Loss | H113: Call Closed At | I113: Target | J113: Remark | K113: Profit / Loss per Share/Lot | L113: Gain / Loss % | M113: Gain / Loss per Lot | N113: Lot | O113: Status | P113: Closed Date
A114: 1 | B114: 2018-10-30 | D114: AMBUJACEM | E114: Buy | F114: 194.5 | G114: 189.5 | H114: 199.5 | I114: 202-205 | J114: Profit of Rs.5/- | K114: =H114-F114 -> 5 | L114: =K114/F114 -> 2.57% | O114: Successful | P114: 2018-11-01 | R114: H
A115: 2 | B115: 2018-10-31 | D115: EXIDEIND NOV FUT | E115: Sell | F115: 261.5 | G115: 266.6 | H115: 258.25 | I115: 250-247 | J115: Profit of Rs.3.25/- | K115: =F115-H115 -> 3.25 | M115: =N115*K115 -> 6500 | N115: 2000 | O115: Successful | P115: 2018-11-01 | R115: R
A116: 3 | B116: 2018-10-31 | D116: BAJFINANCE NOV FUT | E116: Sell | F116: 2365 | G116: 2411 | H116: 2411 | I116: 2250-2200 | J116: Loss of Rs.46/- | K116: =F116-H116 -> -46 | M116: =N116*K116 -> -11500 | N116: 250 | O116: Unsuccessful | P116: 2018-11-01 | R116: R
A117: 4 | B117: 2018-11-01 | D117: EXIDEIND NOV FUT | E117: Buy | F117: 255.5 | G117: 249.8 | H117: 259.5 | I117: 262-264 | J117: Profit of Rs.4/- | K117: =H117-F117 -> 4 | M117: 8000 | N117: 2000 | O117: Successful | P117: 2018-11-02 | R117: N
A118: 5 | B118: 2018-11-02 | D118: HDFCBANK | E118: Buy | F118: 1925 | G118: 1890 | H118: 1956.5 | I118: 1980-2000 | J118: Profit of Rs.31.5/- | K118: 31.5 | L118: =K118/F118 -> 1.64% | O118: Successful | P118: 2018-11-02 | R118: H
A119: 6 | B119: 2018-11-02 | D119: ICICIBANK NOV FUT | E119: Sell | F119: 356 | G119: 361.8 | H119: 350 | I119: 345 | J119: Profit of Rs.6/- | K119: =F119-H119 -> 6 | M119: =N119*K119 -> 16500 | N119: 2750 | O119: Successful | P119: 2018-11-05 | R119: R
A120: 7 | B120: 2018-11-05 | D120: CONCOR | E120: Buy | F120: 652.5 | G120: 634 | H120: 678 | I120: 680-690 | J120: Profit of Rs.25.50/- | K120: =H120-F120 -> 25.5 | L120: =K120/F120 -> 3.91% | O120: Successful | P120: 2018-11-06 | R120: H
A121: 8 | B121: 2018-11-05 | D121: AMARAJABAT NOV FUT | E121: Buy | F121: 781.5 | G121: 765 | H121: 769 | I121: 800-810 | J121: Loss of Rs.12.50/- | K121: =H121-F121 -> -12.5 | M121: =N121*K121 -> -8750 | N121: 700 | O121: Unsuccessful | P121: 2018-11-06 | R121: N
A122: 9 | B122: 2018-11-06 | D122: HDFC NOV FUT | E122: Buy | F122: 1807.5 | G122: 1785 | H122: 1817.5 | I122: 1840 | J122: Profit of Rs.10/- | K122: =H122-F122 -> 10 | M122: 5000 | N122: 500 | O122: Successful | P122: 2018-11-07 | R122: H
A123: 10 | B123: 2018-11-06 | D123: HINDUNILVR NOV FUT | E123: Buy | F123: 1627.5 | G123: 1608 | H123: 1640 | I123: 1670 | J123: Profit of Rs.12.5/- | K123: =H123-F123 -> 12.5 | M123: =N123*K123 -> 7500 | N123: 600 | O123: Successful | P123: 2018-11-07 | R123: N
A124: 11 | B124: 2018-11-09 | D124: LT NOV FUT | E124: Sell | F124: 1375.5 | G124: 1405 | H124: 1405 | I124: 1320 | J124: Loss of Rs.29.5/- | K124: =F124-H124 -> -29.5 | M124: -11062.5 | N124: 375 | O124: Unsuccessful | P124: 2018-11-15 | R124: H
A125: 12 | B125: 2018-11-09 | D125: ASHOKLEY NOV FUT | E125: Buy | F125: 121.25 | G125: 118.25 | H125: 118.25 | I125: 127 | J125: Loss of Rs.3/- | K125: =H125-F125 -> -3 | M125: =N125*K125 -> -12000 | N125: 4000 | O125: Unsuccessful | P125: 2018-11-12 | R125: N
A126: 13 | B126: 2018-11-12 | D126: JUBLFOOD NOV FUT | E126: Buy | F126: 1086.5 | G126: 1064 | H126: 1102 | I126: 1140 | J126: Profit of Rs.15.5/- | K126: =H126-F126 -> 15.5 | M126: 7750 | N126: 500 | O126: Successful | P126: 2018-11-12 | R126: N
A127: 14 | B127: 2018-11-12 | D127: CUMMINSIND NOV FUT | E127: Sell | F127: 806 | G127: 821.3 | H127: 794.5 | I127: 780 | J127: Profit of Rs.11.5/- | K127: =F127-H127 -> 11.5 | M127: 8050 | N127: 700 | O127: Successful | P127: 2018-11-12 | R127: R
A128: 15 | B128: 2018-11-13 | D128: BIOCON NOV FUT | E128: Buy | F128: 630 | G128: 617.7 | H128: 617.7 | I128: 645-650 | J128: Loss of Rs.12.3/- | K128: =H128-F128 -> -12.3 | M128: =N128*K128 -> -11070 | N128: 900 | O128: Unsuccessful | P128: 2018-11-13 | R128: R
A129: 16 | B129: 2018-11-13 | D129: HAVELLS NOV FUT | E129: Buy | F129: 663.5 | G129: 653 | H129: 672.5 | I129: 685 | J129: Profit of Rs.9/- | K129: =H129-F129 -> 9 | M129: 9000 | N129: 1000 | O129: Successful | P129: 2018-11-14 | R129: R
A130: 17 | B130: 2018-11-13 | D130: ASIANPAINT NOV FUT | E130: Buy | F130: 1291 | G130: 1272 | H130: 1318 | I130: 1330 | J130: Profit of Rs.27/- | K130: =H130-F130 -> 27 | M130: =N130*K130 -> 16200 | N130: 600 | O130: Successful | P130: 2018-11-14 | R130: N
A131: 18 | B131: 2018-11-14 | D131: BALKRISIND | E131: Buy | F131: 965 | G131: 945 | H131: 945 | I131: 1000-1020 | J131: Loss of Rs.20/- | K131: -20 | L131: =K131/F131 -> -2.07% | O131: Unsuccessful | P131: 2018-11-16 | R131: H
A132: 19 | B132: 2018-11-14 | D132: CUMMINSIND NOV FUT | E132: Sell | F132: 806 | G132: 821.3 | H132: 796 | I132: 780 | J132: Profit of Rs.10/- | K132: =F132-H132 -> 10 | M132: =N132*K132 -> 7000 | N132: 700 | O132: Successful | P132: 2018-11-14 | R132: R
A133: 20 | B133: 2018-11-14 | D133: COLPAL NOV FUT | E133: Buy | F133: 1111.5 | G133: 1096 | H133: 1123 | I133: 1150 | J133: Profit of Rs.11.5/- | K133: =H133-F133 -> 11.5 | M133: 8050 | N133: 700 | O133: Successful | P133: 2018-11-15 | R133: N
A134: 21 | B134: 2018-11-15 | D134: SBIN NOV FUT | E134: Buy | F134: 282.75 | G134: 279 | H134: 286.25 | I134: 290 | J134: Profit of Rs.3.5/- | K134: =H134-F134 -> 3.5 | M134: =N134*K134 -> 10500 | N134: 3000 | O134: Successful | P134: 2018-11-15 | R134: H
A135: 22 | B135: 2018-11-15 | D135: MARUTI NOV FUT | E135: Buy | F135: 7405 | G135: 7280 | H135: 7495 | I135: 7600-7700 | J135: Profit of Rs.90/- | K135: =H135-F135 -> 90 | M135: =N135*K135 -> 6750 | N135: 75 | O135: Successful | P135: 2018-11-15 | R135: H
A136: 23 | B136: 2018-11-15 | D136: AXISBANK NOV FUT | E136: Sell | F136: 622 | G136: 634.3 | H136: 634.4 | I136: 600 | J136: Loss of Rs.12.4/- | K136: =F136-H136 -> -12.4 | M136: -12400 | N136: 1000 | O136: Unsuccessful | P136: 2018-11-16 | R136: R
A137: 24 | B137: 2018-11-15 | D137: CUMMINSIND NOV FUT | E137: Sell | F137: 806 | G137: 821.3 | H137: 821.3 | I137: 780 | J137: Loss of Rs.15.3/- | K137: =F137-H137 -> -15.3 | M137: =N137*K137 -> -10710 | N137: 700 | O137: Unsuccessful | P137: 2018-11-15 | R137: R
A138: 25 | B138: 2018-11-15 | D138: RAYMOND NOV FUT | E138: Buy | F138: 769 | G138: 754 | H138: 779.5 | I138: 795 | J138: Profit of Rs.10.5/- | K138: =H138-F138 -> 10.5 | M138: 7350 | N138: 700 | O138: Successful | P138: 2018-11-16 | R138: N
A139: 26 | B139: 2018-11-15 | D139: DIVISLAB NOV FUT | E139: Sell | F139: 1536 | G139: 1562.6 | H139: 1562.6 | I139: 1500-1490 | J139: Loss of Rs.26.6/- | K139: =F139-H139 -> -26.6 | M139: -10640 | N139: 400 | O139: Unsuccessful | P139: 2018-11-16 | R139: R
A140: 27 | B140: 2018-11-19 | D140: APOLLOHOSP NOV FUT | E140: Buy | F140: 1237.5 | G140: 1212 | H140: 1263 | I140: 1285 | J140: Profit of Rs.25.5/- | K140: =H140-F140 -> 25.5 | M140: =N140*K140 -> 12750 | N140: 500 | O140: Successful | P140: 2018-11-19 | R140: N
A141: 28 | B141: 2018-11-19 | D141: DABUR NOV FUT | E141: Sell | F141: 402.5 | G141: 411.3 | H141: 395.5 | I141: 385-390 | J141: Profit of Rs.7/- | K141: =F141-H141 -> 7 | M141: 8750 | N141: 1250 | O141: Successful | P141: 2018-11-20 | R141: R
A142: 29 | B142: 2018-11-20 | D142: MINDTREE NOV FUT | E142: Buy | F142: 849 | G142: 832.7 | H142: 827 | I142: 880-890 | J142: Loss of Rs.22/- | K142: =H142-F142 -> -22 | M142: -13200 | N142: 600 | O142: Unsuccessful | P142: 2018-11-21 | R142: R
A143: 30 | B143: 2018-11-21 | D143: TATACHEM NOV FUT | E143: Buy | F143: 692 | G143: 677 | H143: 702.5 | I143: 725 | J143: Profit of Rs.10.5/- | K143: =H143-F143 -> 10.5 | M143: 7875 | N143: 750 | O143: Successful | P143: 2018-11-22 | R143: N
A144: 31 | B144: 2018-11-21 | D144: ARVIND NOV FUT | E144: Buy | F144: 317 | G144: 311 | H144: 321.5 | I144: 330 | J144: Profit of Rs.4.5/- | K144: =H144-F144 -> 4.5 | M144: =N144*K144 -> 9000 | N144: 2000 | O144: Successful | P144: 2018-11-21 | R144: N
A145: 32 | B145: 2018-11-22 | D145: AMARAJABAT NOV FUT | E145: Buy | F145: 724 | G145: 705 | H145: 735.5 | I145: 750 | J145: Profit of Rs.11.5/- | K145: 11.5 | M145: =N145*K145 -> 8050 | N145: 700 | O145: Successful | P145: 2018-11-27 | R145: N
A146: 33 | B146: 2018-11-22 | D146: CAPF NOV FUT | E146: Buy | F146: 504 | G146: 492 | H146: 516 | I146: 525-530 | J146: Profit of Rs.12/- | K146: =H146-F146 -> 12 | M146: =N146*K146 -> 9600 | N146: 800 | O146: Successful | P146: 2018-11-22 | R146: R
A147: 34 | B147: 2018-11-22 | D147: MCDOWELL-N | E147: Buy | F147: 630 | G147: 615 | H147: 646.5 | I147: 650-655 | J147: Profit of Rs.16.5/- | K147: 16.5 | L147: =K147/F147 -> 2.62% | O147: Successful | P147: 2018-11-27 | R147: R
A148: 35 | B148: 2018-11-22 | D148: RELIANCE NOV FUT | E148: Buy | F148: 1101.5 | G148: 1078 | H148: 1115 | I148: 1150 | J148: Profit of Rs.13.5/- | K148: =H148-F148 -> 13.5 | M148: =N148*K148 -> 6750 | N148: 500 | O148: Successful | P148: 2018-11-26 | R148: R
A149: 36 | B149: 2018-11-26 | D149: ASHOKLEY NOV FUT | E149: Buy | F149: 107.9 | G149: 105 | H149: 110.25 | I149: 114 | J149: Profit of Rs.2.35/- | K149: 2.35 | M149: 9400 | N149: 4000 | O149: Successful | P149: 2018-11-26 | R149: N
A150: 37 | B150: 2018-11-26 | D150: RELIANCE NOV FUT | E150: Buy | F150: 1102 | G150: 1078 | H150: 1117.5 | I150: 1150 | J150: Profit of Rs.15.5/- | K150: =H150-F150 -> 15.5 | M150: =N150*K150 -> 7750 | N150: 500 | O150: Successful | P150: 2018-11-27 | R150: R
A151: 38 | B151: 2018-11-26 | D151: GLENMARK NOV FUT | E151: Buy | F151: 628.5 | G151: 617 | H151: 636.5 | I151: 650 | J151: Profit of Rs.8/- | K151: =H151-F151 -> 8 | M151: =N151*K151 -> 8000 | N151: 1000 | O151: Successful | P151: 2018-11-26 | R151: R
A152: 39 | B152: 2018-11-26 | D152: BATAINDIA NOV FUT | E152: Buy | F152: 960 | G152: 940 | H152: 974.5 | I152: 1000-1010 | J152: Profit of Rs.14.5/- | K152: =H152-F152 -> 14.5 | M152: =N152*K152 -> 7975 | N152: 550 | O152: Successful | P152: 2018-11-26 | R152: R
A153: 40 | B153: 2018-11-26 | D153: TECHM | E153: Buy | F153: 692 | G153: 677 | H153: 697.5 | I153: 720 | J153: Profit of Rs.5.5/- | K153: 5.5 | L153: =K153/F153 -> 0.79% | O153: Neutral | P153: 2018-11-29 | R153: H
A154: 41 | B154: 2018-11-27 | D154: JUBLFOOD NOV FUT | E154: Buy | F154: 1218 | G154: 1199 | H154: 1234 | I154: 1245-1250 | J154: Profit of Rs.16/- | K154: =H154-F154 -> 16 | M154: =N154*K154 -> 8000 | N154: 500 | O154: Successful | P154: 2018-11-27 | R154: R
A155: 42 | B155: 2018-11-27 | D155: NIFTY NOV FUT | E155: Buy | F155: 10597.5 | G155: 10490 | H155: 10655 | I155: 10750-10780 | J155: Profit of Rs.57.5/- | K155: =H155-F155 -> 57.5 | M155: =N155*K155 -> 4312.5 | N155: 75 | O155: Successful | P155: 2018-11-27 | R155: H
A156: 43 | B156: 2018-11-27 | D156: HEROMOTOCO NOV FUT | E156: Buy | F156: 2995 | G156: 2035 | H156: 2995 | I156: 3100-3120 | J156: Neutral | K156: =H156-F156 -> 0 | M156: =N156*K156 -> 0 | N156: 200 | O156: Neutral | P156: 2018-11-28 | R156: H
A157: 44 | B157: 2018-11-27 | D157: PIDILITIND NOV FUT | E157: Sell | F157: 1171.5 | G157: 1192 | H157: 1154 | I157: 1130 | J157: Profit of Rs.17.5/- | K157: =F157-H157 -> 17.5 | M157: 8750 | N157: 500 | O157: Successful | P157: 2018-11-28 | R157: R
A158: 45 | B158: 2018-11-27 | D158: AXISBANK NOV FUT | E158: Buy | F158: 630 | G158: 620 | H158: 631 | I158: 650 | J158: Neutral | K158: =H158-F158 -> 1 | M158: =N158*K158 -> 1200 | N158: 1200 | O158: Neutral | P158: 2018-11-28 | R158: N
A159: 46 | B159: 2018-11-27 | D159: TATASTEEL DEC FUT | E159: Buy | F159: 529.5 | G159: 518 | H159: 535.5 | I159: 550 | J159: Profit of Rs.6/- | K159: 6 | M159: 6366 | N159: 1061 | O159: Successful | P159: 2018-11-29 | R159: H
A160: 47 | B160: 2018-11-28 | D160: DABUR DEC FUT | E160: Sell | F160: 421 | G160: 431 | H160: 415 | I160: 405 | J160: Profit of Rs.6/- | K160: =F160-H160 -> 6 | M160: =N160*K160 -> 7500 | N160: 1250 | O160: Successful | P160: 2018-11-28 | R160: H
A161: 48 | B161: 2018-11-28 | D161: ASHOKLEY DEC FUT | E161: Buy | F161: 108.5 | G161: 105.5 | H161: 110.35 | I161: 114 | J161: Profit of Rs.1.85/- | K161: =H161-F161 -> 1.85 | M161: 7400 | N161: 4000 | O161: Successful | P161: 2018-11-29 | R161: N
A162: 49 | B162: 2018-11-29 | D162: GODREJIND DEC FUT | E162: Buy | F162: 521 | G162: 513 | H162: 528 | I162: 540 | J162: Profit of Rs.17.5/- | K162: =H162-F162 -> 7 | M162: =N162*K162 -> 10500 | N162: 1500 | O162: Successful | P162: 2018-11-29 | R162: N
A163: 50 | B163: 2018-11-29 | D163: AMARAJABAT DEC FUT | E163: Buy | F163: 722-725 | G163: 705 | I163: 750 | J163: Open | R163: N
A164: 51 | B164: 2018-11-30 | D164: TATASTEEL | E164: Buy | F164: 533-535 | G164: 517 | I164: 555-560 | J164: Open | R164: H
A165: 52 | B165: 2018-11-30 | D165: PIDILITIND DEC FUT | E165: Sell | F165: 1169-1173 | G165: 1195 | I165: 1140-1130 | J165: Open | R165: H
A170: CLBS = Closing Basis ***
A171: Dividend adjusted <> | F171: Reinitiated $
F172: Revised stoploss #
B173: Quick Pick Intraday
A174: Sr.no | B174: Date | D174: Company | E174: Rec | F174: Rec Price | G174: Stop Loss*** | H174: Call Closed At | I174: Target | J174: Remark | K174: Profit / Loss per Share | L174: Status | M174: Closed Date
A188: Techno -Funda (positional)
A189: Sr.no | B189: Date | D189: Company | E189: Rec | F189: Rec Price | G189: Stop Loss*** | H189: Call Closed At | I189: Target | J189: Remark | K189: Profit / Loss per Share | L189: Gain / Loss % | M189: Status | N189: Closed Date | O189: NSE Closed Price
A192: CLBS = Closing Basis *** | F192: Reinitiated $
A193: Dividend adjusted <> | F193: Revised stoploss #
B198: Investment Idea
A199: Sr.no | B199: Date | D199: Company | E199: Rec | F199: Rec Price | G199: Point of Review | H199: Close Rate | I199: Target | J199: Remark | K199: Profit / Loss per Share | L199: Gain / Loss % | M199: Status | N199: Closed Date
A200: 1 | B200: 2013-11-01 | D200: L&T Finance Holding | E200: Accu | F200: 82.00 | G200: - | H200: 100 | I200: 100.00 | J200: Target Achieved | K200: =H200-F200 -> 18.00 | L200: =K200/F200 -> 21.95% | M200: Successful | N200: 2016-10-14
A201: 2 | B201: 2014-06-04 | D201: Finolex Inds | E201: Buy | F201: 257.00 | G201: - | H201: 300 | I201: 300.00 | J201: Target Achieved | K201: =H201-F201 -> 43.00 | L201: 16.73% | M201: Successful | N201: 2014-07-02
A202: =1+A201 -> 3 | B202: 2014-07-08 | D202: JK Cement | E202: Buy | F202: 393.00 | G202: - | H202: 468 | I202: 468.00 | J202: Target Achieved | K202: =H202-F202 -> 75.00 | L202: 19.08% | M202: Successful | N202: 2014-08-12
A203: 4 | B203: 2014-08-06 | D203: Finolex Cables | E203: Buy | F203: 205.00 | G203: - | H203: 275 | I203: 250.00 | J203: Target Achieved | K203: 70.00 | L203: 34.15% | M203: Successful | N203: 2014-11-19
A204: 5 | B204: 2014-09-04 | D204: Exide Inds | E204: Buy | F204: 162.00 | G204: - | H204: 190 | I204: 190.00 | J204: Target Achieved | K204: 28.00 | L204: 17.28% | M204: Successful | N204: 2015-01-02
A205: 6 | B205: 2014-09-04 | D205: Deepak Nitrite | E205: Buy | F205: 75.00 | G205: - | H205: 91.5 | I205: 95-100 | J205: Profit of Rs.16.50/- | K205: 16.50 | L205: 22.00% | M205: Successful | N205: 2014-11-11
A206: 7 | B206: 2014-10-01 | D206: Mercks | E206: Buy | F206: 850.00 | G206: - | H206: 982.5 | I206: 1050.00 | J206: Profit of Rs.132.50/- | K206: 132.50 | L206: 15.59% | M206: Successful | N206: 2015-02-04
A207: 8 | B207: 2014-10-01 | D207: Grindwell Norton | E207: Buy | F207: 475.00 | G207: - | H207: 515 | I207: 600.00 | J207: Profit of Rs.40/- | K207: 40.00 | L207: 8.42% | M207: Successful | N207: 2014-10-27
A208: 9 | B208: 2014-10-01 | D208: Snowman Logistics | E208: Buy | F208: 86.00 | G208: - | H208: 99 | I208: 140.00 | J208: Profit of Rs.13.00/- | K208: 13.00 | L208: 15.12% | M208: Successful | N208: 2014-10-27
A209: 10 | B209: 2014-10-14 | D209: Birla Corp | E209: Buy | F209: 496.60 | G209: - | H209: 621 | I209: 580.00 | J209: Target Achieved | K209: 124.40 | L209: 25.05% | M209: Successful | N209: 2016-08-23
A210: 11 | B210: 2014-10-14 | D210: Ultratech Cem | E210: Buy | F210: 2481.90 | G210: - | H210: 2840 | I210: 2870.00 | J210: Profit of Rs.358.10/- | K210: 358.10 | L210: 14.43% | M210: Successful | N210: 2015-01-13
A211: =1+A208 -> 10 | B211: 2014-10-16 | D211: Sintex Inds | E211: Buy | F211: 84.50 | G211: - | H211: 93 | I211: 110.00 | J211: Profit of Rs.8.50/- | K211: 8.50 | L211: 10.06% | M211: Successful | N211: 2014-10-27
A212: =1+A211 -> 11 | B212: 2014-10-16 | D212: HSIL | E212: Buy | F212: 401.00 | G212: - | H212: 428 | I212: 450.00 | J212: Profit of Rs.27.00/- | K212: 27.00 | L212: 6.73% | M212: Successful | N212: 2015-01-16
A213: 12 | B213: 2014-10-16 | D213: Eveready Inds | E213: Buy | F213: 101.00 | G213: - | H213: 112 | I213: 120.00 | J213: Profit of Rs.11.00/- | K213: 11.00 | L213: 10.89% | M213: Successful | N213: 2014-10-27
A214: 13 | B214: 2014-11-11 | D214: Pennar Inds | E214: Buy | F214: 59.00 | G214: - | H214: 76 | I214: 76.00 | J214: Target Achieved | K214: 17.00 | L214: 28.81% | M214: Successful | N214: 2017-10-24
A215: 14 | B215: 2014-11-11 | D215: Snowman Logistics | E215: Buy | F215: 99.00 | G215: - | H215: 120 | I215: 120.00 | J215: Profit of Rs.21/- | K215: 21.00 | L215: 21.21% | M215: Successful | N215: 2014-11-17
A216: 15 | B216: 2014-11-13 | D216: Dharamsi Morarji Chem | E216: Buy | F216: 22.00 | G216: - | H216: 33.55 | I216: 32.00 | J216: Profit of Rs 11.55/- | K216: 11.55 | L216: 52.50% | M216: Successful | N216: 2015-07-03
A217: 16 | B217: 2014-12-03 | D217: Tatachem | E217: Buy | F217: 440.00 | G217: - | H217: 520 | I217: 520.00 | J217: Profit of Rs 80.00/- | K217: 80.00 | L217: 18.18% | M217: Successful | N217: 2015-07-23
A218: 17 | B218: 2014-12-03 | D218: Advanta | E218: Buy | F218: 360.00 | G218: - | H218: 427 | I218: 425.00 | J218: Profit of Rs.67.00/- | K218: 67.00 | L218: 18.61% | M218: Successful | N218: 2015-02-23
A219: 18 | B219: 2015-01-08 | D219: GDL | E219: Buy | F219: 360.00 | G219: - | H219: 455 | I219: 420.00 | J219: Profit of Rs.95.00/- | K219: 95.00 | L219: 26.39% | M219: Successful | N219: 2015-01-20
A220: 19 | B220: 2015-01-08 | D220: NRB Bearing | E220: Buy | F220: 130.00 | H220: 175.5 | I220: 165.00 | J220: Profit of Rs 45.50/- | K220: 45.50 | L220: 35.00% | M220: Successful | N220: 2017-12-19
A221: 20 | B221: 2015-02-05 | D221: GSFC | E221: Accu | F221: 98.00 | H221: 120 | I221: 120.00 | J221: Target Achieved | K221: 22.00 | L221: 22.45% | M221: Successful | N221: 2017-01-18
A222: 21 | B222: 2015-02-05 | D222: Sundrmfast | E222: Accu | F222: 196.00 | H222: 262 | I222: 255.00 | J222: Target Achieved | K222: 66.00 | L222: 33.67% | M222: Successful | N222: 2016-08-17
A223: 22 | B223: 2015-03-04 | D223: GPPL | E223: Accu | F223: 230-240 | I223: 280-285 | J223: Open
A224: 23 | B224: 2015-03-04 | D224: ORIENTCEM | E224: Accu | F224: 185.00 | H224: 224 | I224: 220-225 | J224: Target Achieved | K224: 39.00 | L224: =K224/F224 -> 21.08% | M224: Successful | N224: 2016-10-04
A225: 24 | B225: 2015-03-27 | D225: PFS | E225: Accu | F225: 49-50 | I225: 67.00 | J225: Open
A226: 25 | B226: 2015-03-30 | D226: Walchandnagar Ind Ltd | E226: Accu | F226: 183.50 | H226: 219 | I226: 218.00 | J226: Profit of Rs.35.50/- | K226: 35.50 | L226: =K226/F226 -> 19.35% | M226: Successful | N226: 2015-04-09
A227: 26 | B227: 2015-04-20 | D227: Kalpataru Power Transmission Ltd | E227: Accu | F227: =(227+237)/2 -> 232.00 | H227: 298 | I227: 298.00 | J227: Target Achieved | K227: 66.00 | L227: 28.45% | M227: Successful | N227: 2017-03-29
A228: 27 | B228: 2015-05-04 | D228: Mastek Ltd | E228: Buy | F228: 385.00 | H228: =212.5+331 -> 543.5 | I228: 510.00 | J228: Profit of Rs 158.50/- | K228: 158.50 | L228: 41.17% | M228: Successful | N228: 2015-08-19
A229: 28 | B229: 2015-05-04 | D229: Suprajit Eng | E229: Buy | F229: 115.50 | H229: 146 | I229: 142.00 | J229: Profit of Rs 30.50/- | K229: 30.50 | L229: 26.41% | M229: Successful | N229: 2015-07-17
A230: 29 | B230: 2015-05-27 | D230: TCI | E230: Buy | F230: 237.50 | H230: 279.5 | I230: 278.00 | J230: Target Achieved | K230: 42.00 | L230: 17.68% | M230: Successful | N230: 2015-08-06
A231: 30 | B231: 2015-06-19 | D231: HSIL | E231: Accu | F231: 340.00 | H231: 448 | I231: 448.00 | J231: Target Achieved | K231: 108.00 | L231: 31.76% | M231: Successful | N231: 2017-10-10
A232: 31 | B232: 2015-07-06 | D232: Capital First | E232: Accu | F232: 390.00 | H232: 460 | I232: 460.00 | J232: Target Achieved | K232: 70.00 | L232: 17.95% | M232: Successful | N232: 2016-04-18
A233: 32 | B233: 2015-07-10 | D233: Dolphin OffShore | E233: Accu | F233: 122.5 | H233: 61.00 | I233: 172.00 | J233: Loss of Rs.61.50/- | K233: -61.50 | L233: -50.20% | M233: Unsuccessful | N233: 2018-08-21
A234: 33 | B234: 2015-08-03 | D234: Allcargo logistics | E234: Accu | F234: 297.50 | H234: 350 | I234: 360.00 | J234: Profit of Rs 52.50/- | K234: 52.50 | L234: =K234/F234 -> 17.65% | M234: Successful | N234: 2015-08-16
A235: 34 | B235: 2015-08-03 | D235: Camline Fine | E235: Accu | F235: 115.50 | H235: 149 | I235: 140.00 | J235: Profit of Rs 33.50/- | K235: 33.50 | L235: 29.00% | M235: Successful | N235: 2017-01-05
A236: 35 | B236: 2015-09-04 | D236: TCI | E236: Accu | F236: 226.00 | H236: 292 | I236: 292.00 | J236: Target Achieved | K236: 66.00 | L236: 29.20% | M236: Successful | N236: 2015-10-09
A237: 36 | B237: 2015-09-07 | D237: Kalpataru Power Transmission Ltd | E237: Accu | F237: 232.50 | H237: 312.5 | I237: 310.00 | J237: Target Achieved | K237: 80.00 | L237: 34.41% | M237: Successful | N237: 2017-03-29
A238: 37 | B238: 2015-09-21 | D238: LLOYD ELECTRIC & ENG LTD | E238: Accu | F238: 196.50 | H238: 238 | I238: 238.00 | J238: Target Achieved | K238: 41.50 | L238: 21.12% | M238: Successful | N238: 2015-10-14
A239: 38 | B239: 2015-09-24 | D239: L&T Finance Holding | E239: Accu | F239: 65.00 | H239: 82 | I239: 82.00 | J239: Target Achieved | K239: 17.00 | L239: 26.15% | M239: Successful | N239: 2016-07-27
A240: 39 | B240: 2015-10-14 | D240: KEC International ltd | E240: Accu | F240: 144.00 | H240: 182.5 | I240: 181.00 | J240: Target Achieved | K240: 38.50 | L240: 26.74% | M240: Successful | N240: 2017-03-23
A241: 40 | B241: 2015-10-14 | D241: Gruh Finance | E241: Accu | F241: 264.00 | H241: 311 | I241: 311.00 | J241: Target Achieved | K241: 47.00 | L241: 17.80% | M241: Successful | N241: 2016-08-22
A242: 41 | B242: 2015-11-10 | D242: Pidilitind | E242: Buy | F242: 549.50 | H242: 630 | I242: 630.00 | J242: Target Achieved | K242: 80.50 | L242: 14.65% | M242: Successful | N242: 2016-02-19
A243: 42 | B243: 2015-12-04 | D243: Zensar Technology | E243: Accu | F243: 1027.50 | H243: 1315 | I243: 1250.00 | J243: Target Achieved | K243: =H243-F243 -> 287.50 | L243: 27.98% | M243: Successful | N243: 2018-05-24
A244: 43 | B244: 2015-12-29 | D244: Vinati Organics Ltd | E244: Accu | F244: 465.00 | H244: 540 | I244: 540.00 | J244: Target Achieved | K244: 75.00 | L244: =K244/F244 -> 16.13% | M244: Successful | N244: 2016-06-09
... 98 more rows

Sheet Sheet2 (hidden)
A1: SYMBOL | B1: SERIES | C1: OPEN | D1: HIGH | E1: LOW | F1: CLOSE | G1: LAST | H1: PREVCLOSE | I1: TOTTRDQTY | J1: TOTTRDVAL | K1: TIMESTAMP | L1: TOTALTRADES | M1: ISIN | N1: ISIN
A2: 20MICRONS | B2: EQ | C2: 43.45 | D2: 43.7 | E2: 42.55 | F2: 42.8 | G2: 42.8 | H2: 43 | I2: 20955 | J2: 902123.3 | K2: 2018-11-30 | L2: 436 | M2: INE144J01027
A3: 21STCENMGM | B3: EQ | C3: 22 | D3: 22.4 | E3: 22 | F3: 22.4 | G3: 22.4 | H3: 22 | I3: 90 | J3: 1987.05 | K3: 2018-11-30 | L3: 5 | M3: INE253B01015
A4: 3IINFOTECH | B4: EQ | C4: 4 | D4: 4 | E4: 3.7 | F4: 3.75 | G4: 3.8 | H4: 3.95 | I4: 4277818 | J4: 16231246.5 | K4: 2018-11-30 | L4: 3252 | M4: INE748C01020
A5: 3MINDIA | B5: EQ | C5: 20920 | D5: 21701 | E5: 20727.45 | F5: 21634 | G5: 21600 | H5: 20845.2 | I5: 1148 | J5: 24480156.7 | K5: 2018-11-30 | L5: 625 | M5: INE470A01017
A6: 5PAISA | B6: EQ | C6: 193.05 | D6: 199.45 | E6: 193 | F6: 194.95 | G6: 194 | H6: 193.25 | I6: 2485 | J6: 487075.65 | K6: 2018-11-30 | L6: 157 | M6: INE618L01018
A7: 63MOONS | B7: EQ | C7: 97.5 | D7: 102.95 | E7: 96.3 | F7: 100.05 | G7: 99 | H7: 98.1 | I7: 605209 | J7: 60442859.95 | K7: 2018-11-30 | L7: 7439 | M7: INE111B01023
A8: 8KMILES | B8: EQ | C8: 183.85 | D8: 183.85 | E8: 183.85 | F8: 183.85 | G8: 183.85 | H8: 175.1 | I8: 30967 | J8: 5693282.95 | K8: 2018-11-30 | L8: 345 | M8: INE650K01021
A9: A2ZINFRA | B9: EQ | C9: 13.7 | D9: 14 | E9: 13.4 | F9: 13.7 | G9: 13.7 | H9: 13.7 | I9: 169227 | J9: 2320191.05 | K9: 2018-11-30 | L9: 500 | M9: INE619I01012
A10: AARTIDRUGS | B10: EQ | C10: 556 | D10: 556 | E10: 546.05 | F10: 552.95 | G10: 550 | H10: 552.75 | I10: 40167 | J10: 22098183.1 | K10: 2018-11-30 | L10: 581 | M10: INE767A01016
A11: AARTIIND | B11: EQ | C11: 1460 | D11: 1474.9 | E11: 1400 | F11: 1435.9 | G11: 1404.25 | H11: 1455.2 | I11: 171246 | J11: 247714819.8 | K11: 2018-11-30 | L11: 17591 | M11: INE769A01020
A12: AARVEEDEN | B12: EQ | C12: 24.55 | D12: 25.55 | E12: 24.5 | F12: 24.95 | G12: 24.95 | H12: 24.55 | I12: 12815 | J12: 316205.5 | K12: 2018-11-30 | L12: 34 | M12: INE273D01019
A13: AAVAS | B13: EQ | C13: 757.05 | D13: 779.95 | E13: 751 | F13: 769.35 | G13: 770 | H13: 762.4 | I13: 188248 | J13: 143906822 | K13: 2018-11-30 | L13: 3076 | M13: INE216P01012
A14: ABAN | B14: EQ | C14: 75.3 | D14: 76.4 | E14: 74 | F14: 75 | G14: 74.45 | H14: 74.6 | I14: 321337 | J14: 24074369 | K14: 2018-11-30 | L14: 3974 | M14: INE421A01028
A15: ABB | B15: EQ | C15: 1390.25 | D15: 1412.1 | E15: 1374.05 | F15: 1408.7 | G15: 1398.25 | H15: 1386.3 | I15: 136537 | J15: 191260574.1 | K15: 2018-11-30 | L15: 7903 | M15: INE117A01022
A16: ABBOTINDIA | B16: EQ | C16: 7380.1 | D16: 7473 | E16: 7305.15 | F16: 7420.15 | G16: 7454 | H16: 7365.45 | I16: 2451 | J16: 18111959.2 | K16: 2018-11-30 | L16: 529 | M16: INE358A01014
A17: ABCAPITAL | B17: EQ | C17: 105 | D17: 105.65 | E17: 103.85 | F17: 105.05 | G17: 105.1 | H17: 104.9 | I17: 1109675 | J17: 116174134 | K17: 2018-11-30 | L17: 21353 | M17: INE674K01013
A18: ABFRL | B18: EQ | C18: 185.85 | D18: 187.1 | E18: 180.05 | F18: 181.05 | G18: 180.9 | H18: 185.8 | I18: 325748 | J18: 59628908.5 | K18: 2018-11-30 | L18: 5904 | M18: INE647O01011
A19: ABMINTLTD | B19: BE | C19: 16.5 | D19: 16.5 | E19: 16.5 | F19: 16.5 | G19: 16.5 | H19: 16.5 | I19: 5 | J19: 82.5 | K19: 2018-11-30 | L19: 1 | M19: INE251C01017
A20: ACC | B20: EQ | C20: 1463.2 | D20: 1498 | E20: 1463.2 | F20: 1485.5 | G20: 1487.45 | H20: 1463.8 | I20: 600458 | J20: 891834917.1 | K20: 2018-11-30 | L20: 38212 | M20: INE012A01025
A21: ACCELYA | B21: EQ | C21: 936.15 | D21: 979 | E21: 936.15 | F21: 973.2 | G21: 978 | H21: 936.15 | I21: 57056 | J21: 54249608.7 | K21: 2018-11-30 | L21: 788 | M21: INE793A01012
A22: ACE | B22: EQ | C22: 90.45 | D22: 94.25 | E22: 89.7 | F22: 92.1 | G22: 91.85 | H22: 89.25 | I22: 185180 | J22: 17072204.65 | K22: 2018-11-30 | L22: 1546 | M22: INE731H01025
A23: ADANIENT | B23: EQ | C23: 168.5 | D23: 174.8 | E23: 163.5 | F23: 165 | G23: 165.05 | H23: 169.9 | I23: 9405499 | J23: 1589899369 | K23: 2018-11-30 | L23: 51524 | M23: INE423A01024
A24: ADANIGAS | B24: EQ | C24: 99.1 | D24: 101.4 | E24: 97.65 | F24: 98.75 | G24: 98.7 | H24: 99.45 | I24: 1745738 | J24: 173397289.3 | K24: 2018-11-30 | L24: 11046 | M24: INE399L01023
A25: ADANIGREEN | B25: EQ | C25: 48 | D25: 48.55 | E25: 46.4 | F25: 46.75 | G25: 46.7 | H25: 47.45 | I25: 345988 | J25: 16413257.5 | K25: 2018-11-30 | L25: 2210 | M25: INE364U01010
A26: ADANIPORTS | B26: EQ | C26: 369.8 | D26: 374.6 | E26: 363.6 | F26: 365.65 | G26: 366.5 | H26: 369.8 | I26: 4137466 | J26: 1520285799 | K26: 2018-11-30 | L26: 73793 | M26: INE742F01042
A27: ADANIPOWER | B27: EQ | C27: 55.7 | D27: 56.3 | E27: 54.3 | F27: 55.5 | G27: 55.2 | H27: 55.45 | I27: 30203347 | J27: 1671688865 | K27: 2018-11-30 | L27: 41699 | M27: INE814H01011
A28: ADANITRANS | B28: EQ | C28: 230.2 | D28: 238.65 | E28: 222 | F28: 225.1 | G28: 223 | H28: 227.3 | I28: 1924259 | J28: 439662065.6 | K28: 2018-11-30 | L28: 24754 | M28: INE931S01010
A29: ADFFOODS | B29: EQ | C29: 273.25 | D29: 274.5 | E29: 262 | F29: 269.55 | G29: 269 | H29: 267.5 | I29: 192011 | J29: 51662093.05 | K29: 2018-11-30 | L29: 3621 | M29: INE982B01019
A30: ADHUNIK | B30: EQ | C30: 2.7 | D30: 2.7 | E30: 2.55 | F30: 2.65 | G30: 2.6 | H30: 2.6 | I30: 52353 | J30: 136490.2 | K30: 2018-11-30 | L30: 63 | M30: INE400H01019
A31: ADHUNIKIND | B31: EQ | C31: 51.7 | D31: 52.85 | E31: 50.1 | F31: 51.35 | G31: 51.5 | H31: 49.2 | I31: 37828 | J31: 1948453.3 | K31: 2018-11-30 | L31: 133 | M31: INE452L01012
A32: ADLABS | B32: EQ | C32: 10.2 | D32: 10.5 | E32: 9.85 | F32: 10.25 | G32: 10.45 | H32: 10.35 | I32: 682824 | J32: 6880311.35 | K32: 2018-11-30 | L32: 1327 | M32: INE172N01012
A33: ADORWELD | B33: EQ | C33: 366 | D33: 376.75 | E33: 364.95 | F33: 366.15 | G33: 367 | H33: 364.55 | I33: 4820 | J33: 1782808.6 | K33: 2018-11-30 | L33: 276 | M33: INE045A01017
A34: ADROITINFO | B34: EQ | C34: 18.6 | D34: 20 | E34: 18.6 | F34: 19.45 | G34: 20 | H34: 19.3 | I34: 1180 | J34: 22102.6 | K34: 2018-11-30 | L34: 8 | M34: INE737B01033
A35: ADSL | B35: EQ | C35: 13.75 | D35: 13.75 | E35: 13.05 | F35: 13.1 | G35: 13.2 | H35: 13.2 | I35: 10940 | J35: 144768.05 | K35: 2018-11-30 | L35: 89 | M35: INE102I01027
A36: ADVANIHOTR | B36: EQ | C36: 60.05 | D36: 61.5 | E36: 59.45 | F36: 60.9 | G36: 61.5 | H36: 60.75 | I36: 5482 | J36: 329922.2 | K36: 2018-11-30 | L36: 65 | M36: INE199C01026
A37: ADVENZYMES | B37: EQ | C37: 182.1 | D37: 187.65 | E37: 182.1 | F37: 184.8 | G37: 184 | H37: 182.4 | I37: 54314 | J37: 10073924.35 | K37: 2018-11-30 | L37: 3370 | M37: INE837H01020
A38: AEGISCHEM | B38: EQ | C38: 223.85 | D38: 224.5 | E38: 206.5 | F38: 210.5 | G38: 208.8 | H38: 224 | I38: 183051 | J38: 39283656.25 | K38: 2018-11-30 | L38: 5604 | M38: INE208C01025
A39: AGARIND | B39: EQ | C39: 186.65 | D39: 186.65 | E39: 176 | F39: 176.45 | G39: 176 | H39: 179.2 | I39: 543 | J39: 96361.2 | K39: 2018-11-30 | L39: 28 | M39: INE204E01012
A40: AGCNET | B40: EQ | C40: 66.2 | D40: 69.4 | E40: 65.9 | F40: 68.75 | G40: 68.95 | H40: 67 | I40: 1286 | J40: 87715 | K40: 2018-11-30 | L40: 151 | M40: INE676A01019
A41: AGLSL | B41: EQ | C41: 74.55 | D41: 75.9 | E41: 71 | F41: 71.75 | G41: 71 | H41: 74.4 | I41: 5280 | J41: 387840.35 | K41: 2018-11-30 | L41: 86 | M41: INE517U01013
A42: AGRITECH | B42: EQ | C42: 72.95 | D42: 77.65 | E42: 72.25 | F42: 73.4 | G42: 75 | H42: 70.6 | I42: 67164 | J42: 5000656.05 | K42: 2018-11-30 | L42: 1158 | M42: INE449G01018
A43: AHLEAST | B43: EQ | C43: 252.5 | D43: 255 | E43: 251 | F43: 251.05 | G43: 251 | H43: 258.25 | I43: 313 | J43: 78727.9 | K43: 2018-11-30 | L43: 34 | M43: INE926K01017
A44: AHLUCONT | B44: EQ | C44: 285 | D44: 288 | E44: 282 | F44: 284.8 | G44: 286.9 | H44: 287.1 | I44: 1118 | J44: 318334.3 | K44: 2018-11-30 | L44: 130 | M44: INE758C01029
A45: AHLWEST | B45: EQ | C45: 302.9 | D45: 302.9 | E45: 291.15 | F45: 292.2 | G45: 301.4 | H45: 300 | I45: 140 | J45: 41061.65 | K45: 2018-11-30 | L45: 14 | M45: INE915K01010
A46: AIAENG | B46: EQ | C46: 1600 | D46: 1705 | E46: 1585 | F46: 1699.85 | G46: 1699 | H46: 1617.7 | I46: 190258 | J46: 307802017.2 | K46: 2018-11-30 | L46: 10654 | M46: INE212H01026
A47: AIFL | B47: EQ | C47: 30.3 | D47: 30.3 | E47: 30.3 | F47: 30.3 | G47: 30.3 | H47: 31.85 | I47: 14047 | J47: 425624.1 | K47: 2018-11-30 | L47: 99 | M47: INE428O01016
A48: AIONJSW | B48: EQ | C48: 34.8 | D48: 36.15 | E48: 34.15 | F48: 35.4 | G48: 35.4 | H48: 34.7 | I48: 59757 | J48: 2127688.1 | K48: 2018-11-30 | L48: 511 | M48: INE743C01021
A49: AJANTPHARM | B49: EQ | C49: 1120 | D49: 1190 | E49: 1115.1 | F49: 1168.55 | G49: 1180 | H49: 1120.5 | I49: 597093 | J49: 689748996.1 | K49: 2018-11-30 | L49: 21949 | M49: INE031B01049
A50: AJMERA | B50: EQ | C50: 149.65 | D50: 154.1 | E50: 146.45 | F50: 149.3 | G50: 149 | H50: 148.2 | I50: 29275 | J50: 4411491.7 | K50: 2018-11-30 | L50: 1054 | M50: INE298G01027
A51: AKSHARCHEM | B51: EQ | C51: 441.2 | D51: 452 | E51: 441.15 | F51: 443.4 | G51: 443.1 | H51: 445.5 | I51: 1116 | J51: 497027.6 | K51: 2018-11-30 | L51: 80 | M51: INE542B01011
A52: AKSHOPTFBR | B52: EQ | C52: 25.9 | D52: 26.1 | E52: 25.3 | F52: 25.45 | G52: 25.55 | H52: 25.75 | I52: 706931 | J52: 18190535.9 | K52: 2018-11-30 | L52: 2425 | M52: INE523B01011
A53: AKZOINDIA | B53: EQ | C53: 1585.05 | D53: 1588.05 | E53: 1561.5 | F53: 1579.35 | G53: 1578 | H53: 1583.8 | I53: 5564 | J53: 8776927.7 | K53: 2018-11-30 | L53: 897 | M53: INE133A01011
A54: ALANKIT | B54: EQ | C54: 20.2 | D54: 20.2 | E54: 19.1 | F54: 19.3 | G54: 19.3 | H54: 19.65 | I54: 343119 | J54: 6735194.8 | K54: 2018-11-30 | L54: 763 | M54: INE914E01040
A55: ALBERTDAVD | B55: EQ | C55: 435.5 | D55: 435.5 | E55: 412.2 | F55: 415.9 | G55: 414.2 | H55: 415.5 | I55: 32382 | J55: 13652412.55 | K55: 2018-11-30 | L55: 1158 | M55: INE155C01010
A56: ALBK | B56: EQ | C56: 47.3 | D56: 49.4 | E56: 46.8 | F56: 48.55 | G56: 48.25 | H56: 47.35 | I56: 9112603 | J56: 438771249.4 | K56: 2018-11-30 | L56: 22082 | M56: INE428A01015
A57: ALCHEM | B57: BE | C57: 2.25 | D57: 2.3 | E57: 2.1 | F57: 2.1 | G57: 2.1 | H57: 2.2 | I57: 23813 | J57: 50578.45 | K57: 2018-11-30 | L57: 53 | M57: INE964B01033
A58: ALEMBICLTD | B58: EQ | C58: 42.75 | D58: 43.5 | E58: 42.7 | F58: 43.35 | G58: 43.25 | H58: 42.85 | I58: 207705 | J58: 8976985.35 | K58: 2018-11-30 | L58: 843 | M58: INE426A01027
A59: ALICON | B59: EQ | C59: 666.45 | D59: 668 | E59: 653 | F59: 666.4 | G59: 667.45 | H59: 662.5 | I59: 2041 | J59: 1356307.65 | K59: 2018-11-30 | L59: 106 | M59: INE062D01024
A60: ALKALI | B60: EQ | C60: 58.5 | D60: 58.5 | E60: 56.5 | F60: 56.6 | G60: 56.95 | H60: 57.85 | I60: 2320 | J60: 131812.05 | K60: 2018-11-30 | L60: 41 | M60: INE773I01017
A61: ALKEM | B61: EQ | C61: 1860 | D61: 1919.95 | E61: 1852 | F61: 1912.65 | G61: 1911 | H61: 1893 | I61: 86680 | J61: 163218353.2 | K61: 2018-11-30 | L61: 6699 | M61: INE540L01014
A62: ALKYLAMINE | B62: EQ | C62: 752.05 | D62: 769.95 | E62: 750.05 | F62: 765.2 | G62: 769.8 | H62: 750.9 | I62: 4482 | J62: 3429665.1 | K62: 2018-11-30 | L62: 267 | M62: INE150B01021
A63: ALLCARGO | B63: EQ | C63: 107.75 | D63: 108.75 | E63: 104.3 | F63: 105 | G63: 104.9 | H63: 107.65 | I63: 446417 | J63: 47312920.75 | K63: 2018-11-30 | L63: 8681 | M63: INE418H01029
A64: ALLSEC | B64: EQ | C64: 217.5 | D64: 221.5 | E64: 210.7 | F64: 218.45 | G64: 215.15 | H64: 218.65 | I64: 4115 | J64: 894596.25 | K64: 2018-11-30 | L64: 320 | M64: INE835G01018
A65: ALMONDZ | B65: EQ | C65: 24.4 | D65: 24.4 | E65: 22.85 | F65: 23.85 | G65: 24 | H65: 23.4 | I65: 359 | J65: 8526.15 | K65: 2018-11-30 | L65: 25 | M65: INE326B01027
A66: ALOKTEXT | B66: EQ | C66: 3.35 | D66: 3.35 | E66: 3.35 | F66: 3.35 | G66: 3.35 | H66: 3.2 | I66: 918828 | J66: 3078073.8 | K66: 2018-11-30 | L66: 354 | M66: INE270A01011
A67: ALPA | B67: EQ | C67: 24.15 | D67: 24.5 | E67: 23.8 | F67: 23.8 | G67: 23.8 | H67: 24.2 | I67: 14488 | J67: 346746.05 | K67: 2018-11-30 | L67: 68 | M67: INE385I01010
A68: ALPHAGEO | B68: EQ | C68: 469.75 | D68: 469.75 | E68: 460.85 | F68: 464.95 | G68: 465.1 | H68: 462.45 | I68: 4110 | J68: 1907990.8 | K68: 2018-11-30 | L68: 300 | M68: INE137C01018
A69: ALPSINDUS | B69: BE | C69: 3.8 | D69: 3.8 | E69: 3.5 | F69: 3.5 | G69: 3.5 | H69: 3.65 | I69: 4741 | J69: 17591.9 | K69: 2018-11-30 | L69: 32 | M69: INE093B01015
A70: AMARAJABAT | B70: EQ | C70: 726.8 | D70: 728.15 | E70: 707 | F70: 709.25 | G70: 709 | H70: 723.95 | I70: 857270 | J70: 611379825.9 | K70: 2018-11-30 | L70: 53319 | M70: INE885A01032
A71: AMBER | B71: EQ | C71: 925 | D71: 925 | E71: 901.25 | F71: 919.5 | G71: 922 | H71: 915.45 | I71: 2308 | J71: 2117292.65 | K71: 2018-11-30 | L71: 436 | M71: INE371P01015
A72: AMBIKCO | B72: EQ | C72: 1186.1 | D72: 1201.75 | E72: 1186.1 | F72: 1190 | G72: 1190.05 | H72: 1186.05 | I72: 4331 | J72: 5154607.15 | K72: 2018-11-30 | L72: 120 | M72: INE540G01014
A73: AMBUJACEM | B73: EQ | C73: 217.6 | D73: 220.9 | E73: 215.7 | F73: 217.45 | G73: 217.45 | H73: 216.8 | I73: 4396332 | J73: 959332310.2 | K73: 2018-11-30 | L73: 31568 | M73: INE079A01024
A74: AMDIND | B74: EQ | C74: 18.2 | D74: 19.7 | E74: 18.2 | F74: 19.6 | G74: 19.65 | H74: 18.2 | I74: 1519 | J74: 28922.2 | K74: 2018-11-30 | L74: 21 | M74: INE005I01014
A75: AMJLAND | B75: EQ | C75: 21.55 | D75: 22.5 | E75: 21.55 | F75: 22 | G75: 22 | H75: 22.25 | I75: 5235 | J75: 115543.85 | K75: 2018-11-30 | L75: 48 | M75: INE606A01024
A76: AMRUTANJAN | B76: EQ | C76: 260 | D76: 268 | E76: 251.45 | F76: 253.95 | G76: 253 | H76: 255.5 | I76: 45714 | J76: 11877052.9 | K76: 2018-11-30 | L76: 1821 | M76: INE098F01031
A77: ANANTRAJ | B77: EQ | C77: 33.95 | D77: 34.1 | E77: 33.5 | F77: 33.8 | G77: 33.85 | H77: 33.8 | I77: 280919 | J77: 9504121.8 | K77: 2018-11-30 | L77: 910 | M77: INE242C01024
A78: ANDHRABANK | B78: EQ | C78: 28.4 | D78: 28.5 | E78: 28.1 | F78: 28.45 | G78: 28.5 | H78: 28.15 | I78: 872783 | J78: 24728911.8 | K78: 2018-11-30 | L78: 2608 | M78: INE434A01013
A79: ANDHRACEMT | B79: EQ | C79: 5.8 | D79: 5.95 | E79: 5.75 | F79: 5.85 | G79: 5.9 | H79: 5.75 | I79: 90785 | J79: 529143.85 | K79: 2018-11-30 | L79: 199 | M79: INE666E01012
A80: ANDHRSUGAR | B80: EQ | C80: 339.5 | D80: 340.2 | E80: 331.25 | F80: 332.05 | G80: 332.5 | H80: 338.05 | I80: 42038 | J80: 14070210.2 | K80: 2018-11-30 | L80: 1684 | M80: INE715B01013
A81: ANGIND | B81: BE | C81: 1.5 | D81: 1.5 | E81: 1.5 | F81: 1.5 | G81: 1.5 | H81: 1.55 | I81: 303 | J81: 454.5 | K81: 2018-11-30 | L81: 11 | M81: INE017D01010
A82: ANIKINDS | B82: EQ | C82: 25.4 | D82: 26 | E82: 25.05 | F82: 25.15 | G82: 25.05 | H82: 25.9 | I82: 780 | J82: 19997.2 | K82: 2018-11-30 | L82: 20 | M82: INE087B01017
A83: ANKITMETAL | B83: BE | C83: 0.45 | D83: 0.5 | E83: 0.45 | F83: 0.5 | G83: 0.5 | H83: 0.45 | I83: 4206 | J83: 1984.55 | K83: 2018-11-30 | L83: 19 | M83: INE106I01010
A84: ANSALAPI | B84: EQ | C84: 10.35 | D84: 10.65 | E84: 10.35 | F84: 10.45 | G84: 10.4 | H84: 10.4 | I84: 10350 | J84: 108289.35 | K84: 2018-11-30 | L84: 58 | M84: INE436A01026
A85: ANSALHSG | B85: EQ | C85: 10 | D85: 10.1 | E85: 9.5 | F85: 9.85 | G85: 9.85 | H85: 10 | I85: 12361 | J85: 122723.7 | K85: 2018-11-30 | L85: 66 | M85: INE880B01015
A86: ANTGRAPHIC | B86: BE | C86: 0.45 | D86: 0.5 | E86: 0.45 | F86: 0.5 | G86: 0.5 | H86: 0.45 | I86: 51906 | J86: 25231.35 | K86: 2018-11-30 | L86: 27 | M86: INE414B01021
A87: APARINDS | B87: EQ | C87: 616.95 | D87: 622.45 | E87: 615 | F87: 615.75 | G87: 615 | H87: 615.85 | I87: 2294 | J87: 1417993.2 | K87: 2018-11-30 | L87: 135 | M87: INE372A01015
A88: APCL | B88: EQ | C88: 122.75 | D88: 127.8 | E88: 122.4 | F88: 125 | G88: 125 | H88: 122.75 | I88: 1519 | J88: 189770.2 | K88: 2018-11-30 | L88: 64 | M88: INE071F01012
A89: APCOTEXIND | B89: EQ | C89: 528.25 | D89: 543.35 | E89: 528 | F89: 536.3 | G89: 538 | H89: 532.75 | I89: 3548 | J89: 1908425.3 | K89: 2018-11-30 | L89: 194 | M89: INE116A01024
A90: APEX | B90: EQ | C90: 363 | D90: 363.55 | E90: 351.1 | F90: 356.25 | G90: 356 | H90: 360.6 | I90: 37600 | J90: 13385577.6 | K90: 2018-11-30 | L90: 1731 | M90: INE346W01013
A91: APLAPOLLO | B91: EQ | C91: 1285.25 | D91: 1315 | E91: 1272 | F91: 1291.4 | G91: 1285.3 | H91: 1285.3 | I91: 11789 | J91: 15298298.55 | K91: 2018-11-30 | L91: 1479 | M91: INE702C01019
A92: APLLTD | B92: EQ | C92: 571.5 | D92: 639.9 | E92: 567.15 | F92: 617.45 | G92: 630 | H92: 571.15 | I92: 166448 | J92: 99734798.8 | K92: 2018-11-30 | L92: 16921 | M92: INE901L01018
A93: APOLLO | B93: EQ | C93: 123.25 | D93: 128 | E93: 123.25 | F93: 125.55 | G93: 125.1 | H93: 124.55 | I93: 10436 | J93: 1310468.8 | K93: 2018-11-30 | L93: 581 | M93: INE713T01010
A94: APOLLOHOSP | B94: EQ | C94: 1250.2 | D94: 1289.75 | E94: 1250.2 | F94: 1264.8 | G94: 1261 | H94: 1245.85 | I94: 1035249 | J94: 1319123875 | K94: 2018-11-30 | L94: 53444 | M94: INE437A01024
A95: APOLLOTYRE | B95: EQ | C95: 236.95 | D95: 240.3 | E95: 234.35 | F95: 239.05 | G95: 238.9 | H95: 236 | I95: 2180338 | J95: 518271125.8 | K95: 2018-11-30 | L95: 20050 | M95: INE438A01022
A96: APOLSINHOT | B96: EQ | C96: 806 | D96: 834 | E96: 793.15 | F96: 814.4 | G96: 808 | H96: 804.5 | I96: 648 | J96: 525085 | K96: 2018-11-30 | L96: 107 | M96: INE451F01024
A97: APTECHT | B97: EQ | C97: 175 | D97: 176.65 | E97: 168.25 | F97: 174.8 | G97: 175 | H97: 174.25 | I97: 175896 | J97: 30409602.4 | K97: 2018-11-30 | L97: 4428 | M97: INE266F01018
A98: ARCHIDPLY | B98: EQ | C98: 40.55 | D98: 40.55 | E98: 38 | F98: 39.1 | G98: 39.1 | H98: 39.85 | I98: 13854 | J98: 545285.3 | K98: 2018-11-30 | L98: 273 | M98: INE877I01016
A99: ARCHIES | B99: EQ | C99: 28 | D99: 28.5 | E99: 27.5 | F99: 28.1 | G99: 28.25 | H99: 27.45 | I99: 82029 | J99: 2302593.05 | K99: 2018-11-30 | L99: 651 | M99: INE731A01020
A100: ARCOTECH | B100: EQ | C100: 7.75 | D100: 7.8 | E100: 7.5 | F100: 7.65 | G100: 7.55 | H100: 7.5 | I100: 95817 | J100: 733778.25 | K100: 2018-11-30 | L100: 250 | M100: INE574I01035
A101: ARENTERP | B101: BE | C101: 12.45 | D101: 12.45 | E101: 12.45 | F101: 12.45 | G101: 12.45 | H101: 11.9 | I101: 1 | J101: 12.45 | K101: 2018-11-30 | L101: 1 | M101: INE610C01014
A102: ARIES | B102: EQ | C102: 95.4 | D102: 99 | E102: 95.35 | F102: 97.25 | G102: 96.7 | H102: 95.1 | I102: 25849 | J102: 2527945.35 | K102: 2018-11-30 | L102: 543 | M102: INE298I01015
A103: ARIHANT | B103: EQ | C103: 30 | D103: 32.65 | E103: 30 | F103: 31.05 | G103: 31.05 | H103: 30.35 | I103: 836 | J103: 25822 | K103: 2018-11-30 | L103: 21 | M103: INE413D01011
A104: ARIHANTSUP | B104: EQ | C104: 50.9 | D104: 52.5 | E104: 50.25 | F104: 51.95 | G104: 52 | H104: 51.05 | I104: 60169 | J104: 3100066.7 | K104: 2018-11-30 | L104: 2565 | M104: INE643K01018
A105: ARMANFIN | B105: EQ | C105: 391.75 | D105: 394 | E105: 387 | F105: 392.5 | G105: 393 | H105: 391.75 | I105: 1443 | J105: 565135.85 | K105: 2018-11-30 | L105: 29 | M105: INE109C01017
A106: AROGRANITE | B106: EQ | C106: 51.15 | D106: 52.55 | E106: 51 | F106: 51.4 | G106: 51.65 | H106: 51.75 | I106: 3845 | J106: 198133.1 | K106: 2018-11-30 | L106: 144 | M106: INE210C01013
A107: ARROWGREEN | B107: EQ | C107: 91.05 | D107: 91.05 | E107: 87.75 | F107: 88.7 | G107: 88.25 | H107: 90 | I107: 5787 | J107: 514708.3 | K107: 2018-11-30 | L107: 144 | M107: INE570D01018
A108: ARROWTEX | B108: EQ | C108: 24.55 | D108: 25 | E108: 24.4 | F108: 24.9 | G108: 25 | H108: 24.65 | I108: 3433 | J108: 85179.85 | K108: 2018-11-30 | L108: 59 | M108: INE933J01015
A109: ARSHIYA | B109: EQ | C109: 36.5 | D109: 36.5 | E109: 34.5 | F109: 35.4 | G109: 35.2 | H109: 36.2 | I109: 22827 | J109: 814865.05 | K109: 2018-11-30 | L109: 266 | M109: INE968D01022
A110: ARSSINFRA | B110: EQ | C110: 28.95 | D110: 30.7 | E110: 27.65 | F110: 30.2 | G110: 30.4 | H110: 28.35 | I110: 39763 | J110: 1172167.85 | K110: 2018-11-30 | L110: 317 | M110: INE267I01010
A111: ARVIND | B111: EQ | C111: 102 | D111: 104.75 | E111: 100.2 | F111: 102.9 | G111: 102.35 | H111: 102.7 | I111: 13268509 | J111: 1360935735 | K111: 2018-11-30 | L111: 68750 | M111: INE034A01011
A112: ARVSMART | B112: EQ | C112: 109.35 | D112: 114.75 | E112: 109.35 | F112: 110.9 | G112: 111 | H112: 107.95 | I112: 11075 | J112: 1238374.85 | K112: 2018-11-30 | L112: 408 | M112: INE034S01021
A113: ASAHIINDIA | B113: EQ | C113: 263.05 | D113: 268.25 | E113: 253 | F113: 263.6 | G113: 257.1 | H113: 259.2 | I113: 22752 | J113: 5896429.35 | K113: 2018-11-30 | L113: 1248 | M113: INE439A01020
A114: ASAHISONG | B114: EQ | C114: 216.05 | D114: 220.8 | E114: 214.1 | F114: 215.25 | G114: 218 | H114: 217.6 | I114: 2910 | J114: 630781 | K114: 2018-11-30 | L114: 119 | M114: INE228I01012
A115: ASAL | B115: EQ | C115: 57.9 | D115: 58.75 | E115: 56.3 | F115: 57.2 | G115: 57 | H115: 56.05 | I115: 21591 | J115: 1243343.75 | K115: 2018-11-30 | L115: 211 | M115: INE900C01027
A116: ASHAPURMIN | B116: EQ | C116: 29.9 | D116: 29.9 | E116: 28.7 | F116: 28.8 | G116: 28.8 | H116: 29.1 | I116: 25660 | J116: 744625.45 | K116: 2018-11-30 | L116: 265 | M116: INE348A01023
A117: ASHIANA | B117: EQ | C117: 122.5 | D117: 124.75 | E117: 120 | F117: 124.35 | G117: 124.75 | H117: 120.3 | I117: 32102 | J117: 3935435.65 | K117: 2018-11-30 | L117: 450 | M117: INE365D01021
A118: ASHIMASYN | B118: EQ | C118: 13.35 | D118: 13.4 | E118: 12.55 | F118: 12.75 | G118: 12.85 | H118: 13.1 | I118: 50106 | J118: 645646.75 | K118: 2018-11-30 | L118: 189 | M118: INE440A01010
A119: ASHOKA | B119: EQ | C119: 131.05 | D119: 133.45 | E119: 128 | F119: 130.6 | G119: 131.4 | H119: 133 | I119: 517728 | J119: 67505501.7 | K119: 2018-11-30 | L119: 3878 | M119: INE442H01029
A120: ASHOKLEY | B120: EQ | C120: 110.25 | D120: 112.65 | E120: 110.25 | F120: 112.35 | G120: 112.1 | H120: 110.15 | I120: 24350704 | J120: 2721923715 | K120: 2018-11-30 | L120: 103410 | M120: INE208A01029
A121: ASIANHOTNR | B121: EQ | C121: 147.05 | D121: 149.95 | E121: 146.05 | F121: 149.95 | G121: 149.95 | H121: 151.9 | I121: 192 | J121: 28250.5 | K121: 2018-11-30 | L121: 9 | M121: INE363A01022
A122: ASIANPAINT | B122: EQ | C122: 1352.8 | D122: 1361.75 | E122: 1342.15 | F122: 1345.95 | G122: 1348.65 | H122: 1350.3 | I122: 1030541 | J122: 1390438870 | K122: 2018-11-30 | L122: 43153 | M122: INE021A01026
A123: ASIANTILES | B123: EQ | C123: 197.3 | D123: 207.4 | E123: 196 | F123: 203.95 | G123: 204 | H123: 194.25 | I123: 200053 | J123: 40606861.9 | K123: 2018-11-30 | L123: 6471 | M123: INE022I01019
A124: ASPINWALL | B124: EQ | C124: 178 | D124: 184.95 | E124: 175.65 | F124: 177.1 | G124: 175.65 | H124: 178 | I124: 490 | J124: 87165.6 | K124: 2018-11-30 | L124: 19 | M124: INE991I01015
A125: ASSAMCO | B125: EQ | C125: 2.4 | D125: 2.4 | E125: 2.25 | F125: 2.4 | G125: 2.4 | H125: 2.3 | I125: 1338153 | J125: 3201077.65 | K125: 2018-11-30 | L125: 368 | M125: INE442A01024
A126: ASTEC | B126: EQ | C126: 510.2 | D126: 517 | E126: 501 | F126: 504.95 | G126: 512.8 | H126: 512.1 | I126: 12995 | J126: 6611525.35 | K126: 2018-11-30 | L126: 753 | M126: INE563J01010
A127: ASTERDM | B127: EQ | C127: 144.1 | D127: 155 | E127: 143 | F127: 153 | G127: 153 | H127: 144 | I127: 88503 | J127: 13126498.6 | K127: 2018-11-30 | L127: 1733 | M127: INE914M01019
A128: ASTRAL | B128: EQ | C128: 1058 | D128: 1071.5 | E128: 1021.1 | F128: 1038.35 | G128: 1022.5 | H128: 1066.75 | I128: 221570 | J128: 233013010.4 | K128: 2018-11-30 | L128: 14429 | M128: INE006I01046
A129: ASTRAMICRO | B129: EQ | C129: 75.95 | D129: 81.7 | E129: 75.1 | F129: 79.85 | G129: 78 | H129: 75.05 | I129: 1076422 | J129: 83969062.3 | K129: 2018-11-30 | L129: 5027 | M129: INE386C01029
A130: ASTRAZEN | B130: EQ | C130: 1430 | D130: 1468.3 | E130: 1375 | F130: 1392.7 | G130: 1390 | H130: 1436.95 | I130: 16943 | J130: 24059987.15 | K130: 2018-11-30 | L130: 2773 | M130: INE203A01020
A131: ASTRON | B131: EQ | C131: 123.3 | D131: 129.85 | E131: 121.25 | F131: 127.1 | G131: 127 | H131: 122.3 | I131: 827022 | J131: 104078996.1 | K131: 2018-11-30 | L131: 5721 | M131: INE646X01014
A132: ATFL | B132: EQ | C132: 535.6 | D132: 566 | E132: 532 | F132: 560.35 | G132: 564 | H132: 533.95 | I132: 12067 | J132: 6588596.75 | K132: 2018-11-30 | L132: 451 | M132: INE209A01019
A133: ATLANTA | B133: EQ | C133: 22.6 | D133: 22.9 | E133: 22.2 | F133: 22.45 | G133: 22.5 | H133: 22.75 | I133: 20019 | J133: 450227.95 | K133: 2018-11-30 | L133: 298 | M133: INE285H01022
A134: ATUL | B134: EQ | C134: 3468.65 | D134: 3550 | E134: 3412 | F134: 3469.35 | G134: 3421.5 | H134: 3468.8 | I134: 69043 | J134: 240052240.4 | K134: 2018-11-30 | L134: 12901 | M134: INE100A01010
A135: ATULAUTO | B135: EQ | C135: 326 | D135: 332.95 | E135: 320.1 | F135: 324.2 | G135: 323.2 | H135: 326.1 | I135: 8919 | J135: 2908711.05 | K135: 2018-11-30 | L135: 898 | M135: INE951D01028
A136: AUBANK | B136: EQ | C136: 585.15 | D136: 600.05 | E136: 558.7 | F136: 568.25 | G136: 590 | H136: 585.15 | I136: 2793659 | J136: 1596671999 | K136: 2018-11-30 | L136: 63555 | M136: INE949L01017
A137: AURIONPRO | B137: EQ | C137: 150.1 | D137: 150.75 | E137: 145 | F137: 146.3 | G137: 146 | H137: 145.7 | I137: 10987 | J137: 1620592.85 | K137: 2018-11-30 | L137: 401 | M137: INE132H01018
A138: AUROPHARMA | B138: EQ | C138: 788 | D138: 814.95 | E138: 788 | F138: 810.7 | G138: 809.45 | H138: 792.15 | I138: 4207727 | J138: 3388415519 | K138: 2018-11-30 | L138: 104665 | M138: INE406A01037
A139: AUSOMENT | B139: EQ | C139: 51 | D139: 52.55 | E139: 49.3 | F139: 50.6 | G139: 50.6 | H139: 50.15 | I139: 1254 | J139: 63493 | K139: 2018-11-30 | L139: 71 | M139: INE218C01016
A140: AUTOAXLES | B140: EQ | C140: 1396 | D140: 1420 | E140: 1379.05 | F140: 1405.6 | G140: 1403 | H140: 1399.2 | I140: 15140 | J140: 21217807.15 | K140: 2018-11-30 | L140: 1384 | M140: INE449A01011
A141: AUTOIND | B141: EQ | C141: 58.4 | D141: 58.4 | E141: 56.5 | F141: 56.6 | G141: 56.5 | H141: 57.1 | I141: 8934 | J141: 511254.55 | K141: 2018-11-30 | L141: 261 | M141: INE718H01014
A142: AUTOLITIND | B142: EQ | C142: 41.15 | D142: 41.65 | E142: 40.6 | F142: 40.9 | G142: 40.7 | H142: 40.85 | I142: 1286 | J142: 52883 | K142: 2018-11-30 | L142: 44 | M142: INE448A01013
A143: AVADHSUGAR | B143: EQ | C143: 385.7 | D143: 398 | E143: 382.55 | F143: 386.85 | G143: 387 | H143: 385.65 | I143: 20887 | J143: 8143533 | K143: 2018-11-30 | L143: 1031 | M143: INE349W01017
A144: AVANTIFEED | B144: EQ | C144: 339.85 | D144: 351.8 | E144: 333.6 | F144: 341.65 | G144: 342.05 | H144: 340.3 | I144: 438391 | J144: 149962010.8 | K144: 2018-11-30 | L144: 15577 | M144: INE871C01038
A145: AVTNPL | B145: EQ | C145: 27.35 | D145: 27.4 | E145: 26.85 | F145: 27 | G145: 26.9 | H145: 26.95 | I145: 25011 | J145: 677388 | K145: 2018-11-30 | L145: 138 | M145: INE488D01021
A146: AXISBANK | B146: EQ | C146: 633 | D146: 635.25 | E146: 624 | F146: 625.75 | G146: 624.45 | H146: 631.4 | I146: 8984998 | J146: 5637624533 | K146: 2018-11-30 | L146: 103581 | M146: INE238A01034
A147: AXISCADES | B147: EQ | C147: 89 | D147: 93.45 | E147: 87.15 | F147: 90.65 | G147: 90.9 | H147: 88.5 | I147: 191211 | J147: 17463186.35 | K147: 2018-11-30 | L147: 2567 | M147: INE555B01013
A148: AXISGOLD | B148: EQ | C148: 2734 | D148: 2860 | E148: 2682 | F148: 2682.15 | G148: 2682.15 | H148: 2690 | I148: 123 | J148: 333166.35 | K148: 2018-11-30 | L148: 36 | M148: INF846K01347
A149: AXISNIFTY | B149: EQ | C149: 1104.37 | D149: 1106 | E149: 1098.96 | F149: 1098.96 | G149: 1098.96 | H149: 1078 | I149: 34 | J149: 37529.79 | K149: 2018-11-30 | L149: 7 | M149: INF846K01ZL0
A150: AYMSYNTEX | B150: EQ | C150: 42.7 | D150: 46.5 | E150: 41.35 | F150: 42.45 | G150: 42 | H150: 42.1 | I150: 3279 | J150: 140566.5 | K150: 2018-11-30 | L150: 61 | M150: INE193B01039
A151: BAFNAPHARM | B151: EQ | C151: 13.5 | D151: 13.5 | E151: 12.6 | F151: 12.75 | G151: 12.6 | H151: 13.2 | I151: 9704 | J151: 125267.8 | K151: 2018-11-30 | L151: 82 | M151: INE878I01014
A152: BAGFILMS | B152: EQ | C152: 4.85 | D152: 5.1 | E152: 4.75 | F152: 5.05 | G152: 5.05 | H152: 4.9 | I152: 142059 | J152: 700034.75 | K152: 2018-11-30 | L152: 278 | M152: INE116D01028
A153: BAJAJ-AUTO | B153: EQ | C153: 2721 | D153: 2769.7 | E153: 2702 | F153: 2745.7 | G153: 2743 | H153: 2724 | I153: 690175 | J153: 1889006007 | K153: 2018-11-30 | L153: 51032 | M153: INE917I01010
A154: BAJAJCORP | B154: EQ | C154: 355.7 | D154: 363 | E154: 353.4 | F154: 359.6 | G154: 362.95 | H154: 353.5 | I154: 203632 | J154: 72346108.9 | K154: 2018-11-30 | L154: 1086 | M154: INE933K01021
A155: BAJAJELEC | B155: EQ | C155: 472.9 | D155: 484.3 | E155: 469.55 | F155: 472.85 | G155: 471.65 | H155: 472.5 | I155: 264045 | J155: 126046748.3 | K155: 2018-11-30 | L155: 6343 | M155: INE193E01025
A156: BAJAJFINSV | B156: EQ | C156: 6019.7 | D156: 6100 | E156: 5960 | F156: 5994.35 | G156: 6011 | H156: 6010.75 | I156: 358307 | J156: 2149989861 | K156: 2018-11-30 | L156: 44018 | M156: INE918I01018
A157: BAJAJHIND | B157: EQ | C157: 9.5 | D157: 9.8 | E157: 9.45 | F157: 9.6 | G157: 9.6 | H157: 9.5 | I157: 2610342 | J157: 25068076 | K157: 2018-11-30 | L157: 3218 | M157: INE306A01021
A158: BAJAJHLDNG | B158: EQ | C158: 3022 | D158: 3029.8 | E158: 2980 | F158: 3000.8 | G158: 3000 | H158: 3022.1 | I158: 15452 | J158: 46388978.75 | K158: 2018-11-30 | L158: 4168 | M158: INE118A01012
A159: BAJFINANCE | B159: EQ | C159: 2538 | D159: 2564.4 | E159: 2507.05 | F159: 2537.7 | G159: 2531.35 | H159: 2506.5 | I159: 2737341 | J159: 6935996954 | K159: 2018-11-30 | L159: 110643 | M159: INE296A01024
A160: BALAJITELE | B160: EQ | C160: 95.7 | D160: 95.75 | E160: 94.1 | F160: 95.05 | G160: 95 | H160: 95.35 | I160: 5820 | J160: 553479.35 | K160: 2018-11-30 | L160: 169 | M160: INE794B01026
A161: BALAMINES | B161: EQ | C161: 460 | D161: 463.9 | E161: 451.95 | F161: 461.05 | G161: 458 | H161: 457.9 | I161: 11353 | J161: 5207891.15 | K161: 2018-11-30 | L161: 593 | M161: INE050E01027
A162: BALKRISHNA | B162: EQ | C162: 49.95 | D162: 53.3 | E162: 49.95 | F162: 51.1 | G162: 51 | H162: 49.9 | I162: 16458 | J162: 852336.3 | K162: 2018-11-30 | L162: 284 | M162: INE875R01011
A163: BALKRISIND | B163: EQ | C163: 974.85 | D163: 975 | E163: 955 | F163: 960.4 | G163: 960 | H163: 970.7 | I163: 900245 | J163: 866150829.2 | K163: 2018-11-30 | L163: 16470 | M163: INE787D01026
A164: BALLARPUR | B164: EQ | C164: 5.65 | D164: 6.2 | E164: 5.55 | F164: 5.8 | G164: 5.7 | H164: 5.65 | I164: 1779413 | J164: 10440162.25 | K164: 2018-11-30 | L164: 1664 | M164: INE294A01037
A165: BALMLAWRIE | B165: EQ | C165: 191 | D165: 191 | E165: 187.4 | F165: 188.45 | G165: 188.4 | H165: 189.6 | I165: 19587 | J165: 3689284.9 | K165: 2018-11-30 | L165: 548 | M165: INE164A01016
A166: BALPHARMA | B166: EQ | C166: 82.3 | D166: 83.5 | E166: 80.05 | F166: 80.65 | G166: 80.1 | H166: 81.4 | I166: 84512 | J166: 6914819 | K166: 2018-11-30 | L166: 1357 | M166: INE083D01012
A167: BALRAMCHIN | B167: EQ | C167: 99.15 | D167: 102.95 | E167: 97.8 | F167: 101.15 | G167: 100.55 | H167: 98.55 | I167: 3699965 | J167: 373314668.4 | K167: 2018-11-30 | L167: 20908 | M167: INE119A01028
A168: BANARBEADS | B168: EQ | C168: 49.75 | D168: 49.75 | E168: 46.05 | F168: 47.35 | G168: 48 | H168: 48.6 | I168: 531 | J168: 25068.85 | K168: 2018-11-30 | L168: 23 | M168: INE655B01011
A169: BANARISUG | B169: EQ | C169: 1623.8 | D169: 1623.85 | E169: 1570 | F169: 1579.2 | G169: 1590 | H169: 1614.8 | I169: 1472 | J169: 2343367.6 | K169: 2018-11-30 | L169: 231 | M169: INE459A01010
A170: BANCOINDIA | B170: EQ | C170: 165 | D170: 171.8 | E170: 165 | F170: 167.3 | G170: 167.1 | H170: 165.3 | I170: 31373 | J170: 5259938.2 | K170: 2018-11-30 | L170: 898 | M170: INE213C01025
A171: BANDHANBNK | B171: EQ | C171: 489 | D171: 498.2 | E171: 470.2 | F171: 483.65 | G171: 486 | H171: 487 | I171: 967220 | J171: 466870332 | K171: 2018-11-30 | L171: 36615 | M171: INE545U01014
A172: BANG | B172: EQ | C172: 54.4 | D172: 55.9 | E172: 53 | F172: 55.1 | G172: 54.7 | H172: 54.25 | I172: 15998 | J172: 882542.05 | K172: 2018-11-30 | L172: 140 | M172: INE863I01016
A173: BANKBARODA | B173: EQ | C173: 105.5 | D173: 106.65 | E173: 103.7 | F173: 105.05 | G173: 105 | H173: 105 | I173: 14741115 | J173: 1548541708 | K173: 2018-11-30 | L173: 64226 | M173: INE028A01039
A174: BANKBEES | B174: EQ | C174: 2750 | D174: 2761.3 | E174: 2729.25 | F174: 2736.81 | G174: 2738.45 | H174: 2750.76 | I174: 5716 | J174: 15641758.58 | K174: 2018-11-30 | L174: 148 | M174: INF732E01078
A175: BANKINDIA | B175: EQ | C175: 85.8 | D175: 86.25 | E175: 84.1 | F175: 84.85 | G175: 84.4 | H175: 85.3 | I175: 5259126 | J175: 447124265.1 | K175: 2018-11-30 | L175: 14562 | M175: INE084A01016
A176: BANSWRAS | B176: EQ | C176: 81 | D176: 84 | E176: 80.5 | F176: 81.2 | G176: 81.1 | H176: 83.6 | I176: 6720 | J176: 548083.2 | K176: 2018-11-30 | L176: 172 | M176: INE629D01012
A177: BARTRONICS | B177: EQ | C177: 7.3 | D177: 7.5 | E177: 7.25 | F177: 7.25 | G177: 7.35 | H177: 7.25 | I177: 17136 | J177: 125126.8 | K177: 2018-11-30 | L177: 57 | M177: INE855F01034
A178: BASF | B178: EQ | C178: 1612 | D178: 1630 | E178: 1565.05 | F178: 1588.4 | G178: 1593 | H178: 1609.85 | I178: 14678 | J178: 23429751.35 | K178: 2018-11-30 | L178: 3252 | M178: INE373A01013
A179: BASML | B179: EQ | C179: 211.85 | D179: 211.85 | E179: 201.5 | F179: 204 | G179: 202.5 | H179: 203.2 | I179: 185 | J179: 37578.1 | K179: 2018-11-30 | L179: 8 | M179: INE186H01014
A180: BATAINDIA | B180: EQ | C180: 1001.1 | D180: 1049.9 | E180: 1000 | F180: 1043.3 | G180: 1045 | H180: 1001.45 | I180: 2093515 | J180: 2165883394 | K180: 2018-11-30 | L180: 96795 | M180: INE176A01028
A181: BAYERCROP | B181: EQ | C181: 4211.1 | D181: 4387.85 | E181: 4182.05 | F181: 4300.15 | G181: 4250 | H181: 4211.1 | I181: 6843 | J181: 29205307 | K181: 2018-11-30 | L181: 2812 | M181: INE462A01022
A182: BBL | B182: EQ | C182: 1122.05 | D182: 1134.95 | E182: 1103 | F182: 1113.5 | G182: 1109 | H182: 1123.55 | I182: 2485 | J182: 2774803.1 | K182: 2018-11-30 | L182: 355 | M182: INE464A01028
A183: BBTC | B183: EQ | C183: 1337.9 | D183: 1385 | E183: 1331 | F183: 1380.25 | G183: 1380 | H183: 1332.05 | I183: 155044 | J183: 211559788 | K183: 2018-11-30 | L183: 7832 | M183: INE050A01025
A184: BCG | B184: EQ | C184: 3 | D184: 3.05 | E184: 2.9 | F184: 2.9 | G184: 2.9 | H184: 3.05 | I184: 929233 | J184: 2767883.8 | K184: 2018-11-30 | L184: 602 | M184: INE425B01027
A185: BDL | B185: EQ | C185: 276.1 | D185: 284 | E185: 275.9 | F185: 281.3 | G185: 281 | H185: 277.2 | I185: 11456 | J185: 3190787.1 | K185: 2018-11-30 | L185: 1652 | M185: INE171Z01018
A186: BEARDSELL | B186: EQ | C186: 24.55 | D186: 26.45 | E186: 24.5 | F186: 26.4 | G186: 25.45 | H186: 25.1 | I186: 303 | J186: 7677.2 | K186: 2018-11-30 | L186: 18 | M186: INE520H01022
A187: BEDMUTHA | B187: BE | C187: 22.65 | D187: 24.45 | E187: 22.65 | F187: 22.8 | G187: 22.8 | H187: 23.8 | I187: 7284 | J187: 168173.3 | K187: 2018-11-30 | L187: 29 | M187: INE844K01012
A188: BEL | B188: EQ | C188: 84.75 | D188: 85.4 | E188: 82.75 | F188: 83.25 | G188: 83 | H188: 84.8 | I188: 11736238 | J188: 982033329.5 | K188: 2018-11-30 | L188: 47528 | M188: INE263A01024
A189: BEML | B189: EQ | C189: 763 | D189: 773 | E189: 745 | F189: 752.85 | G189: 750.6 | H189: 764.95 | I189: 793765 | J189: 600715003.7 | K189: 2018-11-30 | L189: 20404 | M189: INE258A01016
A190: BEPL | B190: EQ | C190: 74.9 | D190: 75.1 | E190: 72.05 | F190: 74.2 | G190: 74.25 | H190: 71.95 | I190: 362374 | J190: 26782551 | K190: 2018-11-30 | L190: 2803 | M190: INE922A01025
A191: BERGEPAINT | B191: EQ | C191: 321 | D191: 324.3 | E191: 318.2 | F191: 319.8 | G191: 319 | H191: 319.85 | I191: 646632 | J191: 207874476.4 | K191: 2018-11-30 | L191: 10502 | M191: INE463A01038
A192: BFINVEST | B192: EQ | C192: 260.65 | D192: 271.5 | E192: 260.65 | F192: 263.85 | G192: 264 | H192: 259.5 | I192: 165622 | J192: 44128799.05 | K192: 2018-11-30 | L192: 3815 | M192: INE878K01010
A193: BFUTILITIE | B193: EQ | C193: 214.75 | D193: 221.4 | E193: 212.25 | F193: 213.85 | G193: 213.5 | H193: 213.05 | I193: 430210 | J193: 93130463.6 | K193: 2018-11-30 | L193: 7761 | M193: INE243D01012
A194: BGLOBAL | B194: BE | C194: 2.4 | D194: 2.5 | E194: 2.4 | F194: 2.5 | G194: 2.5 | H194: 2.4 | I194: 1329 | J194: 3302.4 | K194: 2018-11-30 | L194: 8 | M194: INE224M01013
A195: BGRENERGY | B195: EQ | C195: 60.7 | D195: 61.8 | E195: 60.05 | F195: 60.65 | G195: 60.4 | H195: 60.9 | I195: 54560 | J195: 3320058.45 | K195: 2018-11-30 | L195: 1142 | M195: INE661I01014
A196: BHAGERIA | B196: EQ | C196: 282.95 | D196: 288.1 | E196: 282.95 | F196: 285.85 | G196: 287.3 | H196: 285.85 | I196: 3308 | J196: 943462.2 | K196: 2018-11-30 | L196: 194 | M196: INE354C01027
A197: BHAGYANGR | B197: EQ | C197: 29.45 | D197: 30.75 | E197: 29 | F197: 29.3 | G197: 29.95 | H197: 30.15 | I197: 9987 | J197: 293623.95 | K197: 2018-11-30 | L197: 93 | M197: INE458B01036
A198: BHAGYAPROP | B198: EQ | C198: 26.2 | D198: 27.7 | E198: 25.3 | F198: 26.05 | G198: 26.45 | H198: 26.5 | I198: 15534 | J198: 403473.85 | K198: 2018-11-30 | L198: 26 | M198: INE363W01018
A199: BHANDARI | B199: EQ | C199: 1.85 | D199: 2 | E199: 1.85 | F199: 1.95 | G199: 2 | H199: 1.9 | I199: 292290 | J199: 551668.25 | K199: 2018-11-30 | L199: 225 | M199: INE474E01029
A200: BHARATFIN | B200: EQ | C200: 1040.1 | D200: 1059.2 | E200: 1012.15 | F200: 1023.05 | G200: 1035 | H200: 1034 | I200: 2332435 | J200: 2400875935 | K200: 2018-11-30 | L200: 55013 | M200: INE180K01011
... 1438 more rows
